Workbook

Sheet EQPT&UTIL
A1: ID | B1: EQUIPEMENTS | C1: page | D1: 2018 | F1: UTILISATEURS | G1: NOMS | H1: Dates | I1: A | J1: B | K1: C | L1: D | M1: E | N1: F | O1: G | P1: H | Q1: I | R1: J | S1: K | T1: L | U1: M | V1: N1 | W1: N2 | X1: O
A2: A | B2: Salle Polyvalente du BOULODROMME | C2: 1 | D2: A | F2: 1 | G2: OMS
A3: B | B3: BOULODROME | C3: 2 | D3: B | F3: 3 | G3: J.B.E.
A4: C | B4: Salle Polyvalente Roger JOURNET | C4: 3 | D4: C | F4: 4 | G4: GYM LOISIR
A5: D | B5: FERNAND FAIVRE - salle 2ème Etage | C5: 4 | D5: D | F5: 5 | G5: BASKET
A6: E | B6: PREAU Ecole du Bourg | C6: 5 | D6: E | F6: 7 | G6: CYCLOS
A7: F | B7: Gymnase Roger JOURNET | C7: 6 | D7: F | F7: 9 | G7: GAULE
A8: G | B8: Gymnase Fernand FAIVRE - Type C | C8: 7 | D8: G | F8: 10 | G8: JUDO
A9: H | B9: Gymnase Fernand FAIVRE - Type B | C9: 8 | D9: H | F9: 11 | G9: LUTTE
A10: I | B10: Salle de Musculation F. Faivre | C10: 9 | D10: I | F10: 14 | G10: T C D
A11: J | B11: Stade Synthétique Roger JOURNET | C11: 10 | D11: J | F11: 15 | G11: TENNIS (2)
A12: K | B12: Stade en herbe Roger JOURNET | C12: 11 | D12: ( M ) | F12: 16 | G12: CIRQUE (1)
A13: L | B13: Stade Charles PIOT | C13: 12 | D13: L | F13: 17 | G13: TAI JITSU
A14: M | B14: Salle de la Tuilerie | C14: 13 | D14: ( N ) | F14: 19 | G14: G.VOLONTAIRE
A15: N1 | B15: Tennis Couverts court N°1 | C15: 14 | D15: ( O ) | F15: 20 | G15: DIAGONALE
A16: N2 | B16: Tennis Couverts court N°2 | C16: 15 | D16: ( O ) | F16: 21 | G16: A.C.E (1)
A17: O | B17: Salle A.D.C rue du Grand Veymont | C17: 16 | D17: P | F17: 23 | G17: ESCALADE
A18: P | B18: Réserve 0 | C18: 16 | F18: 24 | G18: ARCHERS
A19: Q | B19: Réserve 1 | C19: 17 | F19: 27 | G19: O.C.E
A20: R | B20: Réserve 2 | C20: 18 | F20: 28 | G20: LAI MUOI
A21: S | B21: Réserve 3 | C21: 19 | F21: 30 | G21: TAEKWONDO
F22: 31 | G22: E.S.A.G.A.M.I
F23: 32 | G23: ALEETT
B24: SAISON | F24: 34 | G24: SPIRIT 38
B25: 2019-2020 | F25: 35 | G25: GMC38EYBENS
F26: 36 | G26: PETANQUE
F27: 37 | G27: HBC2E
F28: 38 | G28: -
F29: 39 | G29: -
F30: 40 | G30: -
I31: A | J31: B | K31: C | L31: D | M31: E | N31: F | O31: G | P31: H | Q31: I | R31: J | S31: K | T31: L | U31: M | V31: N1 | W31: N2 | X31: O
F32: 50 | G32: SCOLAIRE
F33: 51 | G33: Sport Passion
F34: 52 | G34: Péri Scolaire
F35: 53 | G35: Crêche Familiale
F36: 54 | G36: Rel Ass Matern
F37: 55 | G37: ?Pôle Enfance
F38: 56 | G38: Anim. Municip.
F39: 57 | G39: Crêche P Chose
F40: 58
F41: 59 | G41: Police Municip
F42: 60
F43: 61 | G43: -
F44: 62 | G44: EN ATTENTE
F45: 100 | G45: POISAT
F46: 101 | G46: ECHIROLLES
F47: 102 | G47: H.P.
F48: 103 | G48: I.M.E.
F49: 104
F50: 105 | G50: Gendarm. Eybens
F51: 106
F52: 107 | G52: D.Country
F53: 108 | G53: CE SOPRA
F54: 109 | G54: ASCE
F55: 110 | G55: HARMONIE EYBENS
F56: 111

Sheet A
A1: =INDEX(EQUIPEMENT,MATCH($U$1,ID,0),4) -> A | B1: =SAISON -> 2019-2020 | E1: =INDEX(EQUIPEMENT,MATCH($U$1,ID,0),2) -> Salle Polyvalente du BOULODROMME | U1: A | W1: Hr | X1: REF | Y1: NB 1/4 H | Z1: NOMS
A2: 09:00:00 | C2: LUNDI | F2: MARDI | I2: MERCREDI | L2: JEUDI | O2: VENDREDI | R2: SAMEDI | T2: Dimanche | W2: =Y2*15/1440 -> 0 | X2: 1 | Y2: =COUNTIF($B$3:$V$56,X2) -> 0 | Z2: =INDEX(UTILISATEURS,MATCH(X2,RefUtil,0),2) -> OMS
A3: =+A2+$A$59 -> 09:15:00 | C3: 19 | F3: 53 | I3: 103 | L3: 54 | O3: 19 | R3: 10 | W3: =Y3*15/1440 -> 0 | X3: 3 | Y3: =COUNTIF($B$3:$V$56,X3) -> 0 | Z3: J.B.E.
A4: 09:30:00 | C4: 19 | F4: 53 | I4: 103 | L4: 54 | O4: 19 | R4: 10 | W4: 0.1354166667 | X4: 4 | Y4: 13 | Z4: =INDEX(UTILISATEURS,MATCH(X4,RefUtil,0),2) -> GYM LOISIR
A5: 09:45:00 | C5: 19 | F5: 53 | I5: 103 | L5: 54 | O5: 19 | R5: 10 | W5: 0 | X5: 5 | Y5: 0 | Z5: BASKET
A6: 10:00:00 | C6: 19 | F6: 53 | I6: 103 | L6: 54 | O6: 19 | R6: 10 | W6: 0 | X6: 7 | Y6: 0 | Z6: CYCLOS
A7: 10:15:00 | C7: 19 | F7: 53 | I7: 103 | L7: 54 | O7: 19 | R7: 10 | W7: 0 | X7: 9 | Y7: 0 | Z7: GAULE
A8: 10:30:00 | C8: 19 | F8: 53 | I8: 103 | L8: 54 | O8: 19 | R8: 10 | W8: 0.9895833333 | X8: 10 | Y8: 95 | Z8: JUDO
A9: 10:45:00 | C9: 19 | F9: 53 | I9: 103 | L9: 54 | O9: 19 | R9: 10 | W9: 0 | X9: 11 | Y9: 0 | Z9: LUTTE
A10: 11:00:00 | C10: 19 | F10: 53 | I10: 103 | L10: 54 | O10: 19 | R10: 10 | W10: 0 | X10: 14 | Y10: =COUNTIF($B$3:$V$56,X10) -> 0 | Z10: =INDEX(UTILISATEURS,MATCH(X10,RefUtil,0),2) -> T C D
A11: 11:15:00 | C11: v | F11: 53 | I11: 103 | L11: 54 | O11: 19 | R11: 10 | W11: 0 | X11: 15 | Y11: 0 | Z11: TENNIS (2)
A12: 11:30:00 | C12: v | F12: 53 | I12: 103 | L12: 54 | O12: 19 | R12: 10 | W12: 0 | X12: 16 | Y12: 0 | Z12: CIRQUE (1)
A13: 11:45:00 | C13: v | F13: v | I13: v | L13: v | O13: 19 | R13: 10 | W13: 0.3958333333 | X13: 17 | Y13: 38 | Z13: TAI JITSU
A14: 12:00:00 | C14: v | F14: v | I14: v | L14: v | O14: 19 | R14: 10 | W14: 0.2916666667 | X14: 19 | Y14: 28 | Z14: G.VOLONTAIRE
A15: 12:15:00 | C15: v | F15: v | I15: v | L15: v | O15: 102 | R15: 10 | W15: 0 | X15: 20 | Y15: 0 | Z15: DIAGONALE
A16: 12:30:00 | C16: v | F16: 19 | I16: v | L16: 4 | O16: 102 | R16: 10 | W16: 0 | X16: 21 | Y16: 0 | Z16: A.C.E (1)
A17: 12:45:00 | C17: v | F17: 19 | I17: v | L17: 4 | O17: 102 | R17: 10 | W17: 0 | X17: 23 | Y17: 0 | Z17: ESCALADE
A18: 13:00:00 | C18: v | F18: 19 | I18: v | L18: 4 | O18: 102 | R18: 10 | W18: 0 | X18: 24 | Y18: 0 | Z18: ARCHERS
A19: 13:15:00 | C19: v | F19: 19 | I19: v | L19: 4 | O19: 102 | R19: 10 | W19: 0 | X19: 27 | Y19: 0 | Z19: O.C.E
A20: 13:30:00 | C20: v | F20: v | I20: v | O20: 4 | R20: 10 | W20: 0 | X20: 28 | Y20: 0 | Z20: LAI MUOI
A21: 13:45:00 | C21: 103 | F21: v | I21: v | L21: 103 | O21: 4 | R21: 10 | W21: 0.1041666667 | X21: 30 | Y21: 10 | Z21: TAEKWONDO
A22: 14:00:00 | C22: 103 | F22: v | I22: v | L22: 103 | O22: 4 | R22: 10 | W22: 0 | X22: 31 | Y22: 0 | Z22: E.S.A.G.A.M.I
A23: 14:15:00 | C23: 103 | F23: v | I23: v | L23: 103 | O23: 4 | R23: 17 | W23: 0 | X23: 32 | Y23: 0 | Z23: ALEETT
A24: 14:30:00 | C24: 103 | F24: v | I24: v | L24: 103 | O24: 4 | R24: 17 | W24: 0 | X24: 34 | Y24: 0 | Z24: SPIRIT 38
A25: 14:45:00 | C25: 103 | F25: v | I25: 30 | L25: 103 | O25: 4 | R25: 17 | W25: 0 | X25: 35 | Y25: 0 | Z25: GMC38EYBENS
A26: 15:00:00 | C26: 103 | F26: v | I26: 30 | L26: 103 | O26: 4 | R26: 17 | W26: 0 | X26: 36 | Y26: 0 | Z26: PETANQUE
A27: 15:15:00 | C27: 103 | F27: v | I27: 30 | L27: 103 | O27: 4 | R27: 17 | W27: 0 | X27: 37 | Y27: 0 | Z27: HBC2E
A28: 15:30:00 | C28: 103 | F28: v | I28: 30 | L28: 103 | O28: 4 | R28: 17 | W28: 0 | X28: 38 | Y28: 0 | Z28: -
A29: 15:45:00 | C29: 103 | F29: v | I29: 30 | L29: 103 | O29: v | R29: 17 | W29: 0 | X29: 39 | Y29: 0 | Z29: -
A30: 16:00:00 | C30: 103 | F30: v | I30: 30 | L30: 103 | O30: v | R30: 17 | W30: =Y30*15/1440 -> 0 | X30: 50 | Y30: 0 | Z30: SCOLAIRE
A31: 16:15:00 | C31: 103 | F31: v | I31: 30 | L31: 103 | O31: v | R31: 17 | W31: 0 | X31: 51 | Y31: 0 | Z31: Sport Passion
A32: 16:30:00 | C32: 103 | F32: 10 | I32: 30 | L32: 103 | O32: v | R32: 17 | W32: 0 | X32: 52 | Y32: 0 | Z32: Péri Scolaire
A33: 16:45:00 | C33: v | F33: 10 | I33: 30 | L33: v | O33: v | R33: 17 | W33: 0.1041666667 | X33: 53 | Y33: 10 | Z33: Crêche Familiale
A34: 17:00:00 | C34: 10 | F34: 10 | I34: 30 | L34: 10 | O34: v | R34: 17 | W34: 0.1041666667 | X34: 54 | Y34: 10 | Z34: =INDEX(UTILISATEURS,MATCH(X34,RefUtil,0),2) -> Rel Ass Matern
A35: 17:15:00 | C35: 10 | F35: 10 | I35: 17 | L35: 10 | O35: v | R35: v | W35: 0 | X35: 55 | Y35: 0 | Z35: ?Pôle Enfance
A36: 17:30:00 | C36: 10 | F36: 10 | I36: 17 | L36: 10 | O36: v | R36: v | W36: 0 | X36: 56 | Y36: 0 | Z36: Anim. Municip.
A37: 17:45:00 | C37: 10 | F37: 10 | I37: 17 | L37: 10 | O37: 17 | R37: v | W37: 0 | X37: 57 | Y37: 0 | Z37: Crêche P Chose
A38: 18:00:00 | C38: 10 | F38: 10 | I38: 17 | L38: 10 | O38: 17 | R38: v | W38: 0 | X38: 58 | Y38: 0 | Z38: 0
A39: 18:15:00 | C39: 10 | F39: 10 | I39: 17 | L39: 10 | O39: 17 | R39: v | W39: 0 | X39: 59 | Y39: 0 | Z39: Police Municip
A40: 18:30:00 | C40: 10 | F40: 10 | I40: 17 | L40: 10 | O40: 17 | R40: v | W40: 0 | X40: 60 | Y40: 0 | Z40: 0
A41: 18:45:00 | C41: 10 | F41: 10 | I41: 17 | L41: 10 | O41: 17 | R41: v | W41: 0 | X41: 61 | Y41: 0 | Z41: -
A42: 19:00:00 | C42: 10 | F42: 10 | I42: 17 | L42: 10 | O42: 17 | R42: v | W42: 0 | X42: 62 | Y42: 0 | Z42: EN ATTENTE
A43: 19:15:00 | C43: 10 | F43: 10 | I43: 17 | L43: 10 | O43: 10 | R43: v | W43: 0 | X43: 63 | Y43: 0
A44: 19:30:00 | C44: 10 | F44: 19 | I44: 17 | L44: 10 | O44: 10 | R44: v | W44: 0 | X44: 100 | Y44: 0 | Z44: POISAT
A45: 19:45:00 | C45: 10 | F45: 19 | I45: 17 | L45: 10 | O45: 10 | R45: v | W45: 0 | X45: 101 | Y45: 0 | Z45: ECHIROLLES
A46: 20:00:00 | C46: 10 | F46: 19 | I46: 17 | L46: 10 | O46: 10 | R46: v | W46: 0.05208333333 | X46: 102 | Y46: 5 | Z46: H.P.
A47: 20:15:00 | C47: 10 | F47: 19 | I47: 10 | L47: 10 | O47: 10 | R47: v | W47: 0.3541666667 | X47: 103 | Y47: 34 | Z47: I.M.E.
A48: 20:30:00 | C48: 10 | F48: 10 | I48: 10 | L48: 10 | O48: 10 | R48: v | W48: 0 | X48: 104 | Y48: 0 | Z48: 0
A49: 20:45:00 | C49: 10 | F49: 10 | I49: 10 | L49: 10 | O49: 17 | R49: v | W49: 0 | X49: 105 | Y49: 0 | Z49: Gendarm. Eybens
A50: 21:00:00 | C50: 10 | F50: 10 | I50: 10 | L50: 10 | O50: 17 | R50: v | W50: 0 | X50: 106 | Y50: 0 | Z50: 0
A51: 21:15:00 | C51: 10 | F51: 10 | I51: 10 | L51: 10 | O51: 17 | R51: v | W51: 0 | X51: 107 | Y51: 0 | Z51: D.Country
A52: 21:30:00 | C52: 10 | F52: 10 | I52: 10 | L52: 10 | O52: 17 | R52: v | W52: 0 | X52: 108 | Y52: 0 | Z52: CE SOPRA
A53: 21:45:00 | C53: 10 | F53: 10 | I53: V | L53: 10 | O53: 17 | R53: v | W53: 0 | X53: 109 | Y53: 0 | Z53: ASCE
A54: 22:00:00 | C54: 10 | F54: 10 | I54: V | L54: 10 | O54: 17 | R54: v | W54: 0 | X54: 110 | Y54: 0 | Z54: HARMONIE EYBENS
A55: 22:15:00 | C55: 10 | F55: V | I55: V | L55: 10 | O55: 17 | R55: v | W55: 0 | X55: 111 | Y55: 0 | Z55: 0
A56: 22:30:00 | F56: V | I56: V | L56: V | O56: 17 | R56: v | W56: 0 | Y56: 0
W58: =Y58*15/1440 -> 2.53125 | Y58: =SUM(Y2:Y57) -> 243
A59: 00:15:00 | S59: Page N° | T59: =VLOOKUP($U$1,EQUIPEMENT,3) -> 1

Sheet B
A1: =INDEX(EQUIPEMENT,MATCH($U$1,ID,0),4) -> B | B1: =SAISON -> 2019-2020 | E1: =INDEX(EQUIPEMENT,MATCH($U$1,ID,0),2) -> BOULODROME | U1: B | W1: Hr | X1: REF | Y1: NB 1/4 H | Z1: NOMS
A2: 09:00:00 | B2: Lundi | E2: Mardi | H2: Mercredi | K2: Jeudi | N2: Vendredi | Q2: Samedi | T2: Dimanche | W2: =Y2*15/1440 -> 0 | X2: 1 | Y2: =COUNTIF($B$3:$V$56,X2) -> 0 | Z2: =INDEX(UTILISATEURS,MATCH(X2,RefUtil,0),2) -> OMS
A3: =+A2+$A$59 -> 09:15:00 | C3: v | F3: v | I3: v | L3: v | O3: v | R3: 3 | W3: 0.6875 | X3: 3 | Y3: =COUNTIF($B$3:$V$56,X3) -> 115 | Z3: J.B.E.
A4: 09:30:00 | C4: v | F4: v | I4: v | L4: v | O4: v | R4: 3 | W4: 0 | X4: 4 | Y4: 0 | Z4: GYM LOISIR
A5: 09:45:00 | C5: v | F5: v | I5: v | L5: v | O5: v | R5: 3 | W5: 0 | X5: 5 | Y5: 0 | Z5: BASKET
A6: 10:00:00 | C6: v | F6: v | I6: v | L6: v | O6: v | R6: 3 | W6: 0 | X6: 7 | Y6: 0 | Z6: CYCLOS
A7: 10:15:00 | C7: v | F7: v | I7: 24 | L7: v | O7: v | R7: 3 | W7: 0 | X7: 9 | Y7: 0 | Z7: GAULE
A8: 10:30:00 | C8: v | F8: v | I8: 24 | L8: v | O8: v | R8: 3 | W8: 0 | X8: 10 | Y8: 0 | Z8: JUDO
A9: 10:45:00 | C9: v | F9: v | I9: 24 | L9: v | O9: v | R9: 3 | W9: 0 | X9: 11 | Y9: 0 | Z9: LUTTE
A10: 11:00:00 | C10: v | F10: v | I10: 24 | L10: v | O10: v | R10: 3 | W10: 0 | X10: 14 | Y10: 0 | Z10: T C D
A11: 11:15:00 | C11: v | F11: v | I11: 24 | L11: v | O11: v | R11: 3 | W11: 0.6979166667 | X11: 15 | Y11: 0 | Z11: TENNIS (2)
A12: 11:30:00 | C12: v | F12: v | I12: 24 | L12: v | O12: v | R12: 3 | W12: 0 | X12: 16 | Y12: 0 | Z12: CIRQUE (1)
A13: 11:45:00 | C13: v | F13: v | I13: 24 | L13: v | O13: v | R13: 3 | W13: 0 | X13: 17 | Y13: 0 | Z13: TAI JITSU
A14: 12:00:00 | C14: v | F14: v | I14: 24 | L14: v | O14: v | R14: 3 | W14: 0 | X14: 19 | Y14: 0 | Z14: G.VOLONTAIRE
A15: 12:15:00 | C15: v | F15: V | I15: 24 | L15: V | O15: v | W15: 0 | X15: 20 | Y15: 0 | Z15: DIAGONALE
A16: 12:30:00 | C16: v | F16: V | I16: 24 | L16: V | O16: v | W16: 0 | X16: 21 | Y16: 0 | Z16: A.C.E (1)
A17: 12:45:00 | C17: v | F17: V | I17: 24 | L17: V | O17: v | W17: 0 | X17: 23 | Y17: 0 | Z17: ESCALADE
A18: 13:00:00 | C18: v | F18: V | I18: 24 | L18: V | O18: v | W18: 0 | X18: 24 | Y18: 61 | Z18: ARCHERS
A19: 13:15:00 | C19: v | E19: 36 | I19: 24 | M19: 36 | O19: v | W19: 0 | X19: 27 | Y19: 0 | Z19: O.C.E
A20: 13:30:00 | C20: v | E20: 36 | I20: 24 | M20: 36 | O20: v | W20: 0 | X20: 28 | Y20: 0 | Z20: LAI MUOI
A21: 13:45:00 | C21: 3 | D21: 103 | E21: 36 | F21: 3 | I21: 24 | M21: 36 | N21: 3 | W21: 0.5 | X21: 30 | Y21: 0 | Z21: TAEKWONDO
A22: 14:00:00 | C22: 3 | D22: 103 | E22: 36 | F22: 3 | I22: 24 | K22: 3 | M22: 36 | N22: 3 | W22: 0 | X22: 31 | Y22: 22 | Z22: E.S.A.G.A.M.I
A23: 14:15:00 | C23: 3 | D23: 103 | E23: 36 | F23: 3 | I23: 24 | K23: 3 | M23: 36 | N23: 3 | W23: 0 | X23: 32 | Y23: 0 | Z23: ALEETT
A24: 14:30:00 | C24: 3 | D24: 103 | E24: 36 | F24: 3 | I24: 24 | K24: 3 | M24: 36 | N24: 3 | W24: 0 | X24: 34 | Y24: 0 | Z24: SPIRIT 38
A25: 14:45:00 | C25: 3 | D25: 103 | E25: 36 | F25: 3 | I25: 24 | K25: 3 | M25: 36 | N25: 3 | W25: 0.1875 | X25: 35 | Y25: 0 | Z25: GMC38EYBENS
A26: 15:00:00 | C26: 3 | D26: 103 | E26: 36 | F26: 3 | I26: 24 | K26: 3 | M26: 36 | N26: 3 | W26: 0 | X26: 36 | Y26: 56 | Z26: PETANQUE
A27: 15:15:00 | C27: 3 | D27: 103 | E27: 36 | F27: 3 | I27: 24 | K27: 3 | M27: 36 | N27: 3 | W27: 0 | X27: 37 | Y27: 0 | Z27: HBC2E
A28: 15:30:00 | C28: 3 | D28: 103 | E28: 36 | F28: 3 | I28: 24 | K28: 3 | M28: 36 | N28: 3 | W28: 0 | X28: 38 | Y28: 0 | Z28: -
A29: 15:45:00 | C29: 3 | D29: 103 | E29: 36 | F29: 3 | I29: 24 | K29: 3 | M29: 36 | N29: 3 | W29: 0 | X29: 39 | Y29: 0 | Z29: -
A30: 16:00:00 | C30: 3 | D30: 103 | E30: 36 | F30: 3 | I30: 24 | K30: 3 | M30: 36 | N30: 3 | W30: 0 | X30: 50 | Y30: 0 | Z30: SCOLAIRE
A31: 16:15:00 | C31: 3 | E31: 36 | F31: 3 | I31: 24 | K31: 3 | M31: 36 | N31: 3 | W31: 0 | X31: 51 | Y31: 0 | Z31: Sport Passion
A32: 16:30:00 | C32: 3 | E32: 36 | F32: 3 | I32: 24 | K32: 3 | M32: 36 | N32: 3 | W32: 0 | X32: 52 | Y32: 0 | Z32: Péri Scolaire
A33: 16:45:00 | C33: 3 | E33: 36 | F33: 3 | I33: 24 | K33: 3 | M33: 36 | N33: 3 | W33: 0 | X33: 53 | Y33: 0 | Z33: Crêche Familiale
A34: 17:00:00 | C34: 3 | E34: 36 | F34: 3 | I34: 24 | K34: 3 | M34: 36 | N34: 3 | W34: 0 | X34: 54 | Z34: =INDEX(UTILISATEURS,MATCH(X34,RefUtil,0),2) -> Rel Ass Matern
A35: 17:15:00 | C35: 3 | E35: 36 | F35: 3 | I35: 24 | J35: 31 | K35: 3 | M35: 36 | N35: 3 | W35: 0 | X35: 55 | Y35: 0 | Z35: ?Pôle Enfance
A36: 17:30:00 | C36: 3 | E36: 36 | F36: 3 | I36: 24 | J36: 31 | K36: 3 | M36: 36 | N36: 3 | W36: 0 | X36: 56 | Y36: 0 | Z36: Anim. Municip.
A37: 17:45:00 | C37: 3 | E37: 36 | F37: 3 | I37: 24 | J37: 31 | K37: 3 | M37: 36 | N37: 3 | P37: 31 | W37: 0 | X37: 57 | Y37: 0 | Z37: Crêche P Chose
A38: 18:00:00 | C38: 3 | E38: 36 | F38: 3 | I38: 24 | J38: 31 | K38: 3 | M38: 36 | N38: 3 | P38: 31 | W38: 0 | X38: 58 | Y38: 0 | Z38: 0
A39: 18:15:00 | C39: 3 | E39: 36 | F39: 3 | I39: 24 | J39: 31 | K39: 3 | M39: 36 | N39: 3 | P39: 31 | W39: 0 | X39: 59 | Y39: 0 | Z39: Police Municip
A40: 18:30:00 | C40: 3 | E40: 36 | F40: 3 | I40: 24 | J40: 31 | K40: 3 | M40: 36 | N40: 3 | P40: 31 | W40: 0 | X40: 60 | Y40: 0 | Z40: 0
A41: 18:45:00 | C41: 3 | E41: 36 | F41: 3 | I41: 24 | J41: 31 | K41: 3 | M41: 36 | N41: 3 | P41: 31 | W41: 0 | X41: 61 | Y41: 0 | Z41: -
A42: 19:00:00 | C42: 3 | E42: 36 | F42: 3 | I42: 24 | J42: 31 | K42: 3 | M42: 36 | N42: 3 | P42: 31 | W42: 0 | X42: 62 | Y42: 0 | Z42: EN ATTENTE
A43: 19:15:00 | C43: 3 | E43: 36 | F43: 3 | I43: 24 | J43: 31 | K43: 3 | M43: 36 | N43: 3 | P43: 31 | W43: 0 | X43: 63 | Y43: 0
A44: 19:30:00 | C44: 3 | E44: 36 | F44: 3 | I44: 24 | J44: 31 | K44: 3 | M44: 36 | N44: 3 | P44: 31 | W44: 0 | X44: 100 | Y44: 0 | Z44: POISAT
A45: 19:45:00 | C45: 3 | E45: 36 | F45: 3 | I45: 24 | J45: 31 | K45: 3 | M45: 36 | N45: 3 | P45: 31 | W45: 0 | X45: 101 | Y45: 0 | Z45: ECHIROLLES
A46: 20:00:00 | C46: 3 | E46: 36 | F46: 3 | I46: 24 | J46: 31 | K46: 3 | M46: 36 | N46: 3 | P46: 31 | W46: 0 | X46: 102 | Y46: 0 | Z46: H.P.
A47: 20:15:00 | C47: v | E47: 24 | I47: 24 | K47: 24 | O47: V | W47: 0 | X47: 103 | Y47: 10 | Z47: I.M.E.
A48: 20:30:00 | C48: v | E48: 24 | I48: v | K48: 24 | O48: V | W48: 0 | X48: 104 | Y48: 0 | Z48: 0
A49: 20:45:00 | C49: v | E49: 24 | I49: v | K49: 24 | O49: V | W49: 0 | X49: 105 | Y49: 0 | Z49: Gendarm. Eybens
A50: 21:00:00 | C50: v | E50: 24 | I50: v | K50: 24 | O50: V | W50: 0 | X50: 106 | Y50: 0 | Z50: 0
A51: 21:15:00 | C51: v | E51: 24 | I51: v | K51: 24 | O51: v | W51: 0 | X51: 107 | Y51: 0 | Z51: D.Country
A52: 21:30:00 | C52: v | E52: 24 | I52: v | K52: 24 | O52: v | W52: 0 | X52: 108 | Y52: 0 | Z52: CE SOPRA
A53: 21:45:00 | C53: v | E53: 24 | I53: v | K53: 24 | O53: v | W53: 0 | X53: 109 | Y53: 0 | Z53: ASCE
A54: 22:00:00 | C54: v | E54: 24 | I54: v | K54: 24 | O54: v | W54: 0 | X54: 110 | Y54: 0 | Z54: HARMONIE EYBENS
A55: 22:15:00 | C55: v | E55: 24 | I55: v | K55: 24 | O55: v | W55: 0 | X55: 111 | Y55: 0 | Z55: 0
A56: 22:30:00 | C56: v | E56: 24 | I56: v | K56: 24 | O56: v
W58: =Y58*15/1440 -> 2.75 | Y58: =SUM(Y2:Y57) -> 264
A59: 00:15:00 | S59: Page N° | T59: =VLOOKUP($U$1,EQUIPEMENT,3) -> 2

Sheet C
A1: =INDEX(EQUIPEMENT,MATCH($U$1,ID,0),4) -> C | B1: =SAISON -> 2019-2020 | E1: =INDEX(EQUIPEMENT,MATCH($U$1,ID,0),2) -> Salle Polyvalente Roger JOURNET | U1: C | W1: Hr | X1: REF | Y1: NB 1/4 H | Z1: NOMS
A2: 09:00:00 | B2: Lundi | E2: Mardi | H2: Mercredi | K2: Jeudi | N2: Vendredi | Q2: Samedi | T2: Dimanche | W2: =Y2*15/1440 -> 0 | X2: 1 | Y2: =COUNTIF($B$3:$V$56,X2) -> 0 | Z2: =INDEX(UTILISATEURS,MATCH(X2,RefUtil,0),2) -> OMS
A3: =+A2+$A$59 -> 09:15:00 | C3: v | F3: v | I3: 19 | L3: v | O3: 4 | R3: 34 | W3: =Y3*15/1440 -> 0 | X3: 3 | Y3: =COUNTIF($B$3:$V$56,X3) -> 0 | Z3: J.B.E.
A4: 09:30:00 | C4: v | F4: v | I4: 19 | L4: v | O4: 4 | R4: 34 | W4: 0.4895833333 | X4: 4 | Y4: 47 | Z4: GYM LOISIR
A5: 09:45:00 | C5: 4 | F5: 4 | I5: 19 | L5: 4 | O5: 4 | R5: 34 | W5: 0 | X5: 5 | Y5: 0 | Z5: BASKET
A6: 10:00:00 | C6: 4 | F6: 4 | I6: 19 | L6: 4 | O6: 4 | R6: 34 | W6: 0 | X6: 7 | Y6: 0 | Z6: CYCLOS
A7: 10:15:00 | C7: 4 | F7: 4 | I7: 19 | L7: 4 | O7: 4 | R7: 34 | W7: 0 | X7: 9 | Y7: 0 | Z7: GAULE
A8: 10:30:00 | C8: 4 | F8: 4 | I8: 19 | L8: 4 | O8: 4 | R8: 34 | W8: 0 | X8: 10 | Y8: 0 | Z8: JUDO
A9: 10:45:00 | C9: 4 | F9: 4 | I9: 19 | L9: 4 | O9: 4 | R9: 34 | W9: 0.1666666667 | X9: 11 | Y9: 16 | Z9: LUTTE
A10: 11:00:00 | C10: 4 | F10: 4 | I10: 19 | L10: 4 | O10: 4 | R10: 34 | W10: 0 | X10: 14 | Y10: 0 | Z10: T C D
A11: 11:15:00 | C11: 4 | F11: 4 | I11: v | L11: 4 | O11: v | R11: 34 | W11: 0 | X11: 15 | Y11: 0 | Z11: TENNIS (2)
A12: 11:30:00 | C12: 4 | F12: 4 | I12: v | L12: 4 | O12: v | R12: 34 | W12: 0 | X12: 16 | Y12: 0 | Z12: CIRQUE (1)
A13: 11:45:00 | C13: v | F13: v | I13: v | L13: v | O13: v | R13: 34 | W13: 0 | X13: 17 | Y13: 0 | Z13: TAI JITSU
A14: 12:00:00 | C14: v | F14: v | I14: v | L14: v | O14: v | R14: 34 | W14: 0.2083333333 | X14: 19 | Y14: 20 | Z14: G.VOLONTAIRE
A15: 12:15:00 | C15: 102 | F15: v | I15: v | L15: 102 | O15: 102 | R15: 34 | W15: 0 | X15: 20 | Y15: 0 | Z15: DIAGONALE
A16: 12:30:00 | C16: 102 | F16: 19 | I16: v | L16: 102 | O16: 102 | R16: 34 | W16: 0 | X16: 21 | Y16: 0 | Z16: A.C.E (1)
A17: 12:45:00 | C17: 102 | F17: 19 | I17: v | L17: 102 | O17: 102 | R17: 34 | W17: 0 | X17: 23 | Y17: 0 | Z17: ESCALADE
A18: 13:00:00 | C18: 102 | F18: 19 | I18: v | L18: 102 | O18: 102 | R18: 34 | W18: 0 | X18: 24 | Y18: 0 | Z18: ARCHERS
A19: 13:15:00 | C19: 102 | F19: 19 | I19: v | L19: 102 | O19: 102 | R19: 34 | W19: 0 | X19: 27 | Y19: 0 | Z19: O.C.E
A20: 13:30:00 | C20: 102 | I20: v | L20: 102 | O20: 102 | R20: 34 | W20: 0.1666666667 | X20: 28 | Y20: 16 | Z20: LAI MUOI
A21: 13:45:00 | C21: 50 | F21: 50 | I21: 34 | L21: 50 | O21: 50 | W21: 0.1041666667 | X21: 30 | Y21: 10 | Z21: TAEKWONDO
A22: 14:00:00 | C22: 50 | F22: 50 | I22: 34 | L22: 50 | O22: 50 | W22: 0 | X22: 31 | Y22: 0 | Z22: E.S.A.G.A.M.I
A23: 14:15:00 | C23: 50 | F23: 50 | I23: 34 | L23: 50 | O23: 50 | W23: 0 | X23: 32 | Y23: 0 | Z23: ALEETT
A24: 14:30:00 | C24: 50 | F24: 50 | I24: 34 | L24: 50 | O24: 50 | W24: 0.5104166667 | X24: 34 | Y24: 49 | Z24: SPIRIT 38
A25: 14:45:00 | C25: 50 | F25: 50 | I25: 34 | L25: 50 | O25: 50 | W25: 0 | X25: 35 | Y25: 0 | Z25: GMC38EYBENS
A26: 15:00:00 | C26: 50 | F26: 50 | I26: 34 | L26: 50 | O26: 50 | W26: 0 | X26: 36 | Y26: 0 | Z26: PETANQUE
A27: 15:15:00 | C27: 50 | F27: 50 | I27: 34 | L27: 50 | O27: 50 | W27: 0 | X27: 37 | Y27: 0 | Z27: HBC2E
A28: 15:30:00 | C28: 50 | F28: 50 | I28: 34 | L28: 50 | O28: 50 | W28: 0 | X28: 38 | Y28: 0 | Z28: -
A29: 15:45:00 | C29: 50 | F29: 50 | I29: 34 | L29: 50 | O29: 50 | W29: 0 | X29: 39 | Y29: 0 | Z29: -
A30: 16:00:00 | C30: 50 | F30: 50 | I30: 34 | L30: 50 | O30: 50 | W30: =Y30*15/1440 -> 0.5 | X30: 50 | Y30: 48 | Z30: SCOLAIRE
A31: 16:15:00 | C31: 50 | F31: 50 | I31: 34 | L31: 50 | O31: 50 | W31: 0 | X31: 51 | Y31: 0 | Z31: Sport Passion
A32: 16:30:00 | C32: 50 | F32: 50 | I32: 34 | L32: 50 | O32: 50 | W32: 0 | X32: 52 | Y32: 0 | Z32: Péri Scolaire
A33: 16:45:00 | C33: v | F33: v | I33: 19 | L33: v | O33: v | W33: 0 | X33: 53 | Y33: 0 | Z33: Crêche Familiale
A34: 17:00:00 | C34: v | F34: v | I34: 19 | L34: v | O34: v | W34: 0 | X34: 54 | Y34: 0 | Z34: =INDEX(UTILISATEURS,MATCH(X34,RefUtil,0),2) -> Rel Ass Matern
A35: 17:15:00 | C35: v | F35: v | I35: 19 | L35: v | O35: v | W35: 0 | X35: 55 | Y35: 0 | Z35: ?Pôle Enfance
A36: 17:30:00 | C36: v | F36: v | I36: 19 | L36: v | O36: v | W36: 0 | X36: 56 | Y36: 0 | Z36: Anim. Municip.
A37: 17:45:00 | C37: v | F37: 11 | I37: v | L37: v | O37: 11 | W37: 0 | X37: 57 | Y37: 0 | Z37: Crêche P Chose
A38: 18:00:00 | C38: v | F38: 11 | I38: v | L38: v | O38: 11 | W38: 0 | X38: 58 | Y38: 0 | Z38: 0
A39: 18:15:00 | C39: v | F39: 11 | I39: 4 | L39: 4 | O39: 11 | W39: 0 | X39: 59 | Y39: 0 | Z39: Police Municip
A40: 18:30:00 | C40: v | F40: 11 | I40: 4 | L40: 4 | O40: 11 | W40: 0 | X40: 60 | Y40: 0 | Z40: 0
A41: 18:45:00 | C41: 19 | F41: 11 | I41: 4 | L41: 4 | O41: 11 | W41: 0 | X41: 61 | Y41: 0 | Z41: -
A42: 19:00:00 | C42: 19 | F42: 11 | I42: 4 | L42: 4 | O42: 11 | W42: 0 | X42: 62 | Y42: 0 | Z42: EN ATTENTE
A43: 19:15:00 | C43: 19 | F43: 11 | I43: 4 | L43: 28 | O43: 11 | W43: 0 | X43: 63 | Y43: 0
A44: 19:30:00 | C44: 19 | F44: 11 | I44: 4 | L44: 28 | O44: 11 | W44: 0 | X44: 100 | Y44: 0 | Z44: POISAT
A45: 19:45:00 | C45: 34 | F45: 28 | I45: 4 | L45: 28 | O45: 30 | W45: 0 | X45: 101 | Y45: 0 | Z45: ECHIROLLES
A46: 20:00:00 | C46: 34 | F46: 28 | I46: 4 | L46: 28 | O46: 30 | W46: 0.1875 | X46: 102 | Y46: 18 | Z46: H.P.
A47: 20:15:00 | C47: 34 | F47: 28 | I47: 4 | L47: 28 | O47: 30 | W47: 0 | X47: 103 | Y47: 0 | Z47: I.M.E.
A48: 20:30:00 | C48: 34 | F48: 28 | I48: 4 | L48: 28 | O48: 30 | W48: 0 | X48: 104 | Y48: 0 | Z48: 0
A49: 20:45:00 | C49: 34 | F49: 28 | I49: 4 | L49: 28 | O49: 30 | W49: 0 | X49: 105 | Y49: 0 | Z49: Gendarm. Eybens
A50: 21:00:00 | C50: 34 | F50: 28 | I50: 34 | L50: 28 | O50: 30 | W50: 0 | X50: 106 | Y50: 0 | Z50: 0
A51: 21:15:00 | C51: 34 | F51: 28 | I51: 34 | L51: v | O51: 30 | W51: 0 | X51: 107 | Y51: 0 | Z51: D.Country
A52: 21:30:00 | C52: 34 | F52: 28 | I52: 34 | L52: v | O52: 30 | W52: 0 | X52: 108 | Y52: 0 | Z52: CE SOPRA
A53: 21:45:00 | C53: 34 | F53: v | I53: 34 | L53: v | O53: 30 | W53: 0 | X53: 109 | Y53: 0 | Z53: ASCE
A54: 22:00:00 | C54: 34 | F54: v | I54: 34 | L54: v | O54: 30 | W54: 0 | X54: 110 | Y54: 0 | Z54: HARMONIE EYBENS
A55: 22:15:00 | C55: 34 | F55: v | I55: 34 | L55: v | O55: v | W55: 0 | X55: 111 | Y55: 0 | Z55: 0
A56: 22:30:00 | C56: 34 | F56: v | I56: 34 | L56: v | O56: v
W58: =Y58*15/1440 -> 2.333333333 | Y58: =SUM(Y2:Y57) -> 224
A59: 00:15:00 | S59: Page N° | T59: =VLOOKUP($U$1,EQUIPEMENT,3) -> 3

Sheet D
A1: =INDEX(EQUIPEMENT,MATCH($U$1,ID,0),4) -> D | B1: =SAISON -> 2019-2020 | E1: =INDEX(EQUIPEMENT,MATCH($U$1,ID,0),2) -> FERNAND FAIVRE - salle 2ème Etage | U1: D | W1: Hr | X1: REF | Y1: NB 1/4 H | Z1: NOMS
A2: 09:00:00 | B2: Lundi | E2: Mardi | H2: Mercredi | K2: Jeudi | N2: Vendredi | Q2: Samedi | T2: Dimanche | W2: =Y2*15/1440 -> 0 | X2: 1 | Y2: =COUNTIF($B$3:$V$56,X2) -> 0 | Z2: =INDEX(UTILISATEURS,MATCH(X2,RefUtil,0),2) -> OMS
A3: =+A2+$A$59 -> 09:15:00 | C3: v | F3: v | I3: v | L3: 59 | O3: v | R3: v | W3: =Y3*15/1440 -> 0 | X3: 3 | Y3: =COUNTIF($B$3:$V$56,X3) -> 0 | Z3: J.B.E.
A4: 09:30:00 | C4: v | F4: v | I4: v | L4: 59 | O4: v | R4: v | W4: 0 | X4: 4 | Y4: 0 | Z4: GYM LOISIR
A5: 09:45:00 | C5: v | F5: 100 | I5: v | L5: 59 | O5: v | R5: v | W5: 0 | X5: 5 | Y5: 0 | Z5: BASKET
A6: 10:00:00 | C6: v | F6: 100 | I6: v | L6: 59 | O6: v | R6: v | W6: 0 | X6: 7 | Y6: 0 | Z6: CYCLOS
A7: 10:15:00 | C7: v | F7: 100 | I7: v | L7: 59 | O7: v | R7: v | W7: 0 | X7: 9 | Y7: 0 | Z7: GAULE
A8: 10:30:00 | C8: v | F8: 100 | I8: v | L8: 59 | O8: v | R8: v | W8: 0 | X8: 10 | Y8: 0 | Z8: JUDO
A9: 10:45:00 | C9: v | F9: 100 | I9: v | L9: 59 | O9: v | R9: v | W9: 0 | X9: 11 | Y9: 0 | Z9: LUTTE
A10: 11:00:00 | C10: v | F10: 100 | I10: v | L10: 59 | O10: v | R10: v | W10: 0 | X10: 14 | Y10: 0 | Z10: T C D
A11: 11:15:00 | C11: v | F11: v | I11: v | L11: 59 | O11: v | R11: v | W11: 0 | X11: 15 | Y11: 0 | Z11: TENNIS (2)
A12: 11:30:00 | C12: v | F12: v | I12: v | L12: 59 | O12: v | R12: v | W12: 0 | X12: 16 | Y12: 0 | Z12: CIRQUE (1)
A13: 11:45:00 | C13: v | F13: v | I13: v | L13: 59 | O13: v | R13: v | W13: 0 | X13: 17 | Y13: 0 | Z13: TAI JITSU
A14: 12:00:00 | C14: v | F14: v | I14: v | L14: 59 | O14: v | R14: v | W14: 0.1354166667 | X14: 19 | Y14: 13 | Z14: G.VOLONTAIRE
A15: 12:15:00 | C15: v | F15: v | I15: v | L15: v | O15: v | R15: v | W15: 0 | X15: 20 | Y15: 0 | Z15: DIAGONALE
A16: 12:30:00 | C16: v | F16: v | I16: v | L16: v | O16: v | R16: v | W16: 0 | X16: 21 | Y16: 0 | Z16: A.C.E (1)
A17: 12:45:00 | C17: v | F17: v | I17: v | L17: v | O17: v | R17: v | W17: 0 | X17: 23 | Y17: 0 | Z17: ESCALADE
A18: 13:00:00 | C18: v | F18: v | I18: v | L18: v | O18: v | R18: v | W18: 0 | X18: 24 | Y18: 0 | Z18: ARCHERS
A19: 13:15:00 | C19: v | F19: v | I19: v | L19: v | O19: v | R19: v | W19: 0 | X19: 27 | Y19: 0 | Z19: O.C.E
A20: 13:30:00 | C20: v | F20: v | I20: v | L20: v | O20: v | R20: v | W20: 0 | X20: 28 | Y20: 0 | Z20: LAI MUOI
A21: 13:45:00 | C21: v | F21: v | I21: v | L21: v | O21: v | R21: v | W21: 0.2083333333 | X21: 30 | Y21: 20 | Z21: TAEKWONDO
A22: 14:00:00 | C22: v | F22: v | I22: v | L22: v | O22: v | R22: v | W22: 0 | X22: 31 | Y22: 0 | Z22: E.S.A.G.A.M.I
A23: 14:15:00 | C23: v | F23: v | I23: v | L23: v | O23: v | R23: v | W23: 0 | X23: 32 | Y23: 0 | Z23: ALEETT
A24: 14:30:00 | C24: v | F24: v | I24: v | L24: v | O24: v | R24: v | W24: 0 | X24: 34 | Y24: 0 | Z24: SPIRIT 38
A25: 14:45:00 | C25: v | F25: v | I25: v | L25: v | O25: v | R25: v | W25: 0 | X25: 35 | Y25: 0 | Z25: GMC38EYBENS
A26: 15:00:00 | C26: v | F26: v | I26: v | L26: v | O26: v | R26: v | W26: 0 | X26: 36 | Y26: 0 | Z26: PETANQUE
A27: 15:15:00 | C27: v | F27: v | I27: v | L27: v | O27: v | R27: v | W27: 0 | X27: 37 | Y27: 0 | Z27: HBC2E
A28: 15:30:00 | C28: v | F28: v | I28: v | L28: v | O28: v | R28: v | W28: 0 | X28: 38 | Y28: 0 | Z28: -
A29: 15:45:00 | C29: v | F29: v | I29: v | L29: v | O29: v | R29: v | W29: 0 | X29: 39 | Y29: 0 | Z29: -
A30: 16:00:00 | C30: v | F30: v | I30: v | L30: v | O30: v | R30: v | W30: =Y30*15/1440 -> 0 | X30: 50 | Y30: 0 | Z30: SCOLAIRE
A31: 16:15:00 | C31: v | F31: v | I31: v | L31: v | O31: v | R31: v | W31: 0 | X31: 51 | Y31: 0 | Z31: Sport Passion
A32: 16:30:00 | C32: v | F32: v | I32: v | L32: v | O32: v | R32: v | W32: 0 | X32: 52 | Y32: 0 | Z32: Péri Scolaire
A33: 16:45:00 | C33: v | F33: v | I33: v | L33: v | O33: v | R33: v | W33: 0 | X33: 53 | Y33: 0 | Z33: Crêche Familiale
A34: 17:00:00 | C34: v | F34: v | I34: v | L34: v | O34: v | R34: v | W34: 0 | X34: 54 | Y34: 0 | Z34: =INDEX(UTILISATEURS,MATCH(X34,RefUtil,0),2) -> Rel Ass Matern
A35: 17:15:00 | C35: v | F35: v | I35: v | L35: v | O35: v | R35: v | W35: 0 | X35: 55 | Y35: 0 | Z35: ?Pôle Enfance
A36: 17:30:00 | C36: v | F36: v | I36: v | L36: v | O36: v | R36: v | W36: 0 | X36: 56 | Y36: 0 | Z36: Anim. Municip.
A37: 17:45:00 | C37: v | F37: v | I37: v | L37: v | O37: 100 | R37: v | W37: 0 | X37: 57 | Y37: 0 | Z37: Crêche P Chose
A38: 18:00:00 | C38: v | F38: v | I38: v | L38: v | O38: 100 | R38: v | W38: 0 | X38: 58 | Y38: 0 | Z38: 0
A39: 18:15:00 | C39: v | F39: v | I39: v | L39: 19 | O39: 100 | R39: v | W39: 0.125 | X39: 59 | Y39: 12 | Z39: Police Municip
A40: 18:30:00 | C40: v | F40: v | I40: v | L40: 19 | O40: 100 | R40: v | W40: 0 | X40: 60 | Y40: 0 | Z40: 0
A41: 18:45:00 | C41: 30 | F41: 19 | I41: v | L41: 19 | O41: 100 | R41: v | W41: 0 | X41: 61 | Y41: 0 | Z41: -
A42: 19:00:00 | C42: 30 | F42: 19 | I42: v | L42: 19 | O42: 100 | R42: v | W42: 0 | X42: 62 | Y42: 0 | Z42: EN ATTENTE
A43: 19:15:00 | C43: 30 | F43: 19 | I43: 30 | L43: 19 | O43: 100 | R43: v | W43: 0 | X43: 63 | Y43: 0
A44: 19:30:00 | C44: 30 | F44: 19 | I44: 30 | L44: 19 | O44: 100 | R44: v | W44: 0.25 | X44: 100 | Y44: 24 | Z44: POISAT
A45: 19:45:00 | C45: 30 | F45: v | I45: 30 | L45: 19 | O45: 100 | R45: v | W45: 0 | X45: 101 | Y45: 0 | Z45: ECHIROLLES
A46: 20:00:00 | C46: 30 | F46: v | I46: 30 | L46: 19 | O46: 100 | R46: v | W46: 0 | X46: 102 | Y46: 0 | Z46: H.P.
A47: 20:15:00 | C47: 30 | F47: v | I47: 30 | L47: 19 | O47: 100 | R47: v | W47: 0 | X47: 103 | Y47: 0 | Z47: I.M.E.
A48: 20:30:00 | C48: 30 | F48: v | I48: 30 | L48: v | O48: 100 | R48: v | W48: 0 | X48: 104 | Y48: 0 | Z48: 0
A49: 20:45:00 | C49: 30 | F49: v | I49: 30 | L49: v | O49: 100 | R49: v | W49: 0 | X49: 105 | Y49: 0 | Z49: Gendarm. Eybens
A50: 21:00:00 | C50: 30 | F50: v | I50: 30 | L50: v | O50: 100 | R50: v | W50: 0 | X50: 106 | Y50: 0 | Z50: 0
A51: 21:15:00 | C51: 30 | F51: v | I51: v | L51: v | O51: 100 | R51: v | W51: 0 | X51: 107 | Y51: 0 | Z51: D.Country
A52: 21:30:00 | C52: 30 | F52: v | I52: v | L52: v | O52: 100 | R52: v | W52: 0 | X52: 108 | Y52: 0 | Z52: CE SOPRA
A53: 21:45:00 | C53: v | F53: v | I53: v | L53: v | O53: 100 | R53: v | W53: 0 | X53: 109 | Y53: 0 | Z53: ASCE
A54: 22:00:00 | C54: v | F54: v | I54: v | L54: v | O54: 100 | R54: v | W54: 0 | X54: 110 | Y54: 0 | Z54: HARMONIE EYBENS
A55: 22:15:00 | C55: v | F55: v | I55: v | L55: v | O55: v | R55: v | W55: 0 | X55: 111 | Y55: 0 | Z55: 0
A56: 22:30:00 | C56: v | F56: v | I56: v | L56: v | O56: v | R56: v
W58: =Y58*15/1440 -> 0.71875 | Y58: =SUM(Y2:Y57) -> 69
A59: 00:15:00 | S59: Page N° | T59: =VLOOKUP($U$1,EQUIPEMENT,3) -> 4

Sheet E
A1: =INDEX(EQUIPEMENT,MATCH($U$1,ID,0),4) -> E | B1: =SAISON -> 2019-2020 | E1: =INDEX(EQUIPEMENT,MATCH($U$1,ID,0),2) -> PREAU Ecole du Bourg | U1: E | W1: Hr | X1: REF | Y1: NB 1/4 H | Z1: NOMS
A2: 09:00:00 | B2: Lundi | E2: Mardi | H2: Mercredi | K2: Jeudi | N2: Vendredi | Q2: Samedi | T2: Dimanche | W2: =Y2*15/1440 -> 0 | X2: 1 | Y2: =COUNTIF($B$3:$V$56,X2) -> 0 | Z2: =INDEX(UTILISATEURS,MATCH(X2,RefUtil,0),2) -> OMS
A3: =+A2+$A$59 -> 09:15:00 | C3: 50 | F3: 50 | I3: v | L3: 50 | O3: 50 | W3: =Y3*15/1440 -> 0 | X3: 3 | Y3: =COUNTIF($B$3:$V$56,X3) -> 0 | Z3: J.B.E.
A4: 09:30:00 | C4: 50 | F4: 50 | I4: v | L4: 50 | O4: 50 | W4: 0.2291666667 | X4: 4 | Y4: 22 | Z4: GYM LOISIR
A5: 09:45:00 | C5: 50 | F5: 50 | I5: v | L5: 50 | O5: 50 | W5: 0 | X5: 5 | Y5: 0 | Z5: BASKET
A6: 10:00:00 | C6: 50 | F6: 50 | I6: v | L6: 50 | O6: 50 | W6: 0 | X6: 7 | Y6: 0 | Z6: CYCLOS
A7: 10:15:00 | C7: 50 | F7: 50 | I7: v | L7: 50 | O7: 50 | W7: 0 | X7: 9 | Y7: 0 | Z7: GAULE
A8: 10:30:00 | C8: 50 | F8: 50 | I8: v | L8: 50 | O8: 50 | W8: 0 | X8: 10 | Y8: 0 | Z8: JUDO
A9: 10:45:00 | C9: 50 | F9: 50 | I9: v | L9: 50 | O9: 50 | W9: 0 | X9: 11 | Y9: 0 | Z9: LUTTE
A10: 11:00:00 | C10: 50 | F10: 50 | I10: v | L10: 50 | O10: 50 | W10: 0 | X10: 14 | Y10: 0 | Z10: T C D
A11: 11:15:00 | C11: 50 | F11: 50 | I11: v | L11: 50 | O11: 50 | W11: 0 | X11: 15 | Y11: 0 | Z11: TENNIS (2)
A12: 11:30:00 | C12: 50 | F12: 50 | I12: v | L12: 50 | O12: 50 | W12: 0 | X12: 16 | Y12: 0 | Z12: CIRQUE (1)
A13: 11:45:00 | C13: 52 | F13: 52 | I13: v | L13: 52 | O13: 52 | W13: 0 | X13: 17 | Y13: 0 | Z13: TAI JITSU
A14: 12:00:00 | C14: 52 | F14: 52 | I14: v | L14: 52 | O14: 52 | W14: 0.04166666667 | X14: 19 | Y14: 4 | Z14: G.VOLONTAIRE
A15: 12:15:00 | C15: 52 | F15: 52 | I15: v | L15: 52 | O15: 52 | W15: 0 | X15: 20 | Y15: 0 | Z15: DIAGONALE
A16: 12:30:00 | C16: 52 | F16: 52 | I16: v | L16: 52 | O16: 52 | W16: 0 | X16: 21 | Y16: 0 | Z16: A.C.E (1)
A17: 12:45:00 | C17: 52 | F17: 52 | I17: v | L17: 52 | O17: 52 | W17: 0 | X17: 23 | Y17: 0 | Z17: ESCALADE
A18: 13:00:00 | C18: 52 | F18: 52 | I18: v | L18: 52 | O18: 52 | W18: 0 | X18: 24 | Y18: 0 | Z18: ARCHERS
A19: 13:15:00 | C19: 52 | F19: 52 | I19: v | L19: 52 | O19: 52 | W19: 0 | X19: 27 | Y19: 0 | Z19: O.C.E
A20: 13:30:00 | C20: 52 | F20: 52 | I20: v | L20: 52 | O20: 52 | W20: 0 | X20: 28 | Y20: 0 | Z20: LAI MUOI
A21: 13:45:00 | C21: 52 | F21: 52 | I21: v | L21: 52 | O21: 52 | W21: 0 | X21: 30 | Y21: 0 | Z21: TAEKWONDO
A22: 14:00:00 | C22: v | F22: v | I22: v | L22: v | O22: v | W22: 0 | X22: 31 | Y22: 0 | Z22: E.S.A.G.A.M.I
A23: 14:15:00 | C23: 50 | F23: 50 | I23: v | L23: 50 | O23: 50 | W23: 0 | X23: 32 | Y23: 0 | Z23: ALEETT
A24: 14:30:00 | C24: 50 | F24: 50 | I24: v | L24: 50 | O24: 50 | W24: 0 | X24: 34 | Y24: 0 | Z24: SPIRIT 38
A25: 14:45:00 | C25: 50 | F25: 50 | I25: v | L25: 50 | O25: 50 | W25: 0 | X25: 35 | Y25: 0 | Z25: GMC38EYBENS
A26: 15:00:00 | C26: 50 | F26: 50 | I26: v | L26: 50 | O26: 50 | W26: 0 | X26: 36 | Y26: 0 | Z26: PETANQUE
A27: 15:15:00 | C27: 50 | F27: 50 | I27: v | L27: 50 | O27: 50 | W27: 0 | X27: 37 | Y27: 0 | Z27: HBC2E
A28: 15:30:00 | C28: 50 | F28: 50 | I28: v | L28: 50 | O28: 50 | W28: 0 | X28: 38 | Y28: 0 | Z28: -
A29: 15:45:00 | C29: 50 | F29: 50 | I29: v | L29: 50 | O29: 50 | W29: 0 | X29: 39 | Y29: 0 | Z29: -
A30: 16:00:00 | C30: 50 | F30: 50 | I30: v | L30: 50 | O30: 52 | W30: =Y30*15/1440 -> 0.8229166667 | X30: 50 | Y30: 79 | Z30: SCOLAIRE
A31: 16:15:00 | C31: 50 | F31: 50 | I31: v | L31: 50 | O31: 50 | W31: 0 | X31: 51 | Y31: 0 | Z31: Sport Passion
A32: 16:30:00 | C32: 50 | F32: 50 | I32: v | L32: 50 | O32: 50 | W32: 0.6354166667 | X32: 52 | Y32: 61 | Z32: Péri Scolaire
A33: 16:45:00 | C33: 52 | F33: 52 | I33: v | L33: 52 | O33: 52 | W33: 0 | X33: 53 | Y33: 0 | Z33: Crêche Familiale
A34: 17:00:00 | C34: 52 | F34: 52 | I34: v | L34: 52 | O34: 52 | W34: 0 | X34: 54 | Y34: 0 | Z34: =INDEX(UTILISATEURS,MATCH(X34,RefUtil,0),2) -> Rel Ass Matern
A35: 17:15:00 | C35: 52 | F35: 52 | I35: v | L35: 52 | O35: 52 | W35: 0 | X35: 55 | Y35: 0 | Z35: ?Pôle Enfance
A36: 17:30:00 | C36: 52 | F36: 52 | I36: v | L36: 52 | O36: 52 | W36: 0 | X36: 56 | Y36: 0 | Z36: Anim. Municip.
A37: 17:45:00 | C37: 52 | F37: 52 | I37: v | L37: 52 | O37: 52 | W37: 0 | X37: 57 | Y37: 0 | Z37: Crêche P Chose
A38: 18:00:00 | C38: 52 | F38: 52 | I38: v | L38: 52 | O38: 52 | W38: 0 | X38: 58 | Y38: 0 | Z38: 0
A39: 18:15:00 | C39: 4 | F39: v | I39: 4 | L39: v | O39: v | W39: 0 | X39: 59 | Y39: 0 | Z39: Police Municip
A40: 18:30:00 | C40: 4 | F40: v | I40: 4 | L40: v | O40: v | W40: 0 | X40: 60 | Y40: 0 | Z40: 0
A41: 18:45:00 | C41: 4 | F41: 4 | I41: 4 | L41: 19 | O41: 110 | W41: 0 | X41: 61 | Y41: 0 | Z41: -
A42: 19:00:00 | C42: 4 | F42: 4 | I42: 4 | L42: 19 | O42: 110 | W42: 0 | X42: 62 | Y42: 0 | Z42: EN ATTENTE
A43: 19:15:00 | C43: 4 | F43: 4 | I43: 4 | L43: 19 | O43: 110 | W43: 0 | X43: 63 | Y43: 0
A44: 19:30:00 | C44: 4 | F44: 4 | I44: 4 | L44: 19 | O44: 110 | W44: 0 | X44: 100 | Y44: 0 | Z44: POISAT
A45: 19:45:00 | C45: 107 | F45: 4 | I45: 4 | L45: 107 | O45: 110 | W45: 0 | X45: 101 | Y45: 0 | Z45: ECHIROLLES
A46: 20:00:00 | C46: 107 | F46: 4 | I46: 4 | L46: 107 | O46: 110 | W46: 0 | X46: 102 | Y46: 0 | Z46: H.P.
A47: 20:15:00 | C47: 107 | F47: 4 | I47: v | L47: 107 | O47: 110 | W47: 0 | X47: 103 | Y47: 0 | Z47: I.M.E.
A48: 20:30:00 | C48: 107 | F48: 4 | I48: v | L48: 107 | O48: 110 | W48: 0 | X48: 104 | Y48: 0 | Z48: 0
A49: 20:45:00 | C49: 107 | F49: v | I49: v | L49: 107 | O49: 110 | W49: 0 | X49: 105 | Y49: 0 | Z49: Gendarm. Eybens
A50: 21:00:00 | C50: 107 | F50: v | I50: v | L50: 107 | O50: 110 | W50: 0 | X50: 106 | Y50: 0 | Z50: 0 | AB50: s
A51: 21:15:00 | C51: v | F51: v | I51: v | L51: 107 | O51: 110 | W51: 0.1458333333 | X51: 107 | Y51: 14 | Z51: D.Country
A52: 21:30:00 | C52: v | F52: v | I52: v | L52: 107 | O52: 110 | W52: 0 | X52: 108 | Y52: 0 | Z52: CE SOPRA
A53: 21:45:00 | C53: v | F53: v | I53: v | L53: v | O53: 110 | W53: 0 | X53: 109 | Y53: 0 | Z53: ASCE
A54: 22:00:00 | C54: v | F54: v | I54: v | L54: v | O54: 110 | W54: 0.1666666667 | X54: 110 | Y54: 16 | Z54: HARMONIE EYBENS
A55: 22:15:00 | C55: v | F55: v | I55: v | L55: v | O55: 110 | W55: 0 | X55: 111 | Y55: 0 | Z55: 0
A56: 22:30:00 | C56: v | F56: v | I56: v | L56: v | O56: 110
W58: =Y58*15/1440 -> 2.041666667 | Y58: =SUM(Y2:Y57) -> 196
A59: 00:15:00 | S59: Page N° | T59: =VLOOKUP($U$1,EQUIPEMENT,3) -> 5

Sheet F
A1: =INDEX(EQUIPEMENT,MATCH($U$1,ID,0),4) -> F | B1: =SAISON -> 2019-2020 | E1: =INDEX(EQUIPEMENT,MATCH($U$1,ID,0),2) -> Gymnase Roger JOURNET | U1: F | W1: Hr | X1: REF | Y1: NB 1/4 H | Z1: NOMS
A2: 09:00:00 | B2: Lundi | E2: Mardi | H2: Mercredi | K2: Jeudi | N2: Vendredi | Q2: Samedi | T2: Dimanche | W2: =Y2*15/1440 -> 0 | X2: 1 | Y2: =COUNTIF($B$3:$V$56,X2) -> 0 | Z2: =INDEX(UTILISATEURS,MATCH(X2,RefUtil,0),2) -> OMS
A3: =+A2+$A$59 -> 09:15:00 | C3: 50 | F3: 50 | I3: v | L3: 50 | O3: 50 | R3: v | W3: =Y3*15/1440 -> 0 | X3: 3 | Y3: =COUNTIF($B$3:$V$56,X3) -> 0 | Z3: J.B.E.
A4: 09:30:00 | C4: 50 | F4: 50 | I4: v | L4: 50 | O4: 50 | R4: v | W4: 0 | X4: 4 | Y4: 0 | Z4: GYM LOISIR
A5: 09:45:00 | C5: 50 | F5: 50 | I5: 51 | L5: 50 | O5: 50 | R5: 5 | W5: 0.0625 | X5: 5 | Y5: 6 | Z5: BASKET
A6: 10:00:00 | C6: 50 | F6: 50 | I6: 51 | L6: 50 | O6: 50 | R6: 5 | W6: 0 | X6: 7 | Y6: 0 | Z6: CYCLOS
A7: 10:15:00 | C7: 50 | F7: 50 | I7: 51 | L7: 50 | O7: 50 | R7: 5 | W7: 0 | X7: 9 | Y7: 0 | Z7: GAULE
A8: 10:30:00 | C8: 50 | F8: 50 | I8: 51 | L8: 50 | O8: 50 | R8: 5 | W8: 0 | X8: 10 | Y8: 0 | Z8: JUDO
A9: 10:45:00 | C9: 50 | F9: 50 | I9: 51 | L9: 50 | O9: 50 | R9: 5 | W9: 0 | X9: 11 | Y9: 0 | Z9: LUTTE
A10: 11:00:00 | C10: 50 | F10: 50 | I10: 51 | L10: 50 | O10: 50 | R10: 5 | W10: 0 | X10: 14 | Y10: 0 | Z10: T C D
A11: 11:15:00 | C11: 50 | F11: 50 | I11: 51 | L11: 50 | O11: 50 | R11: 37 | W11: 0 | X11: 15 | Y11: 0 | Z11: TENNIS (2)
A12: 11:30:00 | C12: 50 | F12: 50 | I12: 51 | L12: 50 | O12: 50 | R12: 37 | W12: 0 | X12: 16 | Y12: 0 | Z12: CIRQUE (1)
A13: 11:45:00 | C13: 50 | F13: 50 | I13: 51 | L13: 50 | O13: 50 | R13: 37 | W13: 0 | X13: 17 | Y13: 0 | Z13: TAI JITSU
A14: 12:00:00 | C14: v | F14: v | I14: 51 | L14: V | O14: V | R14: 37 | W14: 0 | X14: 19 | Y14: 0 | Z14: G.VOLONTAIRE
A15: 12:15:00 | C15: v | F15: V | I15: v | L15: V | O15: V | R15: V | W15: 0 | X15: 20 | Y15: 0 | Z15: DIAGONALE
A16: 12:30:00 | C16: v | F16: V | I16: V | L16: V | O16: V | R16: V | W16: 0 | X16: 21 | Y16: 0 | Z16: A.C.E (1)
A17: 12:45:00 | C17: v | F17: V | I17: V | L17: V | O17: V | R17: V | W17: 0 | X17: 23 | Y17: 0 | Z17: ESCALADE
A18: 13:00:00 | C18: v | F18: V | I18: V | L18: V | O18: V | R18: V | W18: 0 | X18: 24 | Y18: 0 | Z18: ARCHERS
A19: 13:15:00 | C19: v | F19: V | I19: V | L19: V | O19: V | R19: V | W19: 0 | X19: 27 | Y19: 0 | Z19: O.C.E
A20: 13:30:00 | C20: v | F20: V | I20: V | L20: V | O20: V | R20: V | W20: 0 | X20: 28 | Y20: 0 | Z20: LAI MUOI
A21: 13:45:00 | C21: v | F21: v | I21: v | L21: v | O21: v | R21: V | W21: 0 | X21: 30 | Y21: 0 | Z21: TAEKWONDO
A22: 14:00:00 | C22: 50 | F22: 50 | I22: v | L22: 50 | O22: 50 | R22: V | W22: 0 | X22: 31 | Y22: 0 | Z22: E.S.A.G.A.M.I
A23: 14:15:00 | C23: 50 | F23: 50 | I23: 37 | L23: 50 | O23: 50 | R23: V | W23: 0 | X23: 32 | Y23: 0 | Z23: ALEETT
A24: 14:30:00 | C24: 50 | F24: 50 | I24: 37 | L24: 50 | O24: 50 | R24: V | W24: 0 | X24: 34 | Y24: 0 | Z24: SPIRIT 38
A25: 14:45:00 | C25: 50 | F25: 50 | I25: 37 | L25: 50 | O25: 50 | R25: V | W25: 0 | X25: 35 | Y25: 0 | Z25: GMC38EYBENS
A26: 15:00:00 | C26: 50 | F26: 50 | I26: 37 | L26: 50 | O26: 50 | R26: V | W26: 0 | X26: 36 | Y26: 0 | Z26: PETANQUE
A27: 15:15:00 | C27: 50 | F27: 50 | I27: 37 | L27: 50 | O27: 50 | R27: V | W27: 1.229166667 | X27: 37 | Y27: 118 | Z27: HBC2E
A28: 15:30:00 | C28: 50 | F28: 50 | I28: 37 | L28: 50 | O28: 50 | R28: V | W28: 0 | X28: 38 | Y28: 0 | Z28: -
A29: 15:45:00 | C29: 50 | F29: 50 | I29: 37 | L29: 50 | O29: 50 | R29: V | W29: 0 | X29: 39 | Y29: 0 | Z29: -
A30: 16:00:00 | C30: 50 | F30: 50 | I30: 37 | L30: 50 | O30: 50 | R30: V | W30: =Y30*15/1440 -> 0.9166666667 | X30: 50 | Y30: 88 | Z30: SCOLAIRE
A31: 16:15:00 | C31: 50 | F31: 50 | I31: 37 | L31: 50 | O31: 50 | R31: V | W31: 0.1041666667 | X31: 51 | Y31: 10 | Z31: Sport Passion
A32: 16:30:00 | C32: 50 | F32: 50 | I32: 37 | L32: 50 | O32: 50 | R32: V | W32: 0.0625 | X32: 52 | Y32: 6 | Z32: Péri Scolaire
A33: 16:45:00 | C33: v | F33: 52 | I33: 37 | L33: v | O33: 37 | R33: V | W33: 0 | X33: 53 | Y33: 0 | Z33: Crêche Familiale
A34: 17:00:00 | C34: v | F34: 52 | I34: 37 | L34: v | O34: 37 | R34: V | W34: 0 | X34: 54 | Y34: 0 | Z34: =INDEX(UTILISATEURS,MATCH(X34,RefUtil,0),2) -> Rel Ass Matern
A35: 17:15:00 | C35: v | F35: 52 | I35: 37 | L35: v | O35: 37 | R35: V | W35: 0 | X35: 55 | Y35: 0 | Z35: ?Pôle Enfance
A36: 17:30:00 | C36: v | F36: 52 | I36: 37 | L36: v | O36: 37 | R36: V | W36: 0 | X36: 56 | Y36: 0 | Z36: Anim. Municip.
A37: 17:45:00 | C37: 37 | F37: 52 | I37: 37 | L37: 37 | O37: 37 | R37: V | W37: 0 | X37: 57 | Y37: 0 | Z37: Crêche P Chose
A38: 18:00:00 | C38: 37 | F38: 52 | I38: 37 | L38: 37 | O38: 37 | R38: V | W38: 0 | X38: 58 | Y38: 0 | Z38: 0
A39: 18:15:00 | C39: 37 | F39: 37 | I39: 37 | L39: 37 | O39: 37 | R39: V | W39: 0 | X39: 59 | Y39: 0 | Z39: Police Municip
A40: 18:30:00 | C40: 37 | F40: 37 | I40: 37 | L40: 37 | O40: 37 | R40: V | W40: 0 | X40: 60 | Y40: 0 | Z40: 0
A41: 18:45:00 | C41: 37 | F41: 37 | I41: 37 | L41: 37 | O41: 37 | R41: V | W41: 0 | X41: 61 | Y41: 0 | Z41: -
A42: 19:00:00 | C42: 37 | F42: 37 | I42: 37 | L42: 37 | O42: 37 | R42: V | W42: 0 | X42: 62 | Y42: 0 | Z42: EN ATTENTE
A43: 19:15:00 | C43: 37 | F43: 37 | I43: 37 | L43: 37 | O43: 37 | R43: V | W43: 0 | X43: 63 | Y43: 0
A44: 19:30:00 | C44: 37 | F44: 37 | I44: 37 | L44: 37 | O44: 37 | R44: V | W44: 0 | X44: 100 | Y44: 0 | Z44: POISAT
A45: 19:45:00 | C45: 37 | F45: 37 | I45: 37 | L45: 37 | O45: 37 | R45: V | W45: 0 | X45: 101 | Y45: 0 | Z45: ECHIROLLES
A46: 20:00:00 | C46: 37 | F46: 37 | I46: 37 | L46: 37 | O46: 37 | R46: V | W46: 0 | X46: 102 | Y46: 0 | Z46: H.P.
A47: 20:15:00 | C47: 37 | F47: 37 | I47: 37 | L47: 37 | O47: 37 | R47: V | W47: 0 | X47: 103 | Y47: 0 | Z47: I.M.E.
A48: 20:30:00 | C48: 37 | F48: 37 | I48: 37 | L48: 37 | O48: 37 | R48: V | W48: 0 | X48: 104 | Y48: 0 | Z48: 0
A49: 20:45:00 | C49: 37 | F49: 37 | I49: 37 | L49: 37 | O49: 37 | R49: V | W49: 0 | X49: 105 | Y49: 0 | Z49: Gendarm. Eybens
A50: 21:00:00 | C50: 37 | F50: 37 | I50: 37 | L50: 37 | O50: 37 | R50: V | W50: 0 | X50: 106 | Y50: 0 | Z50: 0
A51: 21:15:00 | C51: 37 | F51: 37 | I51: 37 | L51: 37 | O51: 37 | R51: V | W51: 0 | X51: 107 | Y51: 0 | Z51: D.Country
A52: 21:30:00 | C52: 37 | F52: 37 | I52: 37 | L52: 37 | O52: 37 | R52: V | W52: 0 | X52: 108 | Y52: 0 | Z52: CE SOPRA
A53: 21:45:00 | C53: 37 | F53: 37 | I53: 37 | L53: 37 | O53: 37 | R53: V | W53: 0 | X53: 109 | Y53: 0 | Z53: ASCE
A54: 22:00:00 | C54: 37 | F54: 37 | I54: 37 | L54: 37 | O54: 37 | R54: V | W54: 0 | X54: 110 | Y54: 0 | Z54: HARMONIE EYBENS
A55: 22:15:00 | C55: 37 | F55: 37 | I55: v | L55: 37 | O55: 37 | R55: V | W55: 0 | X55: 111 | Y55: 0 | Z55: 0
A56: 22:30:00 | C56: 37 | F56: 37 | I56: v | L56: 37 | O56: 37 | R56: V
R57: V
W58: =Y58*15/1440 -> 2.375 | Y58: =SUM(Y2:Y57) -> 228
A59: 00:15:00 | S59: Page N° | T59: =VLOOKUP($U$1,EQUIPEMENT,3) -> 6

Sheet G
A1: =INDEX(EQUIPEMENT,MATCH($U$1,ID,0),4) -> G | B1: =SAISON -> 2019-2020 | E1: =INDEX(EQUIPEMENT,MATCH($U$1,ID,0),2) -> Gymnase Fernand FAIVRE - Type C | U1: G | W1: Hr | X1: Ref | Y1: NB 1/4 H | Z1: NOMS
A2: 09:00:00 | B2: Lundi | E2: Mardi | H2: Mercredi | K2: Jeudi | N2: Vendredi | Q2: Samedi | T2: Dimanche | W2: =Y2*15/1440 -> 0 | X2: 1 | Y2: =COUNTIF($B$3:$V$56,X2) -> 0 | Z2: =INDEX(UTILISATEURS,MATCH(X2,RefUtil,0),2) -> OMS
A3: =+A2+$A$59 -> 09:15:00 | C3: 100 | F3: 50 | I3: v | L3: 50 | O3: 50 | Q3: 31 | W3: =Y3*15/1440 -> 0 | X3: 3 | Y3: =COUNTIF($B$3:$V$56,X3) -> 0 | Z3: J.B.E.
A4: 09:30:00 | C4: 100 | F4: 50 | I4: v | L4: 50 | O4: 50 | Q4: 31 | W4: 0 | X4: 4 | Y4: 0 | Z4: GYM LOISIR
A5: 09:45:00 | C5: 100 | F5: 50 | I5: v | L5: 50 | O5: 50 | Q5: 31 | W5: 1.166666667 | X5: 5 | Y5: 112 | Z5: BASKET
A6: 10:00:00 | C6: 100 | F6: 50 | I6: v | L6: 50 | O6: 50 | Q6: 31 | W6: 0 | X6: 7 | Y6: 0 | Z6: CYCLOS
A7: 10:15:00 | C7: 100 | F7: 50 | I7: 5 | L7: 50 | O7: 50 | Q7: 31 | W7: 0 | X7: 9 | Y7: 0 | Z7: GAULE
A8: 10:30:00 | C8: 100 | F8: 50 | I8: 5 | L8: 50 | O8: 50 | Q8: 31 | W8: 0 | X8: 10 | Y8: 0 | Z8: JUDO
A9: 10:45:00 | C9: 100 | F9: 50 | I9: 5 | L9: 50 | O9: 50 | Q9: 31 | W9: 0 | X9: 11 | Y9: 0 | Z9: LUTTE
A10: 11:00:00 | C10: 100 | F10: 50 | I10: 5 | L10: 50 | O10: 50 | Q10: 31 | W10: 0 | X10: 14 | Y10: 0 | Z10: T C D
A11: 11:15:00 | C11: v | F11: 50 | I11: 5 | L11: 50 | O11: 50 | Q11: 31 | W11: 0 | X11: 15 | Y11: 0 | Z11: TENNIS (2)
A12: 11:30:00 | C12: v | F12: 50 | I12: 5 | L12: 50 | O12: 50 | Q12: 31 | W12: 0 | X12: 16 | Y12: 0 | Z12: CIRQUE (1)
A13: 11:45:00 | C13: v | F13: 50 | I13: 5 | L13: 50 | O13: 50 | Q13: 31 | W13: 0 | X13: 17 | Y13: 0 | Z13: TAI JITSU
A14: 12:00:00 | C14: V | F14: V | I14: 5 | L14: V | O14: V | Q14: 31 | W14: 0 | X14: 19 | Y14: 0 | Z14: G.VOLONTAIRE
A15: 12:15:00 | C15: v | F15: v | I15: v | L15: v | O15: 52 | Q15: 31 | W15: 0 | X15: 20 | Y15: 0 | Z15: DIAGONALE
A16: 12:30:00 | C16: v | F16: v | I16: v | L16: v | O16: 52 | Q16: v | W16: 0 | X16: 21 | Y16: 0 | Z16: A.C.E (1)
A17: 12:45:00 | C17: v | F17: v | I17: v | L17: v | O17: 52 | Q17: v | W17: 0 | X17: 23 | Y17: 0 | Z17: ESCALADE
A18: 13:00:00 | C18: v | F18: v | I18: v | L18: v | O18: 52 | Q18: v | W18: 0 | X18: 24 | Y18: 0 | Z18: ARCHERS
A19: 13:15:00 | C19: v | F19: v | I19: 5 | L19: v | O19: 52 | W19: 0 | X19: 27 | Y19: 0 | Z19: O.C.E
A20: 13:30:00 | C20: v | F20: v | I20: 5 | L20: v | O20: 52 | W20: 0 | X20: 28 | Y20: 0 | Z20: LAI MUOI
A21: 13:45:00 | C21: v | F21: 50 | I21: 5 | L21: 50 | O21: 50 | W21: 0 | X21: 30 | Y21: 0 | Z21: TAEKWONDO
A22: 14:00:00 | C22: 50 | F22: 50 | I22: 5 | L22: 50 | O22: 50 | W22: 0.1354166667 | X22: 31 | Y22: 13 | Z22: E.S.A.G.A.M.I
A23: 14:15:00 | C23: 50 | F23: 50 | I23: 5 | L23: 50 | O23: 50 | W23: 0 | X23: 32 | Y23: 0 | Z23: ALEETT
A24: 14:30:00 | C24: 50 | F24: 50 | I24: 5 | L24: 50 | O24: 50 | W24: 0 | X24: 34 | Y24: 0 | Z24: SPIRIT 38
A25: 14:45:00 | C25: 50 | F25: 50 | I25: 5 | L25: 50 | O25: 50 | W25: 0 | X25: 35 | Y25: 0 | Z25: GMC38EYBENS
A26: 15:00:00 | C26: 50 | F26: 50 | I26: 5 | L26: 50 | O26: 50 | W26: 0 | X26: 36 | Y26: 0 | Z26: PETANQUE
A27: 15:15:00 | C27: 50 | F27: 50 | I27: 5 | L27: 50 | O27: 50 | W27: 0 | X27: 37 | Y27: 0 | Z27: HBC2E
A28: 15:30:00 | C28: 50 | F28: 50 | I28: 5 | L28: 50 | O28: 50 | W28: 0 | X28: 38 | Y28: 0 | Z28: -
A29: 15:45:00 | C29: 50 | F29: 50 | I29: 5 | L29: 50 | O29: 50 | W29: 0 | X29: 39 | Y29: 0 | Z29: -
A30: 16:00:00 | C30: 50 | F30: 50 | I30: 5 | L30: 50 | O30: 50 | W30: =Y30*15/1440 -> 0.8333333333 | X30: 50 | Y30: 80 | Z30: SCOLAIRE
A31: 16:15:00 | C31: 50 | F31: 50 | I31: 5 | L31: 50 | O31: 50 | W31: 0 | X31: 51 | Y31: 0 | Z31: Sport Passion
A32: 16:30:00 | C32: 50 | F32: 50 | I32: 5 | L32: 50 | O32: 50 | W32: 0.125 | X32: 52 | Y32: 12 | Z32: Péri Scolaire
A33: 16:45:00 | C33: 100 | F33: v | I33: 5 | L33: 52 | O33: v | W33: 0 | X33: 53 | Y33: 0 | Z33: Crêche Familiale
A34: 17:00:00 | C34: 100 | F34: v | I34: 5 | L34: 52 | O34: v | W34: 0 | X34: 54 | Y34: 0 | Z34: =INDEX(UTILISATEURS,MATCH(X34,RefUtil,0),2) -> Rel Ass Matern
A35: 17:15:00 | C35: 100 | F35: v | I35: 5 | L35: 52 | O35: v | W35: 0 | X35: 55 | Y35: 0 | Z35: ?Pôle Enfance
A36: 17:30:00 | C36: 100 | F36: v | I36: 5 | L36: 52 | O36: v | W36: 0 | X36: 56 | Y36: 0 | Z36: Anim. Municip.
A37: 17:45:00 | C37: 100 | F37: 5 | I37: 5 | L37: 52 | O37: 5 | W37: 0 | X37: 57 | Y37: 0 | Z37: Crêche P Chose
A38: 18:00:00 | C38: 100 | F38: 5 | I38: 5 | L38: 52 | O38: 5 | W38: 0 | X38: 58 | Y38: 0 | Z38: 0
A39: 18:15:00 | C39: 100 | F39: 5 | I39: 5 | L39: 5 | O39: 5 | W39: 0 | X39: 59 | Y39: 0 | Z39: Police Municip
A40: 18:30:00 | C40: 100 | F40: 5 | I40: 5 | L40: 5 | O40: 5 | W40: 0 | X40: 60 | Y40: 0 | Z40: 0
A41: 18:45:00 | C41: 100 | F41: 5 | I41: 5 | L41: 5 | O41: 5 | W41: 0 | X41: 61 | Y41: 0 | Z41: -
A42: 19:00:00 | C42: 100 | F42: 5 | I42: 5 | L42: 5 | O42: 5 | W42: 0 | X42: 62 | Y42: 0 | Z42: EN ATTENTE
A43: 19:15:00 | C43: 100 | F43: 5 | I43: 5 | L43: 5 | O43: 5 | W43: 0 | X43: 63 | Y43: 0
A44: 19:30:00 | C44: 100 | F44: 5 | I44: 5 | L44: 5 | O44: 5 | W44: 0.25 | X44: 100 | Y44: 24 | Z44: POISAT
A45: 19:45:00 | C45: 100 | F45: 5 | I45: 5 | L45: 5 | O45: 5 | W45: 0 | X45: 101 | Y45: 0 | Z45: ECHIROLLES
A46: 20:00:00 | C46: 100 | F46: 5 | I46: 5 | L46: 5 | O46: 5 | W46: 0 | X46: 102 | Y46: 0 | Z46: H.P.
A47: 20:15:00 | C47: 100 | F47: 5 | I47: 5 | L47: 5 | O47: 5 | W47: 0 | X47: 103 | Y47: 0 | Z47: I.M.E.
A48: 20:30:00 | C48: 100 | F48: 5 | I48: 5 | L48: 5 | O48: 5 | W48: 0 | X48: 104 | Y48: 0 | Z48: 0
A49: 20:45:00 | C49: 5 | F49: 5 | I49: 5 | L49: 5 | O49: 5 | W49: 0 | X49: 105 | Y49: 0 | Z49: Gendarm. Eybens
A50: 21:00:00 | C50: 5 | F50: 5 | I50: 5 | L50: 5 | O50: 5 | W50: 0 | X50: 106 | Y50: 0 | Z50: 0
A51: 21:15:00 | C51: 5 | F51: 5 | I51: 5 | L51: 5 | O51: 5 | W51: 0 | X51: 107 | Y51: 0 | Z51: D.Country
A52: 21:30:00 | C52: 5 | F52: 5 | I52: 5 | L52: 5 | O52: 5 | W52: 0 | X52: 108 | Y52: 0 | Z52: CE SOPRA
A53: 21:45:00 | C53: 5 | F53: 5 | I53: 5 | L53: 5 | O53: 5 | W53: 0 | X53: 109 | Y53: 0 | Z53: ASCE
A54: 22:00:00 | C54: 5 | F54: 5 | I54: 5 | L54: 5 | O54: 5 | W54: 0 | X54: 110 | Y54: 0 | Z54: HARMONIE EYBENS
A55: 22:15:00 | C55: 5 | F55: 5 | I55: 5 | L55: 5 | O55: 5 | W55: 0 | X55: 111 | Y55: 0 | Z55: 0
A56: 22:30:00 | C56: 5 | F56: 5 | I56: 5 | L56: 5 | O56: 5 | W56: 0 | Y56: 0
W58: =Y58*15/1440 -> 2.510416667 | Y58: =SUM(Y2:Y57) -> 241
A59: 00:15:00 | S59: Page N° | T59: =VLOOKUP($U$1,EQUIPEMENT,3) -> 7

Sheet H
A1: =INDEX(EQUIPEMENT,MATCH($U$1,ID,0),4) -> H | B1: =SAISON -> 2019-2020 | E1: =INDEX(EQUIPEMENT,MATCH($U$1,ID,0),2) -> Gymnase Fernand FAIVRE - Type B | U1: H | W1: Hr | X1: REF | Y1: NB 1/4 H | Z1: NOMS
A2: 09:00:00 | B2: Lundi | E2: Mardi | H2: Mercredi | K2: Jeudi | N2: Vendredi | Q2: Samedi | T2: Dimanche | W2: =Y2*15/1440 -> 0 | X2: 1 | Y2: =COUNTIF($B$3:$V$56,X2) -> 0 | Z2: =INDEX(UTILISATEURS,MATCH(X2,RefUtil,0),2) -> OMS
A3: =+A2+$A$59 -> 09:15:00 | C3: 50 | F3: 50 | I3: v | L3: 50 | O3: 50 | R3: 31 | W3: =Y3*15/1440 -> 0 | X3: 3 | Y3: =COUNTIF($B$3:$V$56,X3) -> 0 | Z3: J.B.E.
A4: 09:30:00 | C4: 50 | F4: 50 | I4: v | L4: 50 | O4: 50 | R4: 31 | W4: 0.125 | X4: 4 | Y4: 12 | Z4: GYM LOISIR
A5: 09:45:00 | C5: 50 | F5: 50 | I5: 51 | L5: 50 | O5: 50 | R5: 31 | W5: 0.625 | X5: 5 | Y5: 60 | Z5: BASKET
A6: 10:00:00 | C6: 50 | F6: 50 | I6: 51 | L6: 50 | O6: 50 | R6: 31 | W6: 0 | X6: 7 | Y6: 0 | Z6: CYCLOS
A7: 10:15:00 | C7: 50 | F7: 50 | I7: 51 | L7: 50 | O7: 50 | R7: 31 | W7: 0 | X7: 9 | Y7: 0 | Z7: GAULE
A8: 10:30:00 | C8: 50 | F8: 50 | I8: 51 | L8: 50 | O8: 50 | R8: 31 | W8: 0 | X8: 10 | Y8: 0 | Z8: JUDO
A9: 10:45:00 | C9: 50 | F9: 50 | I9: 51 | L9: 50 | O9: 50 | R9: 31 | W9: 0 | X9: 11 | Y9: 0 | Z9: LUTTE
A10: 11:00:00 | C10: 50 | F10: 50 | I10: 51 | L10: 50 | O10: 50 | R10: 31 | W10: 0 | X10: 14 | Y10: 0 | Z10: T C D
A11: 11:15:00 | C11: 50 | F11: 50 | I11: 51 | L11: 50 | O11: 50 | R11: 31 | W11: 0 | X11: 15 | Y11: 0 | Z11: TENNIS (2)
A12: 11:30:00 | C12: 50 | F12: 50 | I12: 51 | L12: 50 | O12: 50 | R12: 31 | W12: 0 | X12: 16 | Y12: 0 | Z12: CIRQUE (1)
A13: 11:45:00 | C13: 50 | F13: 50 | I13: 51 | L13: 50 | O13: 50 | R13: 31 | W13: 0 | X13: 17 | Y13: 0 | Z13: TAI JITSU
A14: 12:00:00 | C14: v | F14: v | I14: 51 | L14: v | O14: 50 | R14: 31 | W14: 0 | X14: 19 | Y14: 0 | Z14: G.VOLONTAIRE
A15: 12:15:00 | C15: 52 | F15: v | I15: v | L15: 52 | O15: 59 | R15: 31 | W15: 0 | X15: 20 | Y15: 0 | Z15: DIAGONALE
A16: 12:30:00 | C16: 52 | F16: 4 | I16: v | L16: 52 | O16: 59 | W16: 0 | X16: 21 | Y16: 0 | Z16: A.C.E (1)
A17: 12:45:00 | C17: 52 | F17: 4 | I17: v | L17: 52 | O17: 59 | W17: 0.5833333333 | X17: 23 | Y17: 56 | Z17: ESCALADE
A18: 13:00:00 | C18: 52 | F18: 4 | I18: v | L18: 52 | O18: 59 | W18: 0 | X18: 24 | Y18: 0 | Z18: ARCHERS
A19: 13:15:00 | C19: 52 | F19: 4 | I19: 5 | L19: 52 | O19: 59 | W19: 0 | X19: 27 | Y19: 0 | Z19: O.C.E
A20: 13:30:00 | C20: 52 | F20: v | I20: 5 | L20: 52 | O20: 59 | W20: 0 | X20: 28 | Y20: 0 | Z20: LAI MUOI
A21: 13:45:00 | C21: v | F21: v | I21: 5 | L21: v | O21: 59 | W21: 0 | X21: 30 | Y21: 0 | Z21: TAEKWONDO
A22: 14:00:00 | C22: 50 | F22: 50 | I22: 5 | L22: 50 | O22: 50 | W22: 0.1354166667 | X22: 31 | Y22: 13 | Z22: E.S.A.G.A.M.I
A23: 14:15:00 | C23: 50 | F23: 50 | I23: 5 | L23: 50 | O23: 50 | W23: 0.5 | X23: 32 | Y23: 48 | Z23: ALEETT
A24: 14:30:00 | C24: 50 | F24: 50 | I24: 5 | L24: 50 | O24: 50 | W24: 0 | X24: 34 | Y24: 0 | Z24: SPIRIT 38
A25: 14:45:00 | C25: 50 | F25: 50 | I25: 5 | L25: 50 | O25: 50 | W25: 0 | X25: 35 | Y25: 0 | Z25: GMC38EYBENS
A26: 15:00:00 | C26: 50 | F26: 50 | I26: 5 | L26: 50 | O26: 50 | W26: 0 | X26: 36 | Y26: 0 | Z26: PETANQUE
A27: 15:15:00 | C27: 50 | F27: 50 | I27: 5 | L27: 50 | O27: 50 | W27: 0 | X27: 37 | Y27: 0 | Z27: HBC2E
A28: 15:30:00 | C28: 50 | F28: 50 | I28: 5 | L28: 50 | O28: 50 | W28: 0 | X28: 38 | Y28: 0 | Z28: -
A29: 15:45:00 | C29: 50 | F29: 50 | I29: 5 | L29: 50 | O29: 50 | W29: 0 | X29: 39 | Y29: 0 | Z29: -
A30: 16:00:00 | C30: 50 | F30: 50 | I30: 5 | L30: 50 | O30: 50 | W30: =Y30*15/1440 -> 0.9270833333 | X30: 50 | Y30: 89 | Z30: SCOLAIRE
A31: 16:15:00 | C31: 50 | F31: 50 | I31: 5 | L31: 50 | O31: 50 | W31: 0.1041666667 | X31: 51 | Y31: 10 | Z31: Sport Passion
A32: 16:30:00 | C32: 50 | F32: 50 | I32: 5 | L32: 50 | O32: 50 | W32: 0.125 | X32: 52 | Y32: 12 | Z32: Péri Scolaire
A33: 16:45:00 | C33: v | F33: v | H33: 23 | L33: v | O33: v | W33: 0 | X33: 53 | Y33: 0 | Z33: Crêche Familiale
A34: 17:00:00 | C34: v | F34: v | H34: 23 | L34: v | O34: v | W34: 0 | X34: 54 | Y34: 0 | Z34: =INDEX(UTILISATEURS,MATCH(X34,RefUtil,0),2) -> Rel Ass Matern
A35: 17:15:00 | C35: 5 | F35: v | H35: 23 | J35: 32 | L35: v | O35: v | W35: 0 | X35: 55 | Y35: 0 | Z35: ?Pôle Enfance
A36: 17:30:00 | C36: 5 | F36: v | H36: 23 | J36: 32 | L36: v | O36: v | W36: 0 | X36: 56 | Y36: 0 | Z36: Anim. Municip.
A37: 17:45:00 | C37: 5 | E37: 23 | G37: 5 | H37: 23 | J37: 32 | L37: 5 | O37: v | P37: 32 | W37: 0 | X37: 57 | Y37: 0 | Z37: Crêche P Chose
A38: 18:00:00 | C38: 5 | E38: 23 | G38: 5 | H38: 23 | J38: 32 | L38: 5 | O38: v | P38: 32 | W38: 0 | X38: 58 | Y38: 0 | Z38: 0
A39: 18:15:00 | C39: 5 | E39: 23 | G39: 5 | H39: 23 | J39: 32 | L39: 5 | N39: 23 | O39: v | P39: 32 | W39: 0.07291666667 | X39: 59 | Y39: 7 | Z39: Police Municip
A40: 18:30:00 | C40: 5 | E40: 23 | G40: 5 | H40: 23 | J40: 32 | L40: 5 | N40: 23 | O40: v | P40: 32 | W40: 0 | X40: 60 | Y40: 0 | Z40: 0
A41: 18:45:00 | D41: 4 | E41: 23 | G41: 5 | H41: 23 | J41: 32 | L41: 5 | N41: 23 | O41: v | P41: 32 | W41: 0 | X41: 61 | Y41: 0 | Z41: -
A42: 19:00:00 | D42: 4 | E42: 23 | G42: 5 | H42: 23 | J42: 32 | L42: 5 | N42: 23 | O42: v | P42: 32 | W42: 0 | X42: 62 | Y42: 0 | Z42: EN ATTENTE
A43: 19:15:00 | D43: 4 | E43: 23 | G43: 5 | H43: 23 | J43: 32 | L43: 5 | N43: 23 | O43: v | P43: 32 | W43: 0 | X43: 63 | Y43: 0
A44: 19:30:00 | D44: 4 | E44: 23 | G44: 5 | H44: 23 | J44: 32 | L44: 5 | N44: 23 | O44: v | P44: 32 | W44: 0 | X44: 100 | Y44: 0 | Z44: POISAT
A45: 19:45:00 | D45: 4 | G45: 5 | H45: 23 | J45: 32 | L45: 5 | N45: 23 | O45: v | P45: 32 | W45: 0 | X45: 101 | Y45: 0 | Z45: ECHIROLLES
A46: 20:00:00 | D46: 4 | G46: 5 | H46: 23 | J46: 32 | L46: 5 | N46: 23 | O46: v | P46: 32 | W46: 0 | X46: 102 | Y46: 0 | Z46: H.P.
A47: 20:15:00 | D47: 4 | G47: 5 | H47: 23 | J47: 32 | L47: 5 | N47: 23 | O47: v | P47: 32 | W47: 0 | X47: 103 | Y47: 0 | Z47: I.M.E.
A48: 20:30:00 | B48: 23 | D48: 4 | G48: 5 | H48: 23 | J48: 32 | L48: 5 | N48: 23 | O48: v | P48: 32 | W48: 0 | X48: 104 | Y48: 0 | Z48: 0
A49: 20:45:00 | B49: 23 | G49: 5 | H49: 23 | J49: 32 | L49: 5 | N49: 23 | O49: v | P49: 32 | W49: 0 | X49: 105 | Y49: 0 | Z49: Gendarm. Eybens
A50: 21:00:00 | B50: 23 | G50: 5 | H50: 23 | J50: 32 | L50: 5 | N50: 23 | O50: v | P50: 32 | W50: 0 | X50: 106 | Y50: 0 | Z50: 0
A51: 21:15:00 | B51: 23 | C51: 32 | G51: 5 | H51: 23 | J51: 32 | L51: 5 | N51: 23 | O51: v | P51: 32 | W51: 0 | X51: 107 | Y51: 0 | Z51: D.Country
A52: 21:30:00 | B52: 23 | C52: 32 | G52: 5 | H52: 23 | J52: 32 | L52: 5 | N52: 23 | O52: v | P52: 32 | W52: 0 | X52: 108 | Y52: 0 | Z52: CE SOPRA
A53: 21:45:00 | B53: 23 | C53: 32 | G53: 5 | H53: 23 | J53: 32 | L53: 5 | N53: 23 | O53: v | P53: 32 | W53: 0 | X53: 109 | Y53: 0 | Z53: ASCE
A54: 22:00:00 | B54: 23 | C54: 32 | G54: 5 | H54: 23 | J54: 32 | L54: 5 | N54: 23 | O54: v | P54: 32 | W54: 0 | X54: 110 | Y54: 0 | Z54: HARMONIE EYBENS
A55: 22:15:00 | B55: 23 | C55: 32 | G55: 5 | H55: 23 | J55: 32 | L55: 5 | P55: 32 | W55: 0 | X55: 111 | Y55: 0 | Z55: 0
A56: 22:30:00 | C56: 32 | G56: 5 | H56: 23 | J56: 32 | L56: 5 | P56: 32 | W56: 0 | Y56: 0
W58: =Y58*15/1440 -> 3.197916667 | Y58: =SUM(Y2:Y57) -> 307
A59: 00:15:00 | S59: Page N° | T59: =VLOOKUP($U$1,EQUIPEMENT,3) -> 8

Sheet I
A1: =INDEX(EQUIPEMENT,MATCH($U$1,ID,0),4) -> I | B1: =SAISON -> 2019-2020 | E1: =INDEX(EQUIPEMENT,MATCH($U$1,ID,0),2) -> Salle de Musculation F. Faivre | U1: I | W1: Hr | X1: REF | Y1: NB 1/4 H | Z1: NOMS
A2: 09:00:00 | B2: Lundi | E2: Mardi | H2: Mercredi | K2: Jeudi | N2: Vendredi | Q2: Samedi | T2: Dimanche | W2: =Y2*15/1440 -> 0.125 | X2: 1 | Y2: =COUNTIF($B$3:$V$56,X2) -> 12 | Z2: =INDEX(UTILISATEURS,MATCH(X2,RefUtil,0),2) -> OMS
A3: =+A2+$A$59 -> 09:15:00 | C3: v | F3: v | I3: v | L3: v | O3: v | W3: =Y3*15/1440 -> 0 | X3: 3 | Y3: =COUNTIF($B$3:$V$56,X3) -> 0 | Z3: J.B.E.
A4: 09:30:00 | C4: v | F4: v | I4: v | L4: v | O4: v | W4: 0 | X4: 4 | Y4: 0 | Z4: GYM LOISIR
A5: 09:45:00 | C5: v | F5: v | I5: v | L5: v | O5: v | W5: 0.4479166667 | X5: 5 | Y5: 43 | Z5: BASKET
A6: 10:00:00 | C6: v | F6: v | I6: v | L6: v | O6: v | W6: 0.08333333333 | X6: 7 | Y6: 8 | Z6: CYCLOS
A7: 10:15:00 | C7: v | F7: v | I7: v | L7: v | O7: v | W7: 0 | X7: 9 | Y7: 0 | Z7: GAULE
A8: 10:30:00 | C8: v | F8: v | I8: v | L8: v | O8: v | W8: 0 | X8: 10 | Y8: 0 | Z8: JUDO
A9: 10:45:00 | C9: v | F9: v | I9: v | L9: v | O9: v | W9: 0 | X9: 11 | Y9: 0 | Z9: LUTTE
A10: 11:00:00 | C10: v | F10: v | I10: v | L10: v | O10: v | W10: 0 | X10: 14 | Y10: 0 | Z10: T C D
A11: 11:15:00 | C11: v | F11: v | I11: v | L11: v | O11: v | W11: 0 | X11: 15 | Y11: 0 | Z11: TENNIS (2)
A12: 11:30:00 | C12: v | F12: v | I12: v | L12: v | O12: v | W12: 0 | X12: 16 | Y12: 0 | Z12: CIRQUE (1)
A13: 11:45:00 | C13: v | F13: v | I13: v | L13: v | O13: v | W13: 0 | X13: 17 | Y13: 0 | Z13: TAI JITSU
A14: 12:00:00 | C14: v | F14: v | I14: v | L14: v | O14: v | W14: 0 | X14: 19 | Y14: 0 | Z14: G.VOLONTAIRE
A15: 12:15:00 | C15: v | F15: v | I15: v | L15: v | O15: v | W15: 0 | X15: 20 | Y15: 0 | Z15: DIAGONALE
A16: 12:30:00 | C16: v | F16: v | I16: v | L16: v | O16: v | W16: 0 | X16: 21 | Y16: 0 | Z16: A.C.E (1)
A17: 12:45:00 | C17: v | F17: v | I17: v | L17: v | O17: v | W17: 0 | X17: 23 | Y17: 0 | Z17: ESCALADE
A18: 13:00:00 | C18: v | F18: v | I18: v | L18: v | O18: v | W18: 0 | X18: 24 | Y18: 0 | Z18: ARCHERS
A19: 13:15:00 | C19: v | F19: v | I19: v | L19: v | O19: v | W19: 0 | X19: 27 | Y19: 0 | Z19: O.C.E
A20: 13:30:00 | C20: v | F20: v | I20: v | L20: v | O20: v | W20: 0 | X20: 28 | Y20: 0 | Z20: LAI MUOI
A21: 13:45:00 | C21: v | F21: v | I21: v | L21: v | O21: v | W21: 0 | X21: 30 | Y21: 0 | Z21: TAEKWONDO
A22: 14:00:00 | C22: v | F22: v | I22: v | L22: v | O22: v | W22: 0 | X22: 31 | Y22: 0 | Z22: E.S.A.G.A.M.I
A23: 14:15:00 | C23: v | F23: v | I23: v | L23: v | O23: v | W23: 0 | X23: 32 | Y23: 0 | Z23: ALEETT
A24: 14:30:00 | C24: v | F24: v | I24: v | L24: v | O24: v | W24: 0 | X24: 34 | Y24: 0 | Z24: SPIRIT 38
A25: 14:45:00 | C25: v | F25: v | I25: v | L25: v | O25: v | W25: 0 | X25: 35 | Y25: 0 | Z25: GMC38EYBENS
A26: 15:00:00 | C26: v | F26: v | I26: v | L26: v | O26: v | W26: 0 | X26: 36 | Y26: 0 | Z26: PETANQUE
A27: 15:15:00 | C27: v | F27: v | I27: v | L27: v | O27: v | W27: 0 | X27: 37 | Y27: 0 | Z27: HBC2E
A28: 15:30:00 | C28: v | F28: v | I28: v | L28: v | O28: v | W28: 0 | X28: 38 | Y28: 0 | Z28: -
A29: 15:45:00 | C29: v | F29: v | I29: v | L29: v | O29: v | W29: 0 | X29: 39 | Y29: 0 | Z29: -
A30: 16:00:00 | C30: v | F30: v | I30: v | L30: v | O30: v | W30: =Y30*15/1440 -> 0 | X30: 50 | Y30: 0 | Z30: SCOLAIRE
A31: 16:15:00 | C31: v | F31: v | I31: v | L31: v | O31: v | W31: 0 | X31: 51 | Y31: 0 | Z31: Sport Passion
A32: 16:30:00 | C32: v | F32: v | I32: v | L32: v | O32: v | W32: 0 | X32: 52 | Y32: 0 | Z32: Péri Scolaire
A33: 16:45:00 | C33: v | F33: v | I33: v | L33: v | O33: v | W33: 0 | X33: 53 | Y33: 0 | Z33: Crêche Familiale
A34: 17:00:00 | C34: v | F34: v | I34: v | L34: v | O34: v | W34: 0 | X34: 54 | Y34: 0 | Z34: =INDEX(UTILISATEURS,MATCH(X34,RefUtil,0),2) -> Rel Ass Matern
A35: 17:15:00 | C35: v | F35: v | I35: 56 | L35: 7 | O35: 56 | W35: 0.01041666667 | X35: 55 | Y35: 1 | Z35: ?Pôle Enfance
A36: 17:30:00 | C36: v | F36: v | I36: 56 | L36: 7 | O36: 56 | W36: 0.1666666667 | X36: 56 | Y36: 16 | Z36: Anim. Municip.
A37: 17:45:00 | C37: v | F37: v | I37: 56 | L37: 7 | O37: 56 | W37: 0 | X37: 57 | Y37: 0 | Z37: Crêche P Chose
A38: 18:00:00 | C38: v | F38: v | I38: 56 | L38: 7 | O38: 56 | W38: 0 | X38: 58 | Y38: 0 | Z38: 0
A39: 18:15:00 | C39: v | F39: v | I39: 56 | L39: 7 | O39: 56 | W39: 0 | X39: 59 | Y39: 0 | Z39: Police Municip
A40: 18:30:00 | C40: v | F40: v | I40: 56 | L40: 7 | O40: 56 | W40: 0 | X40: 60 | Y40: 0 | Z40: 0
A41: 18:45:00 | C41: 1 | F41: 5 | I41: 56 | L41: 7 | O41: 56 | W41: 0 | X41: 61 | Y41: 0 | Z41: -
A42: 19:00:00 | C42: 1 | F42: 5 | I42: 56 | L42: 7 | O42: 56 | W42: 0 | X42: 62 | Y42: 0 | Z42: EN ATTENTE
A43: 19:15:00 | C43: 1 | F43: 5 | I43: 5 | L43: 5 | O43: 1 | W43: 0 | X43: 63 | Y43: 0
A44: 19:30:00 | C44: 1 | F44: 5 | I44: 5 | L44: 5 | O44: 1 | W44: 0 | X44: 100 | Y44: 0 | Z44: POISAT
A45: 19:45:00 | C45: 1 | F45: 5 | I45: 5 | L45: 5 | O45: 1 | W45: 0 | X45: 101 | Y45: 0 | Z45: ECHIROLLES
A46: 20:00:00 | C46: 1 | F46: 5 | I46: 5 | L46: 5 | O46: 1 | W46: 0 | X46: 102 | Y46: 0 | Z46: H.P.
A47: 20:15:00 | C47: v | F47: 5 | I47: 5 | L47: 5 | O47: 1 | W47: 0 | X47: 103 | Y47: 0 | Z47: I.M.E.
A48: 20:30:00 | C48: v | F48: 5 | I48: 5 | L48: 5 | O48: 1 | W48: 0 | X48: 104 | Y48: 0 | Z48: 0
A49: 20:45:00 | C49: v | F49: 5 | I49: 5 | L49: 5 | O49: v | W49: 0 | X49: 105 | Y49: 0 | Z49: Gendarm. Eybens
A50: 21:00:00 | C50: v | F50: 5 | I50: 5 | L50: 5 | O50: v | W50: 0 | X50: 106 | Y50: 0 | Z50: 0
A51: 21:15:00 | C51: v | F51: 5 | I51: 5 | L51: 5 | O51: v | W51: 0 | X51: 107 | Y51: 0 | Z51: D.Country
A52: 21:30:00 | C52: v | F52: 5 | I52: 5 | L52: 55 | O52: v | W52: 0 | X52: 108 | Y52: 0 | Z52: CE SOPRA
A53: 21:45:00 | C53: v | F53: 5 | I53: 5 | L53: 5 | O53: v | W53: 0 | X53: 109 | Y53: 0 | Z53: ASCE
A54: 22:00:00 | C54: v | F54: 5 | I54: 5 | L54: 5 | O54: v | W54: 0 | X54: 110 | Y54: 0 | Z54: HARMONIE EYBENS
A55: 22:15:00 | C55: v | F55: 5 | I55: 5 | L55: 5 | O55: v | W55: 0 | X55: 111 | Y55: 0 | Z55: 0
A56: 22:30:00 | C56: v | F56: 5 | I56: 5 | L56: 5 | O56: v | W56: 0 | X56: 71 | Y56: =COUNTIF($B$3:$V$56,X56) -> 0 | Z56: schneider electric
W58: =Y58*15/1440 -> 0.8333333333 | Y58: =SUM(Y2:Y57) -> 80
A59: 00:15:00 | S59: Page N° | T59: =VLOOKUP($U$1,EQUIPEMENT,3) -> 9

Sheet J
A1: =INDEX(EQUIPEMENT,MATCH($U$1,ID,0),4) -> J | B1: =SAISON -> 2019-2020 | E1: =INDEX(EQUIPEMENT,MATCH($U$1,ID,0),2) -> Stade Synthétique Roger JOURNET | U1: J | W1: Hr | X1: REF | Y1: NB 1/4 H | Z1: NOMS
A2: 09:00:00 | B2: Lundi | E2: Mardi | H2: Mercredi | K2: Jeudi | N2: Vendredi | Q2: Samedi | T2: Dimanche | W2: =Y2*15/1440 -> 0 | X2: 1 | Y2: =COUNTIF($B$3:$V$56,X2) -> 0 | Z2: =INDEX(UTILISATEURS,MATCH(X2,RefUtil,0),2) -> OMS
A3: =+A2+$A$59 -> 09:15:00 | C3: v | F3: v | I3: v | L3: v | O3: v | W3: =Y3*15/1440 -> 0 | X3: 3 | Y3: =COUNTIF($B$3:$V$56,X3) -> 0 | Z3: J.B.E.
A4: 09:30:00 | C4: v | F4: v | I4: v | L4: v | O4: v | W4: 0 | X4: 4 | Y4: 0 | Z4: GYM LOISIR
A5: 09:45:00 | C5: v | F5: v | I5: v | L5: v | O5: v | W5: 0 | X5: 5 | Y5: 0 | Z5: BASKET
A6: 10:00:00 | C6: v | F6: v | I6: v | L6: v | O6: v | W6: 0 | X6: 7 | Y6: 0 | Z6: CYCLOS
A7: 10:15:00 | C7: v | F7: v | I7: v | L7: v | O7: v | R7: 27 | W7: 0 | X7: 9 | Y7: 0 | Z7: GAULE
A8: 10:30:00 | C8: v | F8: v | I8: v | L8: v | O8: v | R8: 27 | W8: 0 | X8: 10 | Y8: 0 | Z8: JUDO
A9: 10:45:00 | C9: v | F9: v | I9: v | L9: v | O9: v | R9: 27 | W9: 0 | X9: 11 | Y9: 0 | Z9: LUTTE
A10: 11:00:00 | C10: v | F10: v | I10: v | L10: v | O10: v | R10: 27 | W10: 0 | X10: 14 | Y10: 0 | Z10: T C D
A11: 11:15:00 | C11: v | F11: v | I11: v | L11: v | O11: v | R11: 27 | W11: 0 | X11: 15 | Y11: 0 | Z11: TENNIS (2)
A12: 11:30:00 | C12: v | F12: v | I12: v | L12: v | O12: v | R12: 27 | W12: 0 | X12: 16 | Y12: 0 | Z12: CIRQUE (1)
A13: 11:45:00 | C13: v | F13: v | I13: v | L13: v | O13: v | R13: 27 | W13: 0 | X13: 17 | Y13: 0 | Z13: TAI JITSU
A14: 12:00:00 | C14: 102 | F14: v | I14: 102 | L14: v | O14: 102 | R14: 27 | W14: 0 | X14: 19 | Y14: 0 | Z14: G.VOLONTAIRE
A15: 12:15:00 | C15: 102 | F15: 108 | I15: 102 | L15: v | O15: 102 | W15: 0 | X15: 20 | Y15: 0 | Z15: DIAGONALE
A16: 12:30:00 | C16: 102 | F16: 108 | I16: 102 | L16: v | O16: 102 | W16: 0 | X16: 21 | Y16: 0 | Z16: A.C.E (1)
A17: 12:45:00 | C17: 102 | F17: 108 | I17: 102 | L17: v | O17: 102 | W17: 0 | X17: 23 | Y17: 0 | Z17: ESCALADE
A18: 13:00:00 | C18: 102 | F18: 108 | I18: 102 | L18: v | O18: 102 | W18: 0 | X18: 24 | Y18: 0 | Z18: ARCHERS
A19: 13:15:00 | C19: 102 | F19: 108 | I19: 102 | L19: v | O19: 102 | W19: 1.177083333 | X19: 27 | Y19: 113 | Z19: O.C.E
A20: 13:30:00 | C20: 102 | F20: 108 | I20: 102 | L20: v | O20: 102 | W20: 0 | X20: 28 | Y20: 0 | Z20: LAI MUOI
A21: 13:45:00 | C21: v | F21: 108 | I21: 27 | L21: v | O21: v | W21: 0 | X21: 30 | Y21: 0 | Z21: TAEKWONDO
A22: 14:00:00 | C22: v | F22: 108 | I22: 27 | L22: v | O22: v | W22: 0 | X22: 31 | Y22: 0 | Z22: E.S.A.G.A.M.I
A23: 14:15:00 | C23: v | F23: v | I23: 27 | L23: v | O23: v | W23: 0 | X23: 32 | Y23: 0 | Z23: ALEETT
A24: 14:30:00 | C24: v | F24: v | I24: 27 | L24: v | O24: v | W24: 0 | X24: 34 | Y24: 0 | Z24: SPIRIT 38
A25: 14:45:00 | C25: v | F25: v | I25: 27 | L25: v | O25: v | W25: 0 | X25: 35 | Y25: 0 | Z25: GMC38EYBENS
A26: 15:00:00 | C26: v | F26: v | I26: 27 | L26: v | O26: v | W26: 0 | X26: 36 | Y26: 0 | Z26: PETANQUE
A27: 15:15:00 | C27: v | F27: v | I27: 27 | L27: v | O27: v | W27: 0 | X27: 37 | Y27: 0 | Z27: HBC2E
A28: 15:30:00 | C28: v | F28: v | I28: 27 | L28: v | O28: v | W28: 0 | X28: 38 | Y28: 0 | Z28: -
A29: 15:45:00 | C29: v | F29: v | I29: 27 | L29: v | O29: v | W29: 0 | X29: 39 | Y29: 0 | Z29: -
A30: 16:00:00 | C30: v | F30: v | I30: 27 | L30: v | O30: v | W30: =Y30*15/1440 -> 0 | X30: 50 | Y30: 0 | Z30: SCOLAIRE
A31: 16:15:00 | C31: v | F31: v | I31: 27 | L31: v | O31: v | W31: 0 | X31: 51 | Y31: 0 | Z31: Sport Passion
A32: 16:30:00 | C32: v | F32: 27 | I32: 27 | L32: v | O32: v | W32: 0 | X32: 52 | Y32: 0 | Z32: Péri Scolaire
A33: 16:45:00 | C33: v | F33: 27 | I33: 27 | L33: v | O33: 27 | W33: 0 | X33: 53 | Y33: 0 | Z33: Crêche Familiale
A34: 17:00:00 | C34: v | F34: 27 | I34: 27 | L34: v | O34: 27 | W34: 0 | X34: 54 | Y34: 0 | Z34: =INDEX(UTILISATEURS,MATCH(X34,RefUtil,0),2) -> Rel Ass Matern
A35: 17:15:00 | C35: 27 | F35: 27 | I35: 27 | L35: v | O35: 27 | W35: 0 | X35: 55 | Y35: 0 | Z35: ?Pôle Enfance
A36: 17:30:00 | C36: 27 | F36: 27 | I36: 27 | L36: v | O36: 27 | W36: 0 | X36: 56 | Y36: 0 | Z36: Anim. Municip.
A37: 17:45:00 | C37: 27 | F37: 27 | I37: 27 | L37: v | O37: 27 | W37: 0 | X37: 57 | Y37: 0 | Z37: Crêche P Chose
A38: 18:00:00 | C38: 27 | F38: 27 | I38: 27 | L38: v | O38: 27 | W38: 0 | X38: 58 | Y38: 0 | Z38: 0
A39: 18:15:00 | C39: 27 | F39: 27 | I39: 27 | L39: v | O39: 27 | W39: 0 | X39: 59 | Y39: 0 | Z39: Police Municip
A40: 18:30:00 | C40: 27 | F40: 27 | I40: 27 | L40: v | O40: 27 | W40: 0 | X40: 60 | Y40: 0 | Z40: 0
A41: 18:45:00 | C41: 27 | F41: 27 | I41: 27 | L41: 27 | O41: 27 | W41: 0 | X41: 61 | Y41: 0 | Z41: -
A42: 19:00:00 | C42: 27 | F42: 27 | I42: 27 | L42: 27 | O42: 27 | W42: 0 | X42: 62 | Y42: 0 | Z42: EN ATTENTE
A43: 19:15:00 | C43: 27 | F43: 27 | I43: 27 | L43: 27 | O43: 27 | W43: 0 | X43: 63 | Y43: 0
A44: 19:30:00 | C44: 27 | F44: 27 | I44: 27 | L44: 27 | O44: 27 | W44: 0 | X44: 100 | Y44: 0 | Z44: POISAT
A45: 19:45:00 | C45: 27 | F45: 27 | I45: 27 | L45: 27 | O45: 27 | W45: 0 | X45: 101 | Y45: 0 | Z45: ECHIROLLES
A46: 20:00:00 | C46: 27 | F46: 27 | I46: 27 | L46: 27 | O46: 27 | W46: 0.21875 | X46: 102 | Y46: 21 | Z46: H.P.
A47: 20:15:00 | C47: 27 | F47: 27 | I47: 27 | L47: 27 | O47: 27 | W47: 0 | X47: 103 | Y47: 0 | Z47: I.M.E.
A48: 20:30:00 | C48: 27 | F48: 27 | I48: 27 | L48: 27 | O48: 27 | W48: 0 | X48: 104 | Y48: 0 | Z48: 0
A49: 20:45:00 | C49: 27 | D49: 109 | F49: 27 | I49: 27 | L49: 27 | O49: 27 | W49: 0 | X49: 105 | Y49: 0 | Z49: Gendarm. Eybens
A50: 21:00:00 | C50: 27 | D50: 109 | F50: 27 | I50: 27 | L50: 27 | O50: 27 | W50: 0 | X50: 106 | Y50: 0 | Z50: 0
A51: 21:15:00 | C51: 27 | D51: 109 | F51: v | I51: v | L51: 27 | O51: 27 | W51: 0 | X51: 107 | Y51: 0 | Z51: D.Country
A52: 21:30:00 | C52: 27 | D52: 109 | F52: v | I52: v | L52: 27 | O52: 27 | W52: 0.08333333333 | X52: 108 | Y52: 8 | Z52: CE SOPRA
A53: 21:45:00 | C53: 27 | D53: 109 | F53: v | I53: v | L53: v | O53: 27 | W53: 0.0625 | X53: 109 | Y53: 6 | Z53: ASCE
A54: 22:00:00 | C54: 27 | D54: 109 | F54: v | I54: v | L54: v | O54: 27 | W54: 0 | X54: 110 | Y54: 0 | Z54: HARMONIE EYBENS
A55: 22:15:00 | C55: v | F55: v | I55: v | L55: v | O55: 27 | W55: 0 | X55: 111 | Y55: 0 | Z55: 0
A56: 22:30:00 | C56: v | F56: v | I56: v | L56: v | O56: 27 | W56: 0 | Y56: 0
W58: =Y58*15/1440 -> 1.541666667 | Y58: =SUM(Y2:Y57) -> 148
A59: 00:15:00 | S59: Page N° | T59: =VLOOKUP($U$1,EQUIPEMENT,3) -> 10

Sheet K
A1: =INDEX(EQUIPEMENT,MATCH($U$1,ID,0),4) -> ( M ) | B1: =SAISON -> 2019-2020 | E1: =INDEX(EQUIPEMENT,MATCH($U$1,ID,0),2) -> Stade en herbe Roger JOURNET | U1: K | W1: Hr | X1: REF | Y1: NB 1/4 H | Z1: NOMS
A2: 09:00:00 | B2: Lundi | E2: Mardi | H2: Mercredi | K2: Jeudi | N2: Vendredi | Q2: Samedi | T2: Dimanche | W2: =Y2*15/1440 -> 0 | X2: 1 | Y2: =COUNTIF($B$3:$V$56,X2) -> 0 | Z2: =INDEX(UTILISATEURS,MATCH(X2,RefUtil,0),2) -> OMS
A3: =+A2+$A$59 -> 09:15:00 | W3: =Y3*15/1440 -> 0 | X3: 3 | Y3: =COUNTIF($B$3:$V$56,X3) -> 0 | Z3: J.B.E.
A4: 09:30:00 | W4: 0 | X4: 4 | Y4: 0 | Z4: GYM LOISIR
A5: 09:45:00 | W5: 0 | X5: 5 | Y5: 0 | Z5: BASKET
A6: 10:00:00 | W6: 0 | X6: 7 | Y6: 0 | Z6: CYCLOS
A7: 10:15:00 | W7: 0 | X7: 9 | Y7: 0 | Z7: GAULE
A8: 10:30:00 | W8: 0 | X8: 10 | Y8: 0 | Z8: JUDO
A9: 10:45:00 | W9: 0 | X9: 11 | Y9: 0 | Z9: LUTTE
A10: 11:00:00 | W10: 0 | X10: 14 | Y10: 0 | Z10: T C D
A11: 11:15:00 | W11: 0 | X11: 15 | Y11: 0 | Z11: TENNIS (2)
A12: 11:30:00 | W12: 0 | X12: 16 | Y12: 0 | Z12: CIRQUE (1)
A13: 11:45:00 | W13: 0 | X13: 17 | Y13: 0 | Z13: TAI JITSU
A14: 12:00:00 | W14: 0 | X14: 19 | Y14: 0 | Z14: G.VOLONTAIRE
A15: 12:15:00 | W15: 0 | X15: 20 | Y15: 0 | Z15: DIAGONALE
A16: 12:30:00 | W16: 0 | X16: 21 | Y16: 0 | Z16: A.C.E (1)
A17: 12:45:00 | W17: 0 | X17: 23 | Y17: 0 | Z17: ESCALADE
A18: 13:00:00 | W18: 0 | X18: 24 | Y18: 0 | Z18: ARCHERS
A19: 13:15:00 | W19: 0.3125 | X19: 27 | Y19: 30 | Z19: O.C.E
A20: 13:30:00 | W20: 0 | X20: 28 | Y20: 0 | Z20: LAI MUOI
A21: 13:45:00 | W21: 0 | X21: 30 | Y21: 0 | Z21: TAEKWONDO
A22: 14:00:00 | W22: 0 | X22: 31 | Y22: 0 | Z22: E.S.A.G.A.M.I
A23: 14:15:00 | W23: 0 | X23: 32 | Y23: 0 | Z23: ALEETT
A24: 14:30:00 | W24: 0 | X24: 34 | Y24: 0 | Z24: SPIRIT 38
A25: 14:45:00 | W25: 0 | X25: 35 | Y25: 0 | Z25: GMC38EYBENS
A26: 15:00:00 | W26: 0 | X26: 36 | Y26: 0 | Z26: PETANQUE
A27: 15:15:00 | W27: 0 | X27: 37 | Y27: 0 | Z27: HBC2E
A28: 15:30:00 | W28: 0 | X28: 38 | Y28: 0 | Z28: -
A29: 15:45:00 | W29: 0 | X29: 39 | Y29: 0 | Z29: -
A30: 16:00:00 | W30: =Y30*15/1440 -> 0 | X30: 50 | Y30: 0 | Z30: SCOLAIRE
A31: 16:15:00 | W31: 0 | X31: 51 | Y31: 0 | Z31: Sport Passion
A32: 16:30:00 | W32: 0 | X32: 52 | Y32: 0 | Z32: Péri Scolaire
A33: 16:45:00 | I33: 27 | W33: 0 | X33: 53 | Y33: 0 | Z33: Crêche Familiale
A34: 17:00:00 | I34: 27 | W34: 0 | X34: 54 | Y34: 0 | Z34: =INDEX(UTILISATEURS,MATCH(X34,RefUtil,0),2) -> Rel Ass Matern
A35: 17:15:00 | I35: 27 | W35: 0 | X35: 55 | Y35: 0 | Z35: ?Pôle Enfance
A36: 17:30:00 | I36: 27 | W36: 0 | X36: 56 | Y36: 0 | Z36: Anim. Municip.
A37: 17:45:00 | I37: 27 | W37: 0 | X37: 57 | Y37: 0 | Z37: Crêche P Chose
A38: 18:00:00 | I38: 27 | W38: 0 | X38: 58 | Y38: 0 | Z38: 0
A39: 18:15:00 | I39: v | W39: 0 | X39: 59 | Y39: 0 | Z39: Police Municip
A40: 18:30:00 | I40: v | W40: 0 | X40: 60 | Y40: 0 | Z40: 0
A41: 18:45:00 | F41: 27 | I41: 27 | L41: 27 | O41: 27 | W41: 0 | X41: 61 | Y41: 0 | Z41: -
A42: 19:00:00 | F42: 27 | I42: 27 | L42: 27 | O42: 27 | W42: 0 | X42: 62 | Y42: 0 | Z42: EN ATTENTE
A43: 19:15:00 | F43: 27 | I43: 27 | L43: 27 | O43: 27 | W43: 0 | X43: 63 | Y43: 0
A44: 19:30:00 | F44: 27 | I44: 27 | L44: 27 | O44: 27 | W44: 0 | X44: 100 | Y44: 0 | Z44: POISAT
A45: 19:45:00 | F45: 27 | I45: 27 | L45: 27 | O45: 27 | W45: 0 | X45: 101 | Y45: 0 | Z45: ECHIROLLES
A46: 20:00:00 | F46: 27 | I46: 27 | L46: 27 | O46: 27 | W46: 0 | X46: 102 | Y46: 0 | Z46: H.P.
A47: 20:15:00 | W47: 0 | X47: 103 | Y47: 0 | Z47: I.M.E.
A48: 20:30:00 | W48: 0 | X48: 104 | Y48: 0 | Z48: 0
A49: 20:45:00 | W49: 0 | X49: 105 | Y49: 0 | Z49: Gendarm. Eybens
A50: 21:00:00 | W50: 0 | X50: 106 | Y50: 0 | Z50: 0
A51: 21:15:00 | W51: 0 | X51: 107 | Y51: 0 | Z51: D.Country
A52: 21:30:00 | W52: 0 | X52: 108 | Y52: 0 | Z52: CE SOPRA
A53: 21:45:00 | W53: 0 | X53: 109 | Y53: 0 | Z53: ASCE
A54: 22:00:00 | W54: 0 | X54: 110 | Y54: 0 | Z54: HARMONIE EYBENS
A55: 22:15:00 | W55: 0 | X55: 111 | Y55: 0 | Z55: 0
A56: 22:30:00
W58: =Y58*15/1440 -> 0.3125 | Y58: =SUM(Y2:Y57) -> 30
A59: 00:15:00 | S59: Page N° | T59: =VLOOKUP($U$1,EQUIPEMENT,3) -> 11

Sheet L
A1: =INDEX(EQUIPEMENT,MATCH($U$1,ID,0),4) -> L | B1: =SAISON -> 2019-2020 | E1: =INDEX(EQUIPEMENT,MATCH($U$1,ID,0),2) -> Stade Charles PIOT | U1: L | W1: Hr | X1: REF | Y1: NB 1/4 H | Z1: NOMS
A2: 09:00:00 | B2: Lundi | E2: Mardi | H2: Mercredi | K2: Jeudi | N2: Vendredi | Q2: Samedi | T2: Dimanche | W2: =Y2*15/1440 -> 0 | X2: 1 | Y2: =COUNTIF($B$3:$V$56,X2) -> 0 | Z2: =INDEX(UTILISATEURS,MATCH(X2,RefUtil,0),2) -> OMS
A3: =+A2+$A$59 -> 09:15:00 | W3: =Y3*15/1440 -> 0 | X3: 3 | Y3: =COUNTIF($B$3:$V$56,X3) -> 0 | Z3: J.B.E.
A4: 09:30:00 | W4: 0 | X4: 4 | Y4: 0 | Z4: GYM LOISIR
A5: 09:45:00 | W5: 0 | X5: 5 | Y5: 0 | Z5: BASKET
A6: 10:00:00 | W6: 0 | X6: 7 | Y6: 0 | Z6: CYCLOS
A7: 10:15:00 | W7: 0 | X7: 9 | Y7: 0 | Z7: GAULE
A8: 10:30:00 | W8: 0 | X8: 10 | Y8: 0 | Z8: JUDO
A9: 10:45:00 | W9: 0 | X9: 11 | Y9: 0 | Z9: LUTTE
A10: 11:00:00 | W10: 0 | X10: 14 | Y10: 0 | Z10: T C D
A11: 11:15:00 | W11: 0 | X11: 15 | Y11: 0 | Z11: TENNIS (2)
A12: 11:30:00 | W12: 0 | X12: 16 | Y12: 0 | Z12: CIRQUE (1)
A13: 11:45:00 | W13: 0 | X13: 17 | Y13: 0 | Z13: TAI JITSU
A14: 12:00:00 | W14: 0 | X14: 19 | Y14: 0 | Z14: G.VOLONTAIRE
A15: 12:15:00 | W15: 0 | X15: 20 | Y15: 0 | Z15: DIAGONALE
A16: 12:30:00 | W16: 0 | X16: 21 | Y16: 0 | Z16: A.C.E (1)
A17: 12:45:00 | W17: 0 | X17: 23 | Y17: 0 | Z17: ESCALADE
A18: 13:00:00 | W18: 0 | X18: 24 | Y18: 0 | Z18: ARCHERS
A19: 13:15:00 | W19: 0.78125 | X19: 27 | Y19: 75 | Z19: O.C.E
A20: 13:30:00 | W20: 0 | X20: 28 | Y20: 0 | Z20: LAI MUOI
A21: 13:45:00 | I21: 27 | W21: 0 | X21: 30 | Y21: 0 | Z21: TAEKWONDO
A22: 14:00:00 | I22: 27 | W22: 0 | X22: 31 | Y22: 0 | Z22: E.S.A.G.A.M.I
A23: 14:15:00 | I23: 27 | W23: 0 | X23: 32 | Y23: 0 | Z23: ALEETT
A24: 14:30:00 | I24: 27 | W24: 0 | X24: 34 | Y24: 0 | Z24: SPIRIT 38
A25: 14:45:00 | I25: 27 | W25: 0 | X25: 35 | Y25: 0 | Z25: GMC38EYBENS
A26: 15:00:00 | I26: 27 | W26: 0 | X26: 36 | Y26: 0 | Z26: PETANQUE
A27: 15:15:00 | I27: 27 | W27: 0 | X27: 37 | Y27: 0 | Z27: HBC2E
A28: 15:30:00 | I28: 27 | W28: 0 | X28: 38 | Y28: 0 | Z28: -
A29: 15:45:00 | I29: 27 | W29: 0 | X29: 39 | Y29: 0 | Z29: -
A30: 16:00:00 | I30: 27 | W30: =Y30*15/1440 -> 0 | X30: 50 | Y30: 0 | Z30: SCOLAIRE
A31: 16:15:00 | I31: 27 | W31: 0 | X31: 51 | Y31: 0 | Z31: Sport Passion
A32: 16:30:00 | I32: 27 | W32: 0 | X32: 52 | Y32: 0 | Z32: Péri Scolaire
A33: 16:45:00 | C33: 27 | I33: 27 | W33: 0 | X33: 53 | Y33: 0 | Z33: Crêche Familiale
A34: 17:00:00 | C34: 27 | I34: 27 | W34: 0 | X34: 54 | Y34: 0 | Z34: =INDEX(UTILISATEURS,MATCH(X34,RefUtil,0),2) -> Rel Ass Matern
A35: 17:15:00 | C35: 27 | I35: 27 | W35: 0 | X35: 55 | Y35: 0 | Z35: ?Pôle Enfance
A36: 17:30:00 | C36: 27 | I36: 27 | W36: 0 | X36: 56 | Y36: 0 | Z36: Anim. Municip.
A37: 17:45:00 | C37: 27 | I37: 27 | W37: 0 | X37: 57 | Y37: 0 | Z37: Crêche P Chose
A38: 18:00:00 | C38: 27 | I38: 27 | W38: 0 | X38: 58 | Y38: 0 | Z38: 0
A39: 18:15:00 | C39: 27 | I39: 27 | O39: 27 | W39: 0 | X39: 59 | Y39: 0 | Z39: Police Municip
A40: 18:30:00 | C40: 27 | I40: 27 | O40: 27 | W40: 0 | X40: 60 | Y40: 0 | Z40: 0
A41: 18:45:00 | C41: 27 | F41: 27 | I41: 27 | O41: 27 | W41: 0 | X41: 61 | Y41: 0 | Z41: -
A42: 19:00:00 | C42: 27 | F42: 27 | I42: 27 | O42: 27 | W42: 0 | X42: 62 | Y42: 0 | Z42: EN ATTENTE
A43: 19:15:00 | C43: 27 | F43: 27 | I43: 27 | O43: 27 | W43: 0 | X43: 63 | Y43: 0
A44: 19:30:00 | C44: 27 | F44: 27 | I44: 27 | O44: 27 | W44: 0 | X44: 100 | Y44: 0 | Z44: POISAT
A45: 19:45:00 | C45: 27 | F45: 27 | I45: 27 | L45: 27 | O45: 27 | W45: 0 | X45: 101 | Y45: 0 | Z45: ECHIROLLES
A46: 20:00:00 | C46: 27 | F46: 27 | I46: 27 | L46: 27 | O46: 27 | W46: 0 | X46: 102 | Y46: 0 | Z46: H.P.
A47: 20:15:00 | C47: 27 | F47: 27 | I47: 27 | L47: 27 | O47: 27 | W47: 0 | X47: 103 | Y47: 0 | Z47: I.M.E.
A48: 20:30:00 | C48: 27 | F48: 27 | I48: 27 | L48: 27 | O48: 27 | W48: 0 | X48: 104 | Y48: 0 | Z48: 0
A49: 20:45:00 | F49: 27 | I49: 27 | L49: 27 | O49: 27 | W49: 0 | X49: 105 | Y49: 0 | Z49: Gendarm. Eybens
A50: 21:00:00 | F50: 27 | I50: 27 | L50: 27 | O50: 27 | W50: 0 | X50: 106 | Y50: 0 | Z50: 0
A51: 21:15:00 | F51: 27 | W51: 0 | X51: 107 | Y51: 0 | Z51: D.Country
A52: 21:30:00 | W52: 0 | X52: 108 | Y52: 0 | Z52: CE SOPRA
A53: 21:45:00 | W53: 0 | X53: 109 | Y53: 0 | Z53: ASCE
A54: 22:00:00 | W54: 0 | X54: 110 | Y54: 0 | Z54: HARMONIE EYBENS
A55: 22:15:00 | W55: 0 | X55: 111 | Y55: 0 | Z55: 0
A56: 22:30:00
W58: =Y58*15/1440 -> 0.78125 | Y58: =SUM(Y2:Y57) -> 75
A59: 00:15:00 | S59: Page N° | T59: =VLOOKUP($U$1,EQUIPEMENT,3) -> 12

Sheet M
A1: =INDEX(EQUIPEMENT,MATCH($U$1,ID,0),4) -> ( N ) | B1: =SAISON -> 2019-2020 | E1: =INDEX(EQUIPEMENT,MATCH($U$1,ID,0),2) -> Salle de la Tuilerie | U1: M | W1: Hr | X1: REF | Y1: NB 1/4 H | Z1: NOMS
A2: 09:00:00 | B2: Lundi | E2: Mardi | H2: Mercredi | K2: Jeudi | N2: Vendredi | Q2: Samedi | T2: Dimanche | W2: =Y2*15/1440 -> 0 | X2: 1 | Y2: =COUNTIF($B$3:$V$56,X2) -> 0 | Z2: =INDEX(UTILISATEURS,MATCH(X2,RefUtil,0),2) -> OMS
A3: =+A2+$A$59 -> 09:15:00 | W3: =Y3*15/1440 -> 0 | X3: 3 | Y3: =COUNTIF($B$3:$V$56,X3) -> 0 | Z3: J.B.E.
A4: 09:30:00 | W4: 0 | X4: 4 | Y4: 0 | Z4: GYM LOISIR
A5: 09:45:00 | W5: 0 | X5: 5 | Y5: 0 | Z5: BASKET
A6: 10:00:00 | W6: 0 | X6: 7 | Y6: 0 | Z6: CYCLOS
A7: 10:15:00 | W7: 0 | X7: 9 | Y7: 0 | Z7: GAULE
A8: 10:30:00 | W8: 0 | X8: 10 | Y8: 0 | Z8: JUDO
A9: 10:45:00 | W9: 0 | X9: 11 | Y9: 0 | Z9: LUTTE
A10: 11:00:00 | W10: 0 | X10: 14 | Y10: 0 | Z10: T C D
A11: 11:15:00 | W11: 0 | X11: 15 | Y11: 0 | Z11: TENNIS (2)
A12: 11:30:00 | W12: 0 | X12: 16 | Y12: 0 | Z12: CIRQUE (1)
A13: 11:45:00 | W13: 0 | X13: 17 | Y13: 0 | Z13: TAI JITSU
A14: 12:00:00 | W14: 0 | X14: 19 | Y14: 0 | Z14: G.VOLONTAIRE
A15: 12:15:00 | W15: 0.2083333333 | X15: 20 | Y15: 20 | Z15: DIAGONALE
A16: 12:30:00 | W16: 0 | X16: 21 | Y16: 0 | Z16: A.C.E (1)
A17: 12:45:00 | W17: 0 | X17: 23 | Y17: 0 | Z17: ESCALADE
A18: 13:00:00 | W18: 0 | X18: 24 | Y18: 0 | Z18: ARCHERS
A19: 13:15:00 | W19: 0 | X19: 27 | Y19: 0 | Z19: O.C.E
A20: 13:30:00 | W20: 0 | X20: 28 | Y20: 0 | Z20: LAI MUOI
A21: 13:45:00 | W21: 0 | X21: 30 | Y21: 0 | Z21: TAEKWONDO
A22: 14:00:00 | I22: 20 | W22: 0 | X22: 31 | Y22: 0 | Z22: E.S.A.G.A.M.I
A23: 14:15:00 | I23: 20 | W23: 0 | X23: 32 | Y23: 0 | Z23: ALEETT
A24: 14:30:00 | I24: 20 | W24: 0 | X24: 34 | Y24: 0 | Z24: SPIRIT 38
A25: 14:45:00 | I25: 20 | W25: 0 | X25: 35 | Y25: 0 | Z25: GMC38EYBENS
A26: 15:00:00 | I26: 20 | W26: 0 | X26: 36 | Y26: 0 | Z26: PETANQUE
A27: 15:15:00 | I27: 20 | W27: 0 | X27: 37 | Y27: 0 | Z27: HBC2E
A28: 15:30:00 | I28: 20 | W28: 0 | X28: 38 | Y28: 0 | Z28: -
A29: 15:45:00 | I29: 20 | W29: 0 | X29: 39 | Y29: 0 | Z29: -
A30: 16:00:00 | I30: 20 | W30: =Y30*15/1440 -> 0 | X30: 50 | Y30: 0 | Z30: SCOLAIRE
A31: 16:15:00 | I31: 20 | W31: 0 | X31: 51 | Y31: 0 | Z31: Sport Passion
A32: 16:30:00 | W32: 0 | X32: 52 | Y32: 0 | Z32: Péri Scolaire
A33: 16:45:00 | W33: 0 | X33: 53 | Y33: 0 | Z33: Crêche Familiale
A34: 17:00:00 | W34: 0 | X34: 54 | Y34: 0 | Z34: =INDEX(UTILISATEURS,MATCH(X34,RefUtil,0),2) -> Rel Ass Matern
A35: 17:15:00 | W35: 0 | X35: 55 | Y35: 0 | Z35: ?Pôle Enfance
A36: 17:30:00 | W36: 0 | X36: 56 | Y36: 0 | Z36: Anim. Municip.
A37: 17:45:00 | W37: 0 | X37: 57 | Y37: 0 | Z37: Crêche P Chose
A38: 18:00:00 | W38: 0 | X38: 58 | Y38: 0 | Z38: 0
A39: 18:15:00 | W39: 0 | X39: 59 | Y39: 0 | Z39: Police Municip
A40: 18:30:00 | W40: 0 | X40: 60 | Y40: 0 | Z40: 0
A41: 18:45:00 | W41: 0 | X41: 61 | Y41: 0 | Z41: -
A42: 19:00:00 | W42: 0 | X42: 62 | Y42: 0 | Z42: EN ATTENTE
A43: 19:15:00 | W43: 0 | X43: 63 | Y43: 0
A44: 19:30:00 | W44: 0 | X44: 100 | Y44: 0 | Z44: POISAT
A45: 19:45:00 | W45: 0 | X45: 101 | Y45: 0 | Z45: ECHIROLLES
A46: 20:00:00 | W46: 0 | X46: 102 | Y46: 0 | Z46: H.P.
A47: 20:15:00 | O47: 20 | W47: 0 | X47: 103 | Y47: 0 | Z47: I.M.E.
A48: 20:30:00 | O48: 20 | W48: 0 | X48: 104 | Y48: 0 | Z48: 0
A49: 20:45:00 | O49: 20 | W49: 0 | X49: 105 | Y49: 0 | Z49: Gendarm. Eybens
A50: 21:00:00 | O50: 20 | W50: 0 | X50: 106 | Y50: 0 | Z50: 0
A51: 21:15:00 | O51: 20 | W51: 0 | X51: 107 | Y51: 0 | Z51: D.Country
A52: 21:30:00 | O52: 20 | W52: 0 | X52: 108 | Y52: 0 | Z52: CE SOPRA
A53: 21:45:00 | O53: 20 | W53: 0 | X53: 109 | Y53: 0 | Z53: ASCE
A54: 22:00:00 | O54: 20 | W54: 0 | X54: 110 | Y54: 0 | Z54: HARMONIE EYBENS
A55: 22:15:00 | O55: 20 | W55: 0 | X55: 111 | Y55: 0 | Z55: 0
A56: 22:30:00 | O56: 20
W58: =Y58*15/1440 -> 0.2083333333 | Y58: =SUM(Y2:Y57) -> 20
A59: 00:15:00 | S59: Page N° | T59: =VLOOKUP($U$1,EQUIPEMENT,3) -> 13

Sheet N1
A1: =INDEX(EQUIPEMENT,MATCH($U$1,ID,0),4) -> ( O ) | B1: =SAISON -> 2019-2020 | E1: =INDEX(EQUIPEMENT,MATCH($U$1,ID,0),2) -> Tennis Couverts court N°1 | U1: N1 | W1: Hr | X1: REF | Y1: NB 1/4 H | Z1: NOMS
A2: 09:00:00 | B2: Lundi | E2: Mardi | H2: Mercredi | K2: Jeudi | N2: Vendredi | Q2: Samedi | T2: Dimanche | W2: =Y2*15/1440 -> 0 | X2: 1 | Y2: =COUNTIF($B$3:$V$56,X2) -> 0 | Z2: =INDEX(UTILISATEURS,MATCH(X2,RefUtil,0),2) -> OMS
A3: =+A2+$A$59 -> 09:15:00 | C3: v | W3: =Y3*15/1440 -> 0 | X3: 3 | Y3: =COUNTIF($B$3:$V$56,X3) -> 0 | Z3: J.B.E.
A4: 09:30:00 | C4: v | W4: 0 | X4: 4 | Y4: 0 | Z4: GYM LOISIR
A5: 09:45:00 | C5: v | W5: 0 | X5: 5 | Y5: 0 | Z5: BASKET
A6: 10:00:00 | C6: v | W6: 0 | X6: 7 | Y6: 0 | Z6: CYCLOS
A7: 10:15:00 | C7: v | F7: 15 | I7: 15 | O7: 15 | R7: 15 | U7: 15 | W7: 0 | X7: 9 | Y7: 0 | Z7: GAULE
A8: 10:30:00 | C8: v | F8: 15 | I8: 15 | O8: 15 | R8: 15 | U8: 15 | W8: 0 | X8: 10 | Y8: 0 | Z8: JUDO
A9: 10:45:00 | C9: v | F9: 15 | I9: 15 | O9: 15 | R9: 15 | U9: 15 | W9: 0 | X9: 11 | Y9: 0 | Z9: LUTTE
A10: 11:00:00 | C10: v | F10: 15 | I10: 15 | O10: 15 | R10: 15 | U10: 15 | W10: 0 | X10: 14 | Y10: 0 | Z10: T C D
A11: 11:15:00 | C11: v | F11: 15 | I11: 15 | O11: 15 | R11: 15 | U11: 15 | W11: 3.354166667 | X11: 15 | Y11: 322 | Z11: TENNIS (2)
A12: 11:30:00 | C12: v | F12: 15 | I12: 15 | O12: 15 | R12: 15 | U12: 15 | W12: 0 | X12: 16 | Y12: 0 | Z12: CIRQUE (1)
A13: 11:45:00 | C13: v | F13: 15 | I13: 15 | O13: 15 | R13: 15 | U13: 15 | W13: 0 | X13: 17 | Y13: 0 | Z13: TAI JITSU
A14: 12:00:00 | C14: v | F14: 15 | I14: 15 | O14: 15 | R14: 15 | U14: 15 | W14: 0 | X14: 19 | Y14: 0 | Z14: G.VOLONTAIRE
A15: 12:15:00 | C15: 15 | F15: 15 | I15: 15 | L15: 15 | O15: 15 | R15: 15 | U15: 15 | W15: 0 | X15: 20 | Y15: 0 | Z15: DIAGONALE
A16: 12:30:00 | C16: 15 | F16: 15 | I16: 15 | L16: 15 | O16: 15 | R16: 15 | U16: 15 | W16: 0 | X16: 21 | Y16: 0 | Z16: A.C.E (1)
A17: 12:45:00 | C17: 15 | F17: 15 | I17: 15 | L17: 15 | O17: 15 | R17: 15 | U17: 15 | W17: 0 | X17: 23 | Y17: 0 | Z17: ESCALADE
A18: 13:00:00 | C18: 15 | F18: 15 | I18: 15 | L18: 15 | O18: 15 | R18: 15 | U18: 15 | W18: 0 | X18: 24 | Y18: 0 | Z18: ARCHERS
A19: 13:15:00 | C19: 15 | F19: 15 | I19: 15 | L19: 15 | O19: 15 | R19: 15 | U19: 15 | W19: 0 | X19: 27 | Y19: 0 | Z19: O.C.E
A20: 13:30:00 | C20: 15 | F20: 15 | I20: 15 | L20: 15 | O20: 15 | R20: 15 | U20: 15 | W20: 0 | X20: 28 | Y20: 0 | Z20: LAI MUOI
A21: 13:45:00 | C21: 15 | F21: 15 | I21: 15 | L21: 15 | O21: 15 | R21: 15 | U21: 15 | W21: 0 | X21: 30 | Y21: 0 | Z21: TAEKWONDO
A22: 14:00:00 | C22: 15 | F22: 15 | I22: 15 | L22: 15 | O22: 15 | R22: 15 | U22: 15 | W22: 0 | X22: 31 | Y22: 0 | Z22: E.S.A.G.A.M.I
A23: 14:15:00 | C23: 15 | F23: 15 | I23: 15 | L23: 15 | O23: 15 | R23: 15 | U23: 15 | W23: 0 | X23: 32 | Y23: 0 | Z23: ALEETT
A24: 14:30:00 | C24: 15 | F24: 15 | I24: 15 | L24: 15 | O24: 15 | R24: 15 | U24: 15 | W24: 0 | X24: 34 | Y24: 0 | Z24: SPIRIT 38
A25: 14:45:00 | C25: 15 | F25: 15 | I25: 15 | L25: 15 | O25: 15 | R25: 15 | U25: 15 | W25: 0 | X25: 35 | Y25: 0 | Z25: GMC38EYBENS
A26: 15:00:00 | C26: 15 | F26: 15 | I26: 15 | L26: 15 | O26: 15 | R26: 15 | U26: 15 | W26: 0 | X26: 36 | Y26: 0 | Z26: PETANQUE
A27: 15:15:00 | C27: 15 | F27: 15 | I27: 15 | L27: 15 | O27: 15 | R27: 15 | U27: 15 | W27: 0 | X27: 37 | Y27: 0 | Z27: HBC2E
A28: 15:30:00 | C28: 15 | F28: 15 | I28: 15 | L28: 15 | O28: 15 | R28: 15 | U28: 15 | W28: 0 | X28: 38 | Y28: 0 | Z28: -
A29: 15:45:00 | C29: 15 | F29: 15 | I29: 15 | L29: 15 | O29: 15 | R29: 15 | U29: 15 | W29: 0 | X29: 39 | Y29: 0 | Z29: -
A30: 16:00:00 | C30: 15 | F30: 15 | I30: 15 | L30: 15 | O30: 15 | R30: 15 | U30: 15 | W30: =Y30*15/1440 -> 0 | X30: 50 | Y30: 0 | Z30: SCOLAIRE
A31: 16:15:00 | C31: 15 | F31: 15 | I31: 15 | L31: 15 | O31: 15 | R31: 15 | U31: 15 | W31: 0 | X31: 51 | Y31: 0 | Z31: Sport Passion
A32: 16:30:00 | C32: 15 | F32: 15 | I32: 15 | L32: 15 | O32: 15 | R32: 15 | U32: 15 | W32: 0 | X32: 52 | Y32: 0 | Z32: Péri Scolaire
A33: 16:45:00 | C33: 15 | F33: 15 | I33: 15 | L33: 15 | O33: 15 | R33: 15 | U33: 15 | W33: 0 | X33: 53 | Y33: 0 | Z33: Crêche Familiale
A34: 17:00:00 | C34: 15 | F34: 15 | I34: 15 | L34: 15 | O34: 15 | R34: 15 | U34: 15 | W34: 0 | X34: 54 | Y34: 0 | Z34: =INDEX(UTILISATEURS,MATCH(X34,RefUtil,0),2) -> Rel Ass Matern
A35: 17:15:00 | C35: 15 | F35: 15 | I35: 15 | L35: 15 | O35: 15 | R35: 15 | U35: 15 | W35: 0 | X35: 55 | Y35: 0 | Z35: ?Pôle Enfance
A36: 17:30:00 | C36: 15 | F36: 15 | I36: 15 | L36: 15 | O36: 15 | R36: 15 | U36: 15 | W36: 0 | X36: 56 | Y36: 0 | Z36: Anim. Municip.
A37: 17:45:00 | C37: 15 | F37: 15 | I37: 15 | L37: 15 | O37: 15 | R37: 15 | U37: 15 | W37: 0 | X37: 57 | Y37: 0 | Z37: Crêche P Chose
A38: 18:00:00 | C38: 15 | F38: 15 | I38: 15 | L38: 15 | O38: 15 | R38: 15 | U38: 15 | W38: 0 | X38: 58 | Y38: 0 | Z38: 0
A39: 18:15:00 | C39: 15 | F39: 15 | I39: 15 | L39: 15 | O39: 15 | R39: 15 | U39: 15 | W39: 0 | X39: 59 | Y39: 0 | Z39: Police Municip
A40: 18:30:00 | C40: 15 | F40: 15 | I40: 15 | L40: 15 | O40: 15 | R40: 15 | U40: 15 | W40: 0 | X40: 60 | Y40: 0 | Z40: 0
A41: 18:45:00 | C41: 15 | F41: 15 | I41: 15 | L41: 15 | O41: 15 | R41: 15 | U41: 15 | W41: 0 | X41: 61 | Y41: 0 | Z41: -
A42: 19:00:00 | C42: 15 | F42: 15 | I42: 15 | L42: 15 | O42: 15 | R42: 15 | U42: 15 | W42: 0 | X42: 62 | Y42: 0 | Z42: EN ATTENTE
A43: 19:15:00 | C43: 15 | F43: 15 | I43: 15 | L43: 15 | O43: 15 | R43: 15 | U43: 15 | W43: 0 | X43: 63 | Y43: 0
A44: 19:30:00 | C44: 15 | F44: 15 | I44: 15 | L44: 15 | O44: 15 | R44: 15 | U44: 15 | W44: 0 | X44: 100 | Y44: 0 | Z44: POISAT
A45: 19:45:00 | C45: 15 | F45: 15 | I45: 15 | L45: 15 | O45: 15 | R45: 15 | U45: 15 | W45: 0 | X45: 101 | Y45: 0 | Z45: ECHIROLLES
A46: 20:00:00 | C46: 15 | F46: 15 | I46: 15 | L46: 15 | O46: 15 | R46: 15 | U46: 15 | W46: 0 | X46: 102 | Y46: 0 | Z46: H.P.
A47: 20:15:00 | C47: 15 | F47: 15 | I47: 15 | L47: 15 | O47: 15 | R47: 15 | U47: 15 | W47: 0 | X47: 103 | Y47: 0 | Z47: I.M.E.
A48: 20:30:00 | C48: 15 | F48: 15 | I48: 15 | L48: 15 | O48: 15 | R48: 15 | U48: 15 | W48: 0 | X48: 104 | Y48: 0 | Z48: 0
A49: 20:45:00 | C49: 15 | F49: 15 | I49: 15 | L49: 15 | O49: 15 | R49: 15 | U49: 15 | W49: 0 | X49: 105 | Y49: 0 | Z49: Gendarm. Eybens
A50: 21:00:00 | C50: 15 | F50: 15 | I50: 15 | L50: 15 | O50: 15 | R50: 15 | U50: 15 | W50: 0 | X50: 106 | Y50: 0 | Z50: 0
A51: 21:15:00 | C51: 15 | F51: 15 | I51: 15 | L51: 15 | O51: 15 | R51: 15 | U51: 15 | W51: 0 | X51: 107 | Y51: 0 | Z51: D.Country
A52: 21:30:00 | C52: 15 | F52: 15 | I52: 15 | L52: 15 | O52: 15 | R52: 15 | U52: 15 | W52: 0 | X52: 108 | Y52: 0 | Z52: CE SOPRA
A53: 21:45:00 | C53: 15 | F53: 15 | I53: 15 | L53: 15 | O53: 15 | R53: 15 | U53: 15 | W53: 0 | X53: 109 | Y53: 0 | Z53: ASCE
A54: 22:00:00 | C54: 15 | F54: 15 | I54: 15 | L54: 15 | O54: 15 | R54: 15 | U54: 15 | W54: 0 | X54: 110 | Y54: 0 | Z54: HARMONIE EYBENS
A55: 22:15:00 | C55: 15 | F55: 15 | I55: v | L55: v | O55: v | W55: 0 | X55: 111 | Y55: 0 | Z55: 0
A56: 22:30:00 | C56: v | F56: v | I56: v | L56: v | O56: v | Y56: =COUNTIF($B$3:$V$56,X56) -> 0 | Z56: =VLOOKUP(X56,UTILISATEURS,2) -> 
Z57: =VLOOKUP(X57,UTILISATEURS,2) -> 
W58: =Y58*15/1440 -> 3.354166667 | Y58: =SUM(Y2:Y57) -> 322
A59: 00:15:00 | S59: Page N° | T59: =VLOOKUP($U$1,EQUIPEMENT,3) -> 14

Sheet N2
A1: =INDEX(EQUIPEMENT,MATCH($U$1,ID,0),4) -> ( O ) | B1: =SAISON -> 2019-2020 | E1: =INDEX(EQUIPEMENT,MATCH($U$1,ID,0),2) -> Tennis Couverts court N°2 | U1: N2 | W1: Hr | X1: REF | Y1: NB 1/4 H | Z1: NOMS
A2: 09:00:00 | B2: Lundi | E2: Mardi | H2: Mercredi | K2: Jeudi | N2: Vendredi | Q2: Samedi | T2: Dimanche | W2: =Y2*15/1440 -> 0 | X2: 1 | Y2: =COUNTIF($B$3:$V$56,X2) -> 0 | Z2: =INDEX(UTILISATEURS,MATCH(X2,RefUtil,0),2) -> OMS
A3: =+A2+$A$59 -> 09:15:00 | C3: 15 | F3: 15 | I3: 15 | L3: 15 | O3: 15 | R3: 15 | U3: 15 | W3: =Y3*15/1440 -> 0 | X3: 3 | Y3: =COUNTIF($B$3:$V$56,X3) -> 0 | Z3: J.B.E.
A4: 09:30:00 | C4: 15 | F4: 15 | I4: 15 | L4: 15 | O4: 15 | R4: 15 | U4: 15 | W4: 0 | X4: 4 | Y4: 0 | Z4: GYM LOISIR
A5: 09:45:00 | C5: 15 | F5: 15 | I5: 15 | L5: 15 | O5: 15 | R5: 15 | U5: 15 | W5: 0 | X5: 5 | Y5: 0 | Z5: BASKET
A6: 10:00:00 | C6: 15 | F6: 15 | I6: 15 | L6: 15 | O6: 15 | R6: 15 | U6: 15 | W6: 0 | X6: 7 | Y6: 0 | Z6: CYCLOS
A7: 10:15:00 | C7: 15 | F7: 15 | I7: 15 | L7: 15 | O7: 15 | R7: 15 | U7: 15 | W7: 0 | X7: 9 | Y7: 0 | Z7: GAULE
A8: 10:30:00 | C8: 15 | F8: 15 | I8: 15 | L8: 15 | O8: 15 | R8: 15 | U8: 15 | W8: 0 | X8: 10 | Y8: 0 | Z8: JUDO
A9: 10:45:00 | C9: 15 | F9: 15 | I9: 15 | L9: 15 | O9: 15 | R9: 15 | U9: 15 | W9: 0 | X9: 11 | Y9: 0 | Z9: LUTTE
A10: 11:00:00 | C10: 15 | F10: 15 | I10: 15 | L10: 15 | O10: 15 | R10: 15 | U10: 15 | W10: 0 | X10: 14 | Y10: 0 | Z10: =INDEX(UTILISATEURS,MATCH(X10,RefUtil,0),2) -> T C D
A11: 11:15:00 | C11: 15 | F11: 15 | I11: 15 | L11: 15 | O11: 15 | R11: 15 | U11: 15 | W11: 3.854166667 | X11: 15 | Y11: 370 | Z11: TENNIS (2)
A12: 11:30:00 | C12: 15 | F12: 15 | I12: 15 | L12: 15 | O12: 15 | R12: 15 | U12: 15 | W12: 0 | X12: 16 | Y12: 0 | Z12: CIRQUE (1)
A13: 11:45:00 | C13: 15 | F13: 15 | I13: 15 | L13: 15 | O13: 15 | R13: 15 | U13: 15 | W13: 0 | X13: 17 | Y13: 0 | Z13: TAI JITSU
A14: 12:00:00 | C14: 15 | F14: 15 | I14: 15 | L14: 15 | O14: 15 | R14: 15 | U14: 15 | W14: 0 | X14: 19 | Y14: 0 | Z14: G.VOLONTAIRE
A15: 12:15:00 | C15: 15 | G15: 102 | I15: 15 | M15: 102 | O15: 15 | R15: 15 | U15: 15 | W15: 0 | X15: 20 | Y15: 0 | Z15: DIAGONALE
A16: 12:30:00 | C16: 15 | G16: 102 | I16: 15 | M16: 102 | O16: 15 | R16: 15 | U16: 15 | W16: 0 | X16: 21 | Y16: 0 | Z16: A.C.E (1)
A17: 12:45:00 | C17: 15 | G17: 102 | I17: 15 | M17: 102 | O17: 15 | R17: 15 | U17: 15 | W17: 0 | X17: 23 | Y17: 0 | Z17: ESCALADE
A18: 13:00:00 | C18: 15 | G18: 102 | I18: 15 | M18: 102 | O18: 15 | R18: 15 | U18: 15 | W18: 0 | X18: 24 | Y18: 0 | Z18: ARCHERS
A19: 13:15:00 | C19: 15 | F19: 15 | I19: 15 | L19: 15 | O19: 15 | R19: 15 | U19: 15 | W19: 0 | X19: 27 | Y19: 0 | Z19: O.C.E
A20: 13:30:00 | C20: 15 | F20: 15 | I20: 15 | L20: 15 | O20: 15 | R20: 15 | U20: 15 | W20: 0 | X20: 28 | Y20: 0 | Z20: LAI MUOI
A21: 13:45:00 | C21: 15 | F21: 15 | I21: 15 | L21: 15 | O21: 15 | R21: 15 | U21: 15 | W21: 0 | X21: 30 | Y21: 0 | Z21: TAEKWONDO
A22: 14:00:00 | C22: 15 | F22: 15 | I22: 15 | L22: 15 | O22: 15 | R22: 15 | U22: 15 | W22: 0 | X22: 31 | Y22: 0 | Z22: E.S.A.G.A.M.I
A23: 14:15:00 | C23: 15 | F23: 15 | I23: 15 | L23: 15 | O23: 15 | R23: 15 | U23: 15 | W23: 0 | X23: 32 | Y23: 0 | Z23: ALEETT
A24: 14:30:00 | C24: 15 | F24: 15 | I24: 15 | L24: 15 | O24: 15 | R24: 15 | U24: 15 | W24: 0 | X24: 34 | Y24: 0 | Z24: SPIRIT 38
A25: 14:45:00 | C25: 15 | F25: 15 | I25: 15 | L25: 15 | O25: 15 | R25: 15 | U25: 15 | W25: 0 | X25: 35 | Y25: 0 | Z25: GMC38EYBENS
A26: 15:00:00 | C26: 15 | F26: 15 | I26: 15 | L26: 15 | O26: 15 | R26: 15 | U26: 15 | W26: 0 | X26: 36 | Y26: 0 | Z26: PETANQUE
A27: 15:15:00 | C27: 15 | F27: 15 | I27: 15 | L27: 15 | O27: 15 | R27: 15 | U27: 15 | W27: 0 | X27: 37 | Y27: 0 | Z27: HBC2E
A28: 15:30:00 | C28: 15 | F28: 15 | I28: 15 | L28: 15 | O28: 15 | R28: 15 | U28: 15 | W28: 0 | X28: 38 | Y28: 0 | Z28: -
A29: 15:45:00 | C29: 15 | F29: 15 | I29: 15 | L29: 15 | O29: 15 | R29: 15 | U29: 15 | W29: 0 | X29: 39 | Y29: 0 | Z29: -
A30: 16:00:00 | C30: 15 | F30: 15 | I30: 15 | L30: 15 | O30: 15 | R30: 15 | U30: 15 | W30: =Y30*15/1440 -> 0 | X30: 50 | Y30: 0 | Z30: SCOLAIRE
A31: 16:15:00 | C31: 15 | F31: 15 | I31: 15 | L31: 15 | O31: 15 | R31: 15 | U31: 15 | W31: 0 | X31: 51 | Y31: 0 | Z31: Sport Passion
A32: 16:30:00 | C32: 15 | F32: 15 | I32: 15 | L32: 15 | O32: 15 | R32: 15 | U32: 15 | W32: 0 | X32: 52 | Y32: 0 | Z32: Péri Scolaire
A33: 16:45:00 | C33: 15 | F33: 15 | I33: 15 | L33: 15 | O33: 15 | R33: 15 | U33: 15 | W33: 0 | X33: 53 | Y33: 0 | Z33: Crêche Familiale
A34: 17:00:00 | C34: 15 | F34: 15 | I34: 15 | L34: 15 | O34: 15 | R34: 15 | U34: 15 | W34: 0 | X34: 54 | Y34: 0 | Z34: =INDEX(UTILISATEURS,MATCH(X34,RefUtil,0),2) -> Rel Ass Matern
A35: 17:15:00 | C35: 15 | F35: 15 | I35: 15 | L35: 15 | O35: 15 | R35: 15 | U35: 15 | W35: 0 | X35: 55 | Y35: 0 | Z35: ?Pôle Enfance
A36: 17:30:00 | C36: 15 | F36: 15 | I36: 15 | L36: 15 | O36: 15 | R36: 15 | U36: 15 | W36: 0 | X36: 56 | Y36: 0 | Z36: Anim. Municip.
A37: 17:45:00 | C37: 15 | F37: 15 | I37: 15 | L37: 15 | O37: 15 | R37: 15 | U37: 15 | W37: 0 | X37: 57 | Y37: 0 | Z37: Crêche P Chose
A38: 18:00:00 | C38: 15 | F38: 15 | I38: 15 | L38: 15 | O38: 15 | R38: 15 | U38: 15 | W38: 0 | X38: 58 | Y38: 0 | Z38: 0
A39: 18:15:00 | C39: 15 | F39: 15 | I39: 15 | L39: 15 | O39: 15 | R39: 15 | U39: 15 | W39: 0 | X39: 59 | Y39: 0 | Z39: Police Municip
A40: 18:30:00 | C40: 15 | F40: 15 | I40: 15 | L40: 15 | O40: 15 | R40: 15 | U40: 15 | W40: 0 | X40: 60 | Y40: 0 | Z40: 0
A41: 18:45:00 | C41: 15 | F41: 15 | I41: 15 | L41: 15 | O41: 15 | R41: 15 | U41: 15 | W41: 0 | X41: 61 | Y41: 0 | Z41: -
A42: 19:00:00 | C42: 15 | F42: 15 | I42: 15 | L42: 15 | O42: 15 | R42: 15 | U42: 15 | W42: 0 | X42: 62 | Y42: 0 | Z42: EN ATTENTE
A43: 19:15:00 | C43: 15 | F43: 15 | I43: 15 | L43: 15 | O43: 15 | R43: 15 | U43: 15 | W43: 0 | X43: 63 | Y43: 0
A44: 19:30:00 | C44: 15 | F44: 15 | I44: 15 | L44: 15 | O44: 15 | R44: 15 | U44: 15 | W44: 0 | X44: 100 | Y44: 0 | Z44: POISAT
A45: 19:45:00 | C45: 15 | F45: 15 | I45: 15 | L45: 15 | O45: 15 | R45: 15 | U45: 15 | W45: 0 | X45: 101 | Y45: 0 | Z45: ECHIROLLES
A46: 20:00:00 | C46: 15 | F46: 15 | I46: 15 | L46: 15 | O46: 15 | R46: 15 | U46: 15 | W46: 0.08333333333 | X46: 102 | Y46: 8 | Z46: H.P.
A47: 20:15:00 | C47: 15 | F47: 15 | I47: 15 | L47: 15 | O47: 15 | R47: 15 | U47: 15 | W47: 0 | X47: 103 | Y47: 0 | Z47: I.M.E.
A48: 20:30:00 | C48: 15 | F48: 15 | I48: 15 | L48: 15 | O48: 15 | R48: 15 | U48: 15 | W48: 0 | X48: 104 | Y48: 0 | Z48: 0
A49: 20:45:00 | C49: 15 | F49: 15 | I49: 15 | L49: 15 | O49: 15 | R49: 15 | U49: 15 | W49: 0 | X49: 105 | Y49: 0 | Z49: Gendarm. Eybens
A50: 21:00:00 | C50: 15 | F50: 15 | I50: 15 | L50: 15 | O50: 15 | R50: 15 | U50: 15 | W50: 0 | X50: 106 | Y50: 0 | Z50: 0
A51: 21:15:00 | C51: 15 | F51: 15 | I51: 15 | L51: 15 | O51: 15 | R51: 15 | U51: 15 | W51: 0 | X51: 107 | Y51: 0 | Z51: D.Country
A52: 21:30:00 | C52: 15 | F52: 15 | I52: 15 | L52: 15 | O52: 15 | R52: 15 | U52: 15 | W52: 0 | X52: 108 | Y52: 0 | Z52: CE SOPRA
A53: 21:45:00 | C53: 15 | F53: 15 | I53: 15 | L53: 15 | O53: 15 | R53: 15 | U53: 15 | W53: 0 | X53: 109 | Y53: 0 | Z53: ASCE
A54: 22:00:00 | C54: 15 | F54: 15 | I54: 15 | L54: 15 | O54: 15 | R54: 15 | U54: 15 | W54: 0 | X54: 110 | Y54: 0 | Z54: HARMONIE EYBENS
A55: 22:15:00 | C55: 15 | F55: 15 | I55: 15 | L55: 15 | O55: 15 | R55: 15 | U55: 15 | W55: 0 | X55: 111 | Y55: 0 | Z55: 0
A56: 22:30:00 | C56: 15 | F56: 15 | I56: 15 | L56: 15 | O56: 15 | R56: 15 | U56: 15
W58: =Y58*15/1440 -> 3.9375 | Y58: =SUM(Y2:Y57) -> 378
A59: 00:15:00 | S59: Page N° | T59: =VLOOKUP($U$1,EQUIPEMENT,3) -> 15

Sheet O
A1: =INDEX(EQUIPEMENT,MATCH($U$1,ID,0),4) -> P | B1: =SAISON -> 2019-2020 | E1: =INDEX(EQUIPEMENT,MATCH($U$1,ID,0),2) -> Salle A.D.C rue du Grand Veymont | U1: O | W1: Hr | X1: REF | Y1: NB 1/4 H | Z1: NOMS
A2: 09:00:00 | B2: Lundi | E2: Mardi | H2: Mercredi | K2: Jeudi | N2: Vendredi | Q2: Samedi | T2: Dimanche | W2: =Y2*15/1440 -> 0 | X2: 1 | Y2: =COUNTIF($B$3:$V$56,X2) -> 0 | Z2: =INDEX(UTILISATEURS,MATCH(X2,RefUtil,0),2) -> OMS
A3: =+A2+$A$59 -> 09:15:00 | C3: E | F3: v | I3: 16 | L3: v | O3: v | R3: 16 | W3: =Y3*15/1440 -> 0 | X3: 3 | Y3: =COUNTIF($B$3:$V$56,X3) -> 0 | Z3: J.B.E.
A4: 09:30:00 | C4: E | F4: v | I4: 16 | L4: v | O4: v | R4: 16 | W4: 0 | X4: 4 | Y4: 0 | Z4: GYM LOISIR
A5: 09:45:00 | C5: E | F5: 16 | I5: 16 | L5: v | O5: v | R5: 16 | W5: 0 | X5: 5 | Y5: 0 | Z5: BASKET
A6: 10:00:00 | C6: E | F6: 16 | I6: 16 | L6: v | O6: v | R6: 16 | W6: 0 | X6: 7 | Y6: 0 | Z6: CYCLOS
A7: 10:15:00 | C7: E | F7: 16 | I7: 16 | L7: v | O7: v | R7: 16 | W7: 0 | X7: 9 | Y7: 0 | Z7: GAULE
A8: 10:30:00 | C8: E | F8: 16 | I8: 16 | L8: v | O8: v | R8: 16 | W8: 0 | X8: 10 | Y8: 0 | Z8: JUDO
A9: 10:45:00 | C9: E | F9: 16 | I9: 16 | L9: v | O9: v | R9: 16 | W9: 0 | X9: 11 | Y9: 0 | Z9: LUTTE
A10: 11:00:00 | C10: E | F10: 16 | I10: 16 | L10: v | O10: v | R10: 16 | W10: 0 | X10: 14 | Y10: 0 | Z10: T C D
A11: 11:15:00 | C11: E | F11: 16 | I11: 16 | L11: v | O11: v | R11: 16 | W11: 0 | X11: 15 | Y11: 0 | Z11: TENNIS (2)
A12: 11:30:00 | C12: E | F12: 16 | I12: 16 | L12: v | O12: v | R12: 16 | W12: 2.104166667 | X12: 16 | Y12: 202 | Z12: CIRQUE (1)
A13: 11:45:00 | C13: E | F13: 16 | I13: 16 | L13: v | O13: v | R13: 16 | W13: 0 | X13: 17 | Y13: 0 | Z13: TAI JITSU
A14: 12:00:00 | C14: E | F14: 16 | I14: 16 | L14: v | O14: v | R14: 16 | W14: 0 | X14: 19 | Y14: 0 | Z14: G.VOLONTAIRE
A15: 12:15:00 | C15: E | F15: v | I15: 16 | L15: v | O15: v | R15: 16 | W15: 0 | X15: 20 | Y15: 0 | Z15: DIAGONALE
A16: 12:30:00 | C16: E | F16: v | I16: 16 | L16: v | O16: v | R16: 16 | W16: 0 | X16: 21 | Y16: 0 | Z16: A.C.E (1)
A17: 12:45:00 | C17: v | F17: v | I17: v | L17: v | O17: v | R17: 16 | W17: 0 | X17: 23 | Y17: 0 | Z17: ESCALADE
A18: 13:00:00 | C18: v | F18: v | I18: v | L18: v | O18: v | R18: 16 | W18: 0 | X18: 24 | Y18: 0 | Z18: ARCHERS
A19: 13:15:00 | C19: 16 | F19: v | I19: v | L19: v | O19: v | R19: 16 | W19: 0 | X19: 27 | Y19: 0 | Z19: O.C.E
A20: 13:30:00 | C20: 16 | F20: v | I20: v | L20: v | O20: v | R20: 16 | W20: 0 | X20: 28 | Y20: 0 | Z20: LAI MUOI
A21: 13:45:00 | C21: 16 | F21: v | I21: v | L21: v | O21: v | R21: 16 | W21: 0 | X21: 30 | Y21: 0 | Z21: TAEKWONDO
A22: 14:00:00 | C22: 16 | F22: 16 | I22: 16 | L22: v | O22: v | R22: 16 | W22: 0 | X22: 31 | Y22: 0 | Z22: E.S.A.G.A.M.I
A23: 14:15:00 | C23: 16 | F23: 16 | I23: 16 | L23: v | O23: v | R23: 16 | W23: 0 | X23: 32 | Y23: 0 | Z23: ALEETT
A24: 14:30:00 | C24: 16 | F24: 16 | I24: 16 | L24: v | O24: v | R24: 16 | W24: 0 | X24: 34 | Y24: 0 | Z24: SPIRIT 38
A25: 14:45:00 | C25: 16 | F25: 16 | I25: 16 | L25: v | O25: v | R25: 16 | W25: 0 | X25: 35 | Y25: 0 | Z25: GMC38EYBENS
A26: 15:00:00 | C26: 16 | F26: 16 | I26: 16 | L26: v | O26: v | R26: 16 | W26: 0 | X26: 36 | Y26: 0 | Z26: PETANQUE
A27: 15:15:00 | C27: 16 | F27: 16 | I27: 16 | L27: v | O27: v | R27: 16 | W27: 0 | X27: 37 | Y27: 0 | Z27: HBC2E
A28: 15:30:00 | C28: 16 | F28: 16 | I28: 16 | L28: v | O28: v | R28: 16 | W28: 0 | X28: 38 | Y28: 0 | Z28: -
A29: 15:45:00 | C29: 16 | F29: 16 | I29: 16 | L29: v | O29: v | R29: 16 | W29: 0 | X29: 39 | Y29: 0 | Z29: -
A30: 16:00:00 | C30: 16 | F30: 16 | I30: 16 | L30: v | O30: v | R30: 16 | W30: =Y30*15/1440 -> 0 | X30: 50 | Y30: 0 | Z30: SCOLAIRE
A31: 16:15:00 | C31: 16 | F31: 16 | I31: 16 | L31: v | O31: v | R31: 16 | W31: 0 | X31: 51 | Y31: 0 | Z31: Sport Passion
A32: 16:30:00 | C32: 16 | F32: 16 | I32: 16 | L32: v | O32: v | R32: 16 | W32: 0 | X32: 52 | Y32: 0 | Z32: Péri Scolaire
A33: 16:45:00 | C33: v | F33: v | I33: 16 | L33: v | O33: v | R33: 16 | W33: 0 | X33: 53 | Y33: 0 | Z33: Crêche Familiale
A34: 17:00:00 | C34: 16 | F34: v | I34: 16 | L34: 16 | O34: v | R34: 16 | W34: 0 | X34: 54 | Y34: 0 | Z34: Rel Ass Matern
A35: 17:15:00 | C35: 16 | F35: 16 | I35: 16 | L35: 16 | O35: v | R35: 16 | W35: 0 | X35: 55 | Y35: 0 | Z35: ?Pôle Enfance
A36: 17:30:00 | C36: 16 | F36: 16 | I36: 16 | L36: 16 | O36: 16 | R36: 16 | W36: 0 | X36: 56 | Y36: 0 | Z36: Anim. Municip.
A37: 17:45:00 | C37: 16 | F37: 16 | I37: 16 | L37: 16 | O37: 16 | R37: 16 | W37: 0 | X37: 57 | Y37: 0 | Z37: Crêche P Chose
A38: 18:00:00 | C38: 16 | F38: 16 | I38: 16 | L38: 16 | O38: 16 | R38: 16 | W38: 0 | X38: 58 | Y38: 0 | Z38: 0
A39: 18:15:00 | C39: 16 | F39: 16 | I39: 16 | L39: 16 | O39: 16 | R39: v | W39: 0 | X39: 59 | Y39: 0 | Z39: Police Municip
A40: 18:30:00 | C40: 16 | F40: 16 | I40: 16 | L40: 16 | O40: 16 | R40: v | W40: 0 | X40: 60 | Y40: 0 | Z40: 0
A41: 18:45:00 | C41: 16 | F41: 16 | I41: 16 | L41: 16 | O41: 16 | R41: v | W41: 0 | X41: 61 | Y41: 0 | Z41: -
A42: 19:00:00 | C42: 16 | F42: 16 | I42: 16 | L42: 16 | O42: 16 | R42: v | W42: 0 | X42: 62 | Y42: 0 | Z42: EN ATTENTE
A43: 19:15:00 | C43: 16 | F43: 16 | I43: 16 | L43: 16 | O43: 16 | R43: v | W43: 0 | X43: 63 | Y43: 0
A44: 19:30:00 | C44: v | F44: 16 | I44: 16 | L44: 16 | O44: 16 | R44: v | W44: 0 | X44: 100 | Y44: 0 | Z44: POISAT
A45: 19:45:00 | C45: 16 | F45: 16 | I45: 16 | L45: 16 | O45: 16 | R45: v | W45: 0 | X45: 101 | Y45: 0 | Z45: ECHIROLLES
A46: 20:00:00 | C46: 16 | F46: 16 | I46: 16 | L46: 16 | O46: 16 | R46: v | W46: 0 | X46: 102 | Y46: 0 | Z46: H.P.
A47: 20:15:00 | C47: 16 | F47: v | I47: 16 | L47: 16 | O47: 16 | R47: v | W47: 0 | X47: 103 | Y47: 0 | Z47: I.M.E.
A48: 20:30:00 | C48: 16 | F48: 16 | I48: 16 | L48: 16 | O48: 16 | R48: v | W48: 0 | X48: 104 | Y48: 0 | Z48: 0
A49: 20:45:00 | C49: 16 | F49: 16 | I49: 16 | L49: 16 | O49: 16 | R49: v | W49: 0 | X49: 105 | Y49: 0 | Z49: Gendarm. Eybens
A50: 21:00:00 | C50: 16 | F50: 16 | I50: 16 | L50: 16 | O50: 16 | R50: v | W50: 0 | X50: 106 | Y50: 0 | Z50: 0
A51: 21:15:00 | C51: 16 | F51: 16 | I51: 16 | L51: 16 | O51: 16 | R51: v | W51: 0 | X51: 107 | Y51: 0 | Z51: D.Country
A52: 21:30:00 | C52: 16 | F52: 16 | I52: 16 | L52: 16 | O52: 16 | R52: v | W52: 0 | X52: 108 | Y52: 0 | Z52: CE SOPRA
A53: 21:45:00 | C53: 16 | F53: 16 | I53: 16 | L53: 16 | O53: 16 | R53: v | W53: 0 | X53: 109 | Y53: 0 | Z53: ASCE
A54: 22:00:00 | C54: 16 | F54: 16 | I54: 16 | L54: 16 | O54: 16 | R54: v | W54: 0 | X54: 110 | Y54: 0 | Z54: HARMONIE EYBENS
A55: 22:15:00 | C55: v | F55: 16 | I55: v | L55: 16 | O55: 16 | R55: v | W55: 0 | X55: 111 | Y55: 0 | Z55: 0
A56: 22:30:00 | C56: v | F56: v | I56: v | L56: 16 | O56: 16 | R56: v | W56: 0 | Y56: 0
W57: 0 | Y57: 0
W58: =Y58*15/1440 -> 2.104166667 | Y58: =SUM(Y2:Y57) -> 202
A59: 00:15:00 | S59: Page N° | T59: =VLOOKUP($U$1,EQUIPEMENT,3) -> 16

Sheet MODELE
A1: =SAISON -> 2019-2020 | E1: =VLOOKUP($U$1,EQUIPEMENT,2) -> Salle Polyvalente du BOULODROMME | U1: A | W1: Hr | X1: REF | Y1: NB 1/4 H | Z1: NOMS
A2: 09:00:00 | C2: LUNDI | F2: MARDI | I2: MERCREDI | L2: JEUDI | O2: VENDREDI | R2: SAMEDI | T2: Dimanche | W2: =Y2*15/1440 -> 0 | X2: 1 | Y2: =COUNTIF($B$3:$V$56,X2) -> 0 | Z2: =INDEX(UTILISATEURS,MATCH(X2,RefUtil,0),2) -> OMS
A3: =+A2+$A$59 -> 09:15:00 | W3: =Y3*15/1440 -> 0 | X3: 3 | Y3: =COUNTIF($B$3:$V$56,X3) -> 0 | Z3: J.B.E.
A4: 09:30:00 | W4: 0 | X4: 4 | Y4: 0 | Z4: GYM LOISIR
A5: 09:45:00 | W5: 0 | X5: 5 | Y5: 0 | Z5: BASKET
A6: 10:00:00 | W6: 0 | X6: 7 | Y6: 0 | Z6: CYCLOS
A7: 10:15:00 | W7: 0 | X7: 9 | Y7: 0 | Z7: GAULE
A8: 10:30:00 | W8: 0 | X8: 10 | Y8: 0 | Z8: JUDO
A9: 10:45:00 | W9: 0 | X9: 11 | Y9: 0 | Z9: LUTTE
A10: 11:00:00 | W10: 0 | X10: 14 | Y10: 0 | Z10: T C D
A11: 11:15:00 | W11: 0 | X11: 15 | Y11: 0 | Z11: TENNIS (2)
A12: 11:30:00 | W12: 0 | X12: 16 | Y12: 0 | Z12: CIRQUE (1)
A13: 11:45:00 | W13: 0 | X13: 17 | Y13: 0 | Z13: TAI JITSU
A14: 12:00:00 | W14: 0 | X14: 19 | Y14: 0 | Z14: G.VOLONTAIRE
A15: 12:15:00 | W15: 0 | X15: 20 | Y15: 0 | Z15: DIAGONALE
A16: 12:30:00 | W16: 0 | X16: 21 | Y16: 0 | Z16: A.C.E (1)
A17: 12:45:00 | W17: 0 | X17: 23 | Y17: 0 | Z17: ESCALADE
A18: 13:00:00 | W18: 0 | X18: 24 | Y18: 0 | Z18: ARCHERS
A19: 13:15:00 | W19: 0 | X19: 27 | Y19: 0 | Z19: O.C.E
A20: 13:30:00 | W20: 0 | X20: 28 | Y20: 0 | Z20: LAI MUOI
A21: 13:45:00 | W21: 0 | X21: 30 | Y21: 0 | Z21: TAEKWONDO
A22: 14:00:00 | W22: 0 | X22: 31 | Y22: 0 | Z22: E.S.A.G.A.M.I
A23: 14:15:00 | W23: 0 | X23: 32 | Y23: 0 | Z23: ALEETT
A24: 14:30:00 | W24: 0 | X24: 34 | Y24: 0 | Z24: SPIRIT 38
A25: 14:45:00 | W25: 0 | X25: 35 | Y25: 0 | Z25: GMC38EYBENS
A26: 15:00:00 | W26: 0 | X26: 36 | Y26: 0 | Z26: PETANQUE
A27: 15:15:00 | W27: 0 | X27: 37 | Y27: 0 | Z27: HBC2E
A28: 15:30:00 | W28: 0 | Y28: 0
A29: 15:45:00 | W29: 0 | Y29: 0
A30: 16:00:00 | W30: =Y30*15/1440 -> 0 | X30: 50 | Y30: 0 | Z30: SCOLAIRE
A31: 16:15:00 | W31: 0 | X31: 51 | Y31: 0 | Z31: Sport Passion
A32: 16:30:00 | W32: 0 | X32: 52 | Y32: 0 | Z32: Péri Scolaire
A33: 16:45:00 | W33: 0 | X33: 53 | Y33: 0 | Z33: Crêche Familiale
A34: 17:00:00 | W34: 0 | X34: 54 | Y34: 0 | Z34: Rel Ass Matern
A35: 17:15:00 | W35: 0 | X35: 55 | Y35: 0 | Z35: ?Pôle Enfance
A36: 17:30:00 | W36: 0 | X36: 56 | Y36: 0 | Z36: Anim. Municip.
A37: 17:45:00 | W37: 0 | X37: 57 | Y37: 0 | Z37: Crêche P Chose
A38: 18:00:00 | W38: 0 | X38: 58 | Y38: 0 | Z38: 0
A39: 18:15:00 | W39: 0 | X39: 59 | Y39: 0 | Z39: Police Municip
A40: 18:30:00 | W40: 0 | X40: 60 | Y40: 0 | Z40: 0
A41: 18:45:00 | W41: 0 | X41: 61 | Y41: 0 | Z41: -
A42: 19:00:00 | W42: 0 | X42: 62 | Y42: 0 | Z42: EN ATTENTE
A43: 19:15:00 | W43: 0 | X43: 63 | Y43: 0
A44: 19:30:00 | W44: 0 | X44: 100 | Y44: 0 | Z44: POISAT
A45: 19:45:00 | W45: 0 | X45: 101 | Y45: 0 | Z45: ECHIROLLES
A46: 20:00:00 | W46: 0 | X46: 102 | Y46: 0 | Z46: H.P.
A47: 20:15:00 | W47: 0 | X47: 103 | Y47: 0 | Z47: I.M.E.
A48: 20:30:00 | W48: 0 | X48: 104 | Y48: 0 | Z48: 0
A49: 20:45:00 | W49: 0 | X49: 105 | Y49: 0 | Z49: Gendarm. Eybens
A50: 21:00:00 | W50: 0 | X50: 106 | Y50: 0 | Z50: 0
A51: 21:15:00 | W51: 0 | X51: 107 | Y51: 0 | Z51: D.Country
A52: 21:30:00 | W52: 0 | X52: 108 | Y52: 0 | Z52: CE SOPRA
A53: 21:45:00 | W53: 0 | X53: 109 | Y53: 0 | Z53: ASCE
A54: 22:00:00 | W54: 0 | X54: 110 | Y54: 0 | Z54: HARMONIE EYBENS
A55: 22:15:00 | W55: 0 | X55: 111 | Y55: 0 | Z55: 0
A56: 22:30:00 | W56: 0 | Y56: 0
W58: =Y58*15/1440 -> 0 | Y58: =SUM(Y2:Y57) -> 0
A59: 00:15:00 | S59: Page N° | T59: =VLOOKUP($U$1,EQUIPEMENT,3) -> 1

Sheet Récap OMS
B1: ='EQPT&UTIL'!B25 -> 2019-2020 | E1: TABLEAU DES UTILISATEURS MEMBRES O.M.S.
D2: TEMPS | F2: LES EQUIPEMENTS REFERENCES /Heures : Minutes | P2: M | R2: N
B3: REF | C3: Eq Ut | D3: Heures | E3: UTILISATEURS | F3: A | G3: B | H3: C | I3: D | J3: E | K3: F | L3: G | M3: H | N3: I | O3: J | P3: K | Q3: L | R3: M | S3: N1 | T3: N2 | U3: O
F4: Salle poly Boulodrm | G4: Boulodrome | H4: Salle Poly RJ | I4: Salle 2èm F Faivre | J4: Préau Bourg | K4: Gym R Journet | L4: Salle C F Faivre | M4: Salle B F Faivre | N4: Salle Muscu F Faivre | O4: Stade Synthé R Journet | P4: Stade Bel Air | Q4: Stade C. Piot | R4: Stade Herbe R Journet | S4: Salle Tuilerie | T4: Tennis couverts | U4: Salle G; Veymont
B5: 1 | C5: =COUNTIF(F5:T5,">0") -> 1 | D5: =SUM(F5:U5) -> 0.125 | E5: =INDEX(UTILISATEURS,MATCH(B5,RefUtil,0),2) -> OMS | F5: =COUNTIF(A_Plage,$B5)*15/1440 -> 0 | G5: =COUNTIF(B_plage,$B5)*15/1440 -> 0 | H5: =COUNTIF(C_plage,$B5)*15/1440 -> 0 | I5: =COUNTIF(D_plage,$B5)*15/1440 -> 0 | J5: =COUNTIF(E_plage,$B5)*15/1440 -> 0 | K5: =COUNTIF(F_plage,$B5)*15/1440 -> 0 | L5: =COUNTIF(G_plage,$B5)*15/1440 -> 0 | M5: =COUNTIF(H_plage,$B5)*15/1440 -> 0 | N5: =COUNTIF(I_plage,$B5)*15/1440 -> 0.125 | O5: =COUNTIF(J_plage,$B5)*15/1440 -> 0 | P5: =COUNTIF(K_plage,$B5)*15/1440 -> 0 | Q5: =COUNTIF(L_plage,$B5)*15/1440 -> 0 | R5: =COUNTIF(M_plage,$B5)*15/1440 -> 0 | S5: =COUNTIF(N1_plage,$B5)*15/1440 -> 0 | T5: =COUNTIF(N2_plage,$B5)*15/1440 -> 0 | U5: =COUNTIF(P_plage,$B5)*15/1440 -> 0
B6: 3 | C6: =COUNTIF(F6:T6,">0") -> 1 | D6: =SUM(F6:U6) -> 1.197916667 | E6: J.B.E. | F6: =COUNTIF(A_Plage,$B6)*15/1440 -> 0 | G6: 1.197916667 | H6: 0 | I6: 0 | J6: 0 | K6: 0 | L6: 0 | M6: 0 | N6: =COUNTIF(I_plage,$B6)*15/1440 -> 0 | O6: 0 | P6: 0 | Q6: 0 | R6: 0 | S6: 0 | T6: 0 | U6: 0
B7: 4 | C7: 4 | D7: 0.9791666667 | E7: GYM LOISIR | F7: =COUNTIF(A_Plage,$B7)*15/1440 -> 0.1354166667 | G7: 0 | H7: 0.4895833333 | I7: 0 | J7: 0.2291666667 | K7: 0 | L7: 0 | M7: 0.125 | N7: 0 | O7: 0 | P7: 0 | Q7: 0 | R7: 0 | S7: 0 | T7: 0 | U7: 0
B8: 5 | C8: 4 | D8: 2.302083333 | E8: BASKET | F8: 0 | G8: 0 | H8: 0 | I8: 0 | J8: 0 | K8: 0.0625 | L8: 1.166666667 | M8: 0.625 | N8: 0.4479166667 | O8: 0 | P8: 0 | Q8: 0 | R8: 0 | S8: 0 | T8: 0 | U8: 0
B9: 7 | C9: 1 | D9: 0.08333333333 | E9: CYCLOS | F9: 0 | G9: 0 | H9: 0 | I9: 0 | J9: 0 | K9: 0 | L9: 0 | M9: 0 | N9: 0.08333333333 | O9: 0 | P9: 0 | Q9: 0 | R9: 0 | S9: 0 | T9: 0 | U9: 0
B10: 9 | C10: 0 | D10: 0 | E10: GAULE | F10: 0 | G10: 0 | H10: 0 | I10: 0 | J10: 0 | K10: 0 | L10: 0 | M10: 0 | N10: 0 | O10: 0 | P10: 0 | Q10: 0 | R10: 0 | S10: 0 | T10: 0 | U10: 0
B11: 10 | C11: 1 | D11: 0.9895833333 | E11: JUDO | F11: 0.9895833333 | G11: 0 | H11: 0 | I11: 0 | J11: 0 | K11: 0 | L11: 0 | M11: 0 | N11: 0 | O11: 0 | P11: 0 | Q11: 0 | R11: 0 | S11: 0 | T11: 0 | U11: 0
B12: 11 | C12: 1 | D12: 0.1666666667 | E12: LUTTE | F12: 0 | G12: 0 | H12: 0.1666666667 | I12: 0 | J12: 0 | K12: =COUNTIF(F_plage,$B12)*15/1440 -> 0 | L12: 0 | M12: 0 | N12: 0 | O12: 0 | P12: 0 | Q12: 0 | R12: 0 | S12: 0 | T12: 0 | U12: 0
B13: 15 | C13: 2 | D13: 7.208333333 | E13: TENNIS (2) | F13: 0 | G13: 0 | H13: 0 | I13: 0 | J13: 0 | K13: 0 | L13: 0 | M13: 0 | N13: 0 | O13: 0 | P13: 0 | Q13: 0 | R13: 0 | S13: 3.354166667 | T13: 3.854166667 | U13: 0
B14: 16 | C14: 0 | D14: 2.104166667 | E14: CIRQUE (1) | F14: 0 | G14: 0 | H14: 0 | I14: 0 | J14: 0 | K14: 0 | L14: 0 | M14: 0 | N14: 0 | O14: 0 | P14: 0 | Q14: 0 | R14: 0 | S14: 0 | T14: 0 | U14: 2.104166667
B15: 17 | C15: 1 | D15: 0.3958333333 | E15: TAI JITSU | F15: 0.3958333333 | G15: 0 | H15: 0 | I15: 0 | J15: 0 | K15: 0 | L15: 0 | M15: 0 | N15: 0 | O15: 0 | P15: 0 | Q15: 0 | R15: 0 | S15: 0 | T15: 0 | U15: 0
B16: 19 | C16: 4 | D16: 0.6770833333 | E16: G.VOLONTAIRE | F16: 0.2916666667 | G16: 0 | H16: 0.2083333333 | I16: 0.1354166667 | J16: 0.04166666667 | K16: 0 | L16: 0 | M16: 0 | N16: 0 | O16: 0 | P16: 0 | Q16: 0 | R16: 0 | S16: 0 | T16: 0 | U16: 0
B17: 20 | C17: 1 | D17: 0.2083333333 | E17: DIAGONALE | F17: 0 | G17: 0 | H17: 0 | I17: 0 | J17: 0 | K17: 0 | L17: 0 | M17: 0 | N17: 0 | O17: 0 | P17: 0 | Q17: 0 | R17: 0.2083333333 | S17: 0 | T17: 0 | U17: 0
B18: 21 | C18: 0 | D18: 0 | E18: A.C.E (1) | F18: 0 | G18: 0 | H18: 0 | I18: 0 | J18: 0 | K18: 0 | L18: 0 | M18: 0 | N18: 0 | O18: 0 | P18: 0 | Q18: 0 | R18: 0 | S18: 0 | T18: 0 | U18: 0
B19: 23 | C19: 1 | D19: 0.5833333333 | E19: ESCALADE | F19: 0 | G19: 0 | H19: 0 | I19: 0 | J19: 0 | K19: 0 | L19: 0 | M19: 0.5833333333 | N19: 0 | O19: 0 | P19: 0 | Q19: 0 | R19: 0 | S19: 0 | T19: 0 | U19: 0
B20: 24 | C20: 1 | D20: 0.6354166667 | E20: ARCHERS | F20: 0 | G20: 0.6354166667 | H20: 0 | I20: 0 | J20: 0 | K20: 0 | L20: 0 | M20: 0 | N20: 0 | O20: 0 | P20: 0 | Q20: 0 | R20: 0 | S20: 0 | T20: 0 | U20: 0
B21: 27 | C21: 3 | D21: 2.270833333 | E21: O.C.E | F21: 0 | G21: 0 | H21: 0 | I21: 0 | J21: 0 | K21: 0 | L21: 0 | M21: 0 | N21: 0 | O21: 1.177083333 | P21: 0.3125 | Q21: 0.78125 | R21: 0 | S21: 0 | T21: 0 | U21: 0
B22: 28 | C22: 1 | D22: 0.1666666667 | E22: LAI MUOI | F22: 0 | G22: 0 | H22: 0.1666666667 | I22: 0 | J22: 0 | K22: 0 | L22: 0 | M22: 0 | N22: 0 | O22: 0 | P22: 0 | Q22: 0 | R22: 0 | S22: 0 | T22: 0 | U22: 0
B23: 30 | C23: 3 | D23: 0.4166666667 | E23: TAEKWONDO | F23: 0.1041666667 | G23: 0 | H23: 0.1041666667 | I23: 0.2083333333 | J23: 0 | K23: 0 | L23: 0 | M23: 0 | N23: 0 | O23: 0 | P23: 0 | Q23: 0 | R23: 0 | S23: 0 | T23: 0 | U23: 0
B24: 31 | C24: 3 | D24: 0.5 | E24: E.S.A.G.A.M.I | F24: 0 | G24: 0.2291666667 | H24: 0 | I24: 0 | J24: 0 | K24: 0 | L24: 0.1354166667 | M24: 0.1354166667 | N24: 0 | O24: 0 | P24: 0 | Q24: 0 | R24: 0 | S24: 0 | T24: 0 | U24: 0
B25: 32 | C25: 1 | D25: 0.5 | E25: ALEETT | F25: 0 | G25: 0 | H25: 0 | I25: 0 | J25: 0 | K25: 0 | L25: 0 | M25: 0.5 | N25: 0 | O25: 0 | P25: 0 | Q25: 0 | R25: 0 | S25: 0 | T25: 0 | U25: 0
B26: 34 | C26: 1 | D26: 0.5104166667 | E26: SPIRIT 38 | F26: 0 | G26: 0 | H26: 0.5104166667 | I26: 0 | J26: 0 | K26: 0 | L26: 0 | M26: 0 | N26: 0 | O26: 0 | P26: 0 | Q26: 0 | R26: 0 | S26: 0 | T26: 0 | U26: 0
B27: 35 | C27: 0 | D27: 0 | E27: GMC38EYBENS | F27: 0 | G27: 0 | H27: 0 | I27: 0 | J27: 0 | K27: 0 | L27: 0 | M27: 0 | N27: 0 | O27: 0 | P27: 0 | Q27: 0 | R27: 0 | S27: 0 | T27: 0 | U27: 0
B28: 36 | C28: 1 | D28: 0.5833333333 | E28: PETANQUE | F28: 0 | G28: 0.5833333333 | H28: 0 | I28: 0 | J28: 0 | K28: 0 | L28: 0 | M28: 0 | N28: 0 | O28: 0 | P28: 0 | Q28: 0 | R28: 0 | S28: 0 | T28: 0 | U28: 0
B29: 37 | C29: 1 | D29: 1.229166667 | E29: HBC2E | F29: 0 | G29: 0 | H29: 0 | I29: 0 | J29: 0 | K29: 1.229166667 | L29: 0 | M29: 0 | N29: 0 | O29: 0 | P29: 0 | Q29: 0 | R29: 0 | S29: 0 | T29: 0 | U29: 0
C30: 0 | D30: 0 | F30: 0 | G30: 0 | H30: 0 | I30: 0 | J30: 0 | K30: 0 | L30: 0 | M30: 0 | N30: 0 | O30: 0 | P30: 0 | Q30: 0 | R30: 0 | S30: 0 | T30: 0 | U30: 0
C31: 0 | D31: 0 | F31: 0 | G31: 0 | H31: 0 | I31: 0 | J31: 0 | K31: 0 | L31: 0 | M31: 0 | N31: 0 | O31: 0 | P31: 0 | Q31: 0 | R31: 0 | S31: 0 | T31: 0 | U31: 0
D33: =SUM(D5:D32) -> 23.83333333 | F33: =SUM(F5:F31) -> 1.916666667 | G33: 2.645833333 | H33: 1.645833333 | I33: 0.34375 | J33: 0.2708333333 | K33: 1.291666667 | L33: 1.302083333 | M33: 1.96875 | N33: 0.65625 | O33: 1.177083333 | P33: 0.3125 | Q33: 0.78125 | R33: 0.2083333333 | S33: 3.354166667 | T33: 3.854166667 | U33: 2.104166667

Sheet Récap TOUT
B1: ='EQPT&UTIL'!B25 -> 2019-2020
D2: TEMPS | F2: LES ÉQUIPEMENTS RÉFÉRENCÉS / En heures/Minutes
B3: REF | C3: Nb Equipt Utilisés | D3: Heures | E3: Salles | F3: A | G3: B | H3: C | I3: D | J3: E | K3: F | L3: G | M3: H | N3: I | O3: J | P3: K | Q3: L | R3: M | S3: N1 | T3: N2 | U3: O
E4: UTILISATEURS | F4: Salle poly Boulodrm | G4: Boulodrome | H4: Salle Poly RJ | I4: Salle 2èm F Faivre | J4: Préau Bourg | K4: Gym R Journet | L4: Salle C F Faivre | M4: Salle B F Faivre | N4: Salle Muscu F Faivre | O4: Stade Compet R. Journet | P4: Stade Herbe R Journet | Q4: Stade C. Piot | R4: Salle de La Tuilerie | S4: Tennis C court 1 | T4: Tennis C court 2 | U4: Salle G; Veymont | V4: Equipmt Utilisés
B5: 1 | C5: =COUNTIF(F5:U5,">0") -> 1 | D5: =SUM(F5:U5) -> 0.125 | E5: =INDEX(UTILISATEURS,MATCH(B5,RefUtil,0),2) -> OMS | F5: =COUNTIF(A_Plage,$B5)*15/1440 -> 0 | G5: =COUNTIF(B_plage,$B5)*15/1440 -> 0 | H5: =COUNTIF(C_plage,$B5)*15/1440 -> 0 | I5: =COUNTIF(D_plage,$B5)*15/1440 -> 0 | J5: =COUNTIF(E_plage,$B5)*15/1440 -> 0 | K5: =COUNTIF(F_plage,$B5)*15/1440 -> 0 | L5: =COUNTIF(G_plage,$B5)*15/1440 -> 0 | M5: =COUNTIF(H_plage,$B5)*15/1440 -> 0 | N5: =COUNTIF(I_plage,$B5)*15/1440 -> 0.125 | O5: =COUNTIF(J_plage,$B5)*15/1440 -> 0 | P5: =COUNTIF(K_plage,$B5)*15/1440 -> 0 | Q5: =COUNTIF(L_plage,$B5)*15/1440 -> 0 | R5: =COUNTIF(M_plage,$B5)*15/1440 -> 0 | S5: =COUNTIF(N1_plage,$B5)*15/1440 -> 0 | T5: =COUNTIF(N2_plage,$B5)*15/1440 -> 0 | U5: =COUNTIF(P_plage,$B5)*15/1440 -> 0 | V5: =CONCATENATE(Z5,AA5,AB5,AC5,AD5,AE5,AF5,AG5,AH5,AI5,AJ5,AK5,AL5,AM5,AN5,AO5,) -> I | Z5: =IF(F5>0,F$3,"") ->  | AA5: =IF(G5>0,G$3,"") ->  | AH5: =IF(N5>0,N$3,"") -> I | AI5: =IF(O5>0,O$3,"") ->  | AJ5: =IF(P5>0,P$3,"") ->  | AK5: =IF(Q5>0,Q$3,"") ->  | AL5: =IF(R5>0,R$3,"") ->  | AM5: =IF(S5>0,S$3,"") ->  | AN5: =IF(T5>0,T$3,"") -> 
B6: 3 | C6: =COUNTIF(F6:U6,">0") -> 1 | D6: =SUM(F6:U6) -> 1.197916667 | E6: J.B.E. | F6: 0 | G6: 1.197916667 | H6: 0 | I6: 0 | J6: 0 | K6: 0 | L6: 0 | M6: 0 | N6: 0 | O6: 0 | P6: 0 | Q6: 0 | R6: 0 | S6: 0 | T6: 0 | U6: 0 | V6: =CONCATENATE(Z6,AA6,AB6,AC6,AD6,AE6,AF6,AG6,AH6,AI6,AJ6,AK6,AL6,AM6,AN6,AO6,) -> B | Z6: =IF(F6>0,F$3,"") ->  | AA6: =IF(G6>0,G$3,"") -> B | AB6: =IF(H6>0,H$3,"") ->  | AC6: =IF(I6>0,I$3,"") ->  | AD6: =IF(J6>0,J$3,"") ->  | AE6: =IF(K6>0,K$3,"") ->  | AF6: =IF(L6>0,L$3,"") ->  | AG6: =IF(M6>0,M$3,"") ->  | AH6: =IF(N6>0,N$3,"") ->  | AI6: =IF(O6>0,O$3,"") ->  | AJ6: =IF(P6>0,P$3,"") ->  | AK6: =IF(Q6>0,Q$3,"") ->  | AL6: =IF(R6>0,R$3,"") ->  | AM6: =IF(S6>0,S$3,"") ->  | AN6: =IF(T6>0,T$3,"") ->  | AO6: =IF(U6>0,U$3,"") -> 
B7: 4 | C7: 4 | D7: 0.9791666667 | E7: GYM LOISIR | F7: 0.1354166667 | G7: 0 | H7: 0.4895833333 | I7: 0 | J7: 0.2291666667 | K7: 0 | L7: 0 | M7: 0.125 | N7: 0 | O7: 0 | P7: 0 | Q7: 0 | R7: 0 | S7: 0 | T7: 0 | U7: 0 | V7: ACEH | Z7: A | AB7: C | AD7: E | AG7: H
B8: 5 | C8: 4 | D8: 2.302083333 | E8: BASKET | F8: 0 | G8: 0 | H8: 0 | I8: 0 | J8: 0 | K8: 0.0625 | L8: 1.166666667 | M8: 0.625 | N8: 0.4479166667 | O8: 0 | P8: 0 | Q8: 0 | R8: 0 | S8: 0 | T8: 0 | U8: 0 | V8: FGHI | AE8: F | AF8: G | AG8: H | AH8: I
B9: 7 | C9: 1 | D9: 0.08333333333 | E9: CYCLOS | F9: 0 | G9: 0 | H9: 0 | I9: 0 | J9: 0 | K9: 0 | L9: 0 | M9: 0 | N9: 0.08333333333 | O9: 0 | P9: 0 | Q9: 0 | R9: 0 | S9: 0 | T9: 0 | U9: 0 | V9: I | AH9: I
B10: 9 | C10: 0 | D10: 0 | E10: GAULE | F10: 0 | G10: 0 | H10: 0 | I10: 0 | J10: 0 | K10: 0 | L10: 0 | M10: 0 | N10: 0 | O10: 0 | P10: 0 | Q10: 0 | R10: 0 | S10: 0 | T10: 0 | U10: 0
B11: 10 | C11: 1 | D11: 0.9895833333 | E11: JUDO | F11: 0.9895833333 | G11: 0 | H11: 0 | I11: 0 | J11: 0 | K11: 0 | L11: 0 | M11: 0 | N11: 0 | O11: 0 | P11: 0 | Q11: 0 | R11: 0 | S11: 0 | T11: 0 | U11: 0 | V11: A | Z11: A
B12: 11 | C12: 1 | D12: 0.1666666667 | E12: LUTTE | F12: 0 | G12: 0 | H12: 0.1666666667 | I12: 0 | J12: 0 | K12: 0 | L12: 0 | M12: 0 | N12: 0 | O12: 0 | P12: 0 | Q12: 0 | R12: 0 | S12: 0 | T12: 0 | U12: 0 | V12: C | AB12: C
B13: 15 | C13: 2 | D13: 7.208333333 | E13: =INDEX(UTILISATEURS,MATCH(B13,RefUtil,0),2) -> TENNIS (2) | F13: 0 | G13: 0 | H13: 0 | I13: 0 | J13: 0 | K13: 0 | L13: 0 | M13: 0 | N13: 0 | O13: 0 | P13: 0 | Q13: 0 | R13: 0 | S13: 3.354166667 | T13: 3.854166667 | U13: 0 | V13: N1N2 | AM13: N1 | AN13: N2
B14: 16 | C14: 1 | D14: 2.104166667 | E14: CIRQUE (1) | F14: 0 | G14: 0 | H14: 0 | I14: 0 | J14: 0 | K14: 0 | L14: 0 | M14: 0 | N14: 0 | O14: 0 | P14: 0 | Q14: 0 | R14: 0 | S14: 0 | T14: 0 | U14: 2.104166667 | V14: O | AO14: O
B15: 17 | C15: 1 | D15: 0.3958333333 | E15: TAI JITSU | F15: 0.3958333333 | G15: 0 | H15: 0 | I15: 0 | J15: 0 | K15: 0 | L15: 0 | M15: 0 | N15: 0 | O15: 0 | P15: 0 | Q15: 0 | R15: 0 | S15: 0 | T15: 0 | U15: 0 | V15: A | Z15: A
B16: 19 | C16: 4 | D16: 0.6770833333 | E16: G.VOLONTAIRE | F16: 0.2916666667 | G16: 0 | H16: 0.2083333333 | I16: 0.1354166667 | J16: 0.04166666667 | K16: 0 | L16: 0 | M16: 0 | N16: 0 | O16: 0 | P16: 0 | Q16: 0 | R16: 0 | S16: 0 | T16: 0 | U16: 0 | V16: ACDE | Z16: A | AB16: C | AC16: D | AD16: E
B17: 20 | C17: 1 | D17: 0.2083333333 | E17: DIAGONALE | F17: 0 | G17: 0 | H17: 0 | I17: 0 | J17: 0 | K17: 0 | L17: 0 | M17: 0 | N17: 0 | O17: 0 | P17: 0 | Q17: 0 | R17: 0.2083333333 | S17: 0 | T17: 0 | U17: 0 | V17: M | AL17: M
B18: 21 | C18: 0 | D18: 0 | E18: A.C.E (1) | F18: 0 | G18: 0 | H18: 0 | I18: 0 | J18: 0 | K18: 0 | L18: 0 | M18: 0 | N18: 0 | O18: 0 | P18: 0 | Q18: 0 | R18: 0 | S18: 0 | T18: 0 | U18: 0
B19: 23 | C19: 1 | D19: 0.5833333333 | E19: ESCALADE | F19: 0 | G19: 0 | H19: 0 | I19: 0 | J19: 0 | K19: 0 | L19: 0 | M19: 0.5833333333 | N19: 0 | O19: 0 | P19: 0 | Q19: 0 | R19: 0 | S19: 0 | T19: 0 | U19: 0 | V19: H | AG19: H
B20: 24 | C20: 1 | D20: 0.6354166667 | E20: ARCHERS | F20: 0 | G20: 0.6354166667 | H20: 0 | I20: 0 | J20: 0 | K20: 0 | L20: 0 | M20: 0 | N20: 0 | O20: 0 | P20: 0 | Q20: 0 | R20: 0 | S20: 0 | T20: 0 | U20: 0 | V20: B | AA20: B
B21: 27 | C21: 3 | D21: 2.270833333 | E21: O.C.E | F21: 0 | G21: 0 | H21: 0 | I21: 0 | J21: 0 | K21: 0 | L21: 0 | M21: 0 | N21: 0 | O21: 1.177083333 | P21: 0.3125 | Q21: 0.78125 | R21: 0 | S21: 0 | T21: 0 | U21: 0 | V21: JKL | AI21: J | AJ21: K | AK21: L
B22: 28 | C22: 1 | D22: 0.1666666667 | E22: LAI MUOI | F22: 0 | G22: 0 | H22: 0.1666666667 | I22: 0 | J22: 0 | K22: 0 | L22: 0 | M22: 0 | N22: 0 | O22: 0 | P22: 0 | Q22: 0 | R22: 0 | S22: 0 | T22: 0 | U22: 0 | V22: C | AB22: C
B23: 30 | C23: 3 | D23: 0.4166666667 | E23: TAEKWONDO | F23: 0.1041666667 | G23: 0 | H23: 0.1041666667 | I23: 0.2083333333 | J23: 0 | K23: 0 | L23: 0 | M23: 0 | N23: 0 | O23: 0 | P23: 0 | Q23: 0 | R23: 0 | S23: 0 | T23: 0 | U23: 0 | V23: ACD | Z23: A | AB23: C | AC23: D
B24: 31 | C24: 3 | D24: 0.5 | E24: E.S.A.G.A.M.I | F24: 0 | G24: 0.2291666667 | H24: 0 | I24: 0 | J24: 0 | K24: 0 | L24: 0.1354166667 | M24: 0.1354166667 | N24: 0 | O24: 0 | P24: 0 | Q24: 0 | R24: 0 | S24: 0 | T24: 0 | U24: 0 | V24: BGH | AA24: B | AF24: G | AG24: H
B25: 32 | C25: 1 | D25: 0.5 | E25: ALEETT | F25: 0 | G25: 0 | H25: 0 | I25: 0 | J25: 0 | K25: 0 | L25: 0 | M25: 0.5 | N25: 0 | O25: 0 | P25: 0 | Q25: 0 | R25: 0 | S25: 0 | T25: 0 | U25: 0 | V25: H | AG25: H
B26: 34 | C26: 1 | D26: 0.5104166667 | E26: SPIRIT 38 | F26: 0 | G26: 0 | H26: 0.5104166667 | I26: 0 | J26: 0 | K26: 0 | L26: 0 | M26: 0 | N26: 0 | O26: 0 | P26: 0 | Q26: 0 | R26: 0 | S26: 0 | T26: 0 | U26: 0 | V26: C | AB26: C
B27: 35 | C27: 0 | D27: 0 | E27: GMC38EYBENS | F27: 0 | G27: 0 | H27: 0 | I27: 0 | J27: 0 | K27: 0 | L27: 0 | M27: 0 | N27: 0 | O27: 0 | P27: 0 | Q27: 0 | R27: 0 | S27: 0 | T27: 0 | U27: 0
B28: 36 | C28: 1 | D28: 0.5833333333 | E28: PETANQUE | F28: 0 | G28: 0.5833333333 | H28: 0 | I28: 0 | J28: 0 | K28: 0 | L28: 0 | M28: 0 | N28: 0 | O28: 0 | P28: 0 | Q28: 0 | R28: 0 | S28: 0 | T28: 0 | U28: 0 | V28: B | AA28: B
B29: 37 | C29: 1 | D29: 1.229166667 | E29: HBC2E | F29: 0 | G29: 0 | H29: 0 | I29: 0 | J29: 0 | K29: 1.229166667 | L29: 0 | M29: 0 | N29: 0 | O29: 0 | P29: 0 | Q29: 0 | R29: 0 | S29: 0 | T29: 0 | U29: 0 | V29: F | AE29: F
C30: 0 | D30: =SUM(F30:U30) -> 0 | E30: =INDEX(UTILISATEURS,MATCH(B30,RefUtil,0),2) ->  | F30: =COUNTIF(A_Plage,$B30)*15/1440 -> 0 | G30: =COUNTIF(B_plage,$B30)*15/1440 -> 0 | H30: =COUNTIF(C_plage,$B30)*15/1440 -> 0 | I30: =COUNTIF(D_plage,$B30)*15/1440 -> 0 | J30: =COUNTIF(E_plage,$B30)*15/1440 -> 0 | K30: =COUNTIF(F_plage,$B30)*15/1440 -> 0 | L30: =COUNTIF(G_plage,$B30)*15/1440 -> 0 | M30: =COUNTIF(H_plage,$B30)*15/1440 -> 0 | N30: =COUNTIF(I_plage,$B30)*15/1440 -> 0 | O30: =COUNTIF(J_plage,$B30)*15/1440 -> 0 | P30: =COUNTIF(K_plage,$B30)*15/1440 -> 0 | Q30: =COUNTIF(L_plage,$B30)*15/1440 -> 0 | R30: =COUNTIF(M_plage,$B30)*15/1440 -> 0 | S30: =COUNTIF(N1_plage,$B30)*15/1440 -> 0 | T30: =COUNTIF(N2_plage,$B30)*15/1440 -> 0 | U30: =COUNTIF(P_plage,$B30)*15/1440 -> 0
C31: 0 | D31: 0 | F31: 0 | G31: 0 | H31: 0 | I31: 0 | J31: 0 | K31: 0 | L31: 0 | M31: 0 | N31: 0 | O31: 0 | P31: 0 | Q31: 0 | R31: 0 | S31: 0 | T31: 0 | U31: 0
B32: 50 | C32: 5 | D32: 4 | E32: =INDEX(UTILISATEURS,MATCH(B32,RefUtil,0),2) -> SCOLAIRE | F32: 0 | G32: 0 | H32: 0.5 | I32: 0 | J32: 0.8229166667 | K32: 0.9166666667 | L32: 0.8333333333 | M32: 0.9270833333 | N32: 0 | O32: 0 | P32: 0 | Q32: 0 | R32: 0 | S32: 0 | T32: 0 | U32: 0 | V32: CEFGH | AB32: C | AD32: E | AE32: F | AF32: G | AG32: H
B33: 51 | C33: 2 | D33: 0.2083333333 | E33: =INDEX(UTILISATEURS,MATCH(B33,RefUtil,0),2) -> Sport Passion | F33: 0 | G33: 0 | H33: 0 | I33: 0 | J33: 0 | K33: 0.1041666667 | L33: 0 | M33: 0.1041666667 | N33: 0 | O33: 0 | P33: 0 | Q33: 0 | R33: 0 | S33: 0 | T33: 0 | U33: 0 | V33: FH | AE33: F | AG33: H
B34: 52 | C34: 4 | D34: 0.9479166667 | E34: =INDEX(UTILISATEURS,MATCH(B34,RefUtil,0),2) -> Péri Scolaire | F34: 0 | G34: 0 | H34: 0 | I34: 0 | J34: 0.6354166667 | K34: 0.0625 | L34: 0.125 | M34: 0.125 | N34: 0 | O34: 0 | P34: 0 | Q34: 0 | R34: 0 | S34: 0 | T34: 0 | U34: 0 | V34: EFGH | AD34: E | AE34: F | AF34: G | AG34: H
B35: 53 | C35: 1 | D35: 0.1041666667 | E35: =INDEX(UTILISATEURS,MATCH(B35,RefUtil,0),2) -> Crêche Familiale | F35: 0.1041666667 | G35: 0 | H35: 0 | I35: 0 | J35: 0 | K35: 0 | L35: 0 | M35: 0 | N35: 0 | O35: 0 | P35: 0 | Q35: 0 | R35: 0 | S35: 0 | T35: 0 | U35: 0 | V35: A | Z35: A
B36: 54 | C36: 1 | D36: 0.1041666667 | E36: =INDEX(UTILISATEURS,MATCH(B36,RefUtil,0),2) -> Rel Ass Matern | F36: 0.1041666667 | G36: 0 | H36: 0 | I36: 0 | J36: 0 | K36: 0 | L36: 0 | M36: 0 | N36: 0 | O36: 0 | P36: 0 | Q36: 0 | R36: 0 | S36: 0 | T36: 0 | U36: 0 | V36: A | Z36: A
B37: 55 | C37: 1 | D37: 0.01041666667 | E37: ?Pôle Enfance | F37: =COUNTIF(A_Plage,$B37)*15/1440 -> 0 | G37: =COUNTIF(B_plage,$B37)*15/1440 -> 0 | H37: =COUNTIF(C_plage,$B37)*15/1440 -> 0 | I37: =COUNTIF(D_plage,$B37)*15/1440 -> 0 | J37: =COUNTIF(E_plage,$B37)*15/1440 -> 0 | K37: =COUNTIF(F_plage,$B37)*15/1440 -> 0 | L37: =COUNTIF(G_plage,$B37)*15/1440 -> 0 | M37: =COUNTIF(H_plage,$B37)*15/1440 -> 0 | N37: =COUNTIF(I_plage,$B37)*15/1440 -> 0.01041666667 | O37: =COUNTIF(J_plage,$B37)*15/1440 -> 0 | P37: =COUNTIF(K_plage,$B37)*15/1440 -> 0 | Q37: =COUNTIF(L_plage,$B37)*15/1440 -> 0 | R37: =COUNTIF(M_plage,$B37)*15/1440 -> 0 | S37: =COUNTIF(N1_plage,$B37)*15/1440 -> 0 | T37: =COUNTIF(N2_plage,$B37)*15/1440 -> 0 | U37: =COUNTIF(P_plage,$B37)*15/1440 -> 0 | V37: I | AH37: I
B38: 56 | C38: 1 | D38: 0.1666666667 | E38: Anim. Municip. | F38: 0 | G38: 0 | H38: 0 | I38: 0 | J38: 0 | K38: 0 | L38: 0 | M38: 0 | N38: 0.1666666667 | O38: 0 | P38: 0 | Q38: 0 | R38: 0 | S38: 0 | T38: 0 | U38: 0 | V38: I | AH38: I
B39: 57 | C39: 0 | D39: 0 | E39: Crêche P Chose | F39: 0 | G39: 0 | H39: 0 | I39: 0 | J39: 0 | K39: 0 | L39: 0 | M39: 0 | N39: 0 | O39: 0 | P39: 0 | Q39: 0 | R39: 0 | S39: 0 | T39: 0 | U39: 0
B40: 58 | C40: 0 | D40: 0 | E40: 0 | F40: 0 | G40: 0 | H40: 0 | I40: 0 | J40: 0 | K40: 0 | L40: 0 | M40: 0 | N40: 0 | O40: 0 | P40: 0 | Q40: 0 | R40: 0 | S40: 0 | T40: 0 | U40: 0
B41: 59 | C41: 2 | D41: =SUM(F41:U41) -> 0.1979166667 | E41: =INDEX(UTILISATEURS,MATCH(B41,RefUtil,0),2) -> Police Municip | F41: =COUNTIF(A_Plage,$B41)*15/1440 -> 0 | G41: =COUNTIF(B_plage,$B41)*15/1440 -> 0 | H41: =COUNTIF(C_plage,$B41)*15/1440 -> 0 | I41: =COUNTIF(D_plage,$B41)*15/1440 -> 0.125 | J41: =COUNTIF(E_plage,$B41)*15/1440 -> 0 | K41: =COUNTIF(F_plage,$B41)*15/1440 -> 0 | L41: =COUNTIF(G_plage,$B41)*15/1440 -> 0 | M41: =COUNTIF(H_plage,$B41)*15/1440 -> 0.07291666667 | N41: =COUNTIF(I_plage,$B41)*15/1440 -> 0 | O41: =COUNTIF(J_plage,$B41)*15/1440 -> 0 | P41: =COUNTIF(K_plage,$B41)*15/1440 -> 0 | Q41: =COUNTIF(L_plage,$B41)*15/1440 -> 0 | R41: =COUNTIF(M_plage,$B41)*15/1440 -> 0 | S41: =COUNTIF(N1_plage,$B41)*15/1440 -> 0 | T41: =COUNTIF(N2_plage,$B41)*15/1440 -> 0 | U41: =COUNTIF(P_plage,$B41)*15/1440 -> 0 | V41: DH | AC41: D | AG41: H
B42: 60 | C42: 0 | D42: =SUM(F42:U42) -> 0 | E42: 0 | F42: =COUNTIF(A_Plage,$B42)*15/1440 -> 0 | G42: =COUNTIF(B_plage,$B42)*15/1440 -> 0 | H42: =COUNTIF(C_plage,$B42)*15/1440 -> 0 | I42: =COUNTIF(D_plage,$B42)*15/1440 -> 0 | J42: =COUNTIF(E_plage,$B42)*15/1440 -> 0 | K42: =COUNTIF(F_plage,$B42)*15/1440 -> 0 | L42: =COUNTIF(G_plage,$B42)*15/1440 -> 0 | M42: =COUNTIF(H_plage,$B42)*15/1440 -> 0 | N42: =COUNTIF(I_plage,$B42)*15/1440 -> 0 | O42: =COUNTIF(J_plage,$B42)*15/1440 -> 0 | P42: =COUNTIF(K_plage,$B42)*15/1440 -> 0 | Q42: =COUNTIF(L_plage,$B42)*15/1440 -> 0 | R42: =COUNTIF(M_plage,$B42)*15/1440 -> 0 | S42: =COUNTIF(N1_plage,$B42)*15/1440 -> 0 | T42: =COUNTIF(N2_plage,$B42)*15/1440 -> 0 | U42: =COUNTIF(P_plage,$B42)*15/1440 -> 0
B43: 61 | C43: 0 | D43: 0 | E43: - | F43: 0 | G43: 0 | H43: 0 | I43: 0 | J43: 0 | K43: 0 | L43: 0 | M43: 0 | N43: 0 | O43: 0 | P43: 0 | Q43: 0 | R43: 0 | S43: 0 | T43: 0 | U43: 0
B44: 100 | C44: 2 | D44: 0.5 | E44: POISAT | F44: 0 | G44: 0 | H44: 0 | I44: 0.25 | J44: 0 | K44: 0 | L44: 0.25 | M44: 0 | N44: 0 | O44: 0 | P44: 0 | Q44: 0 | R44: 0 | S44: 0 | T44: 0 | U44: 0 | V44: DG | AC44: D | AF44: G
B45: 101 | C45: 0 | D45: 0 | E45: ECHIROLLES | F45: 0 | G45: 0 | H45: 0 | I45: 0 | J45: 0 | K45: 0 | L45: 0 | M45: 0 | N45: 0 | O45: 0 | P45: 0 | Q45: 0 | R45: 0 | S45: 0 | T45: 0 | U45: 0
B46: 102 | C46: 4 | D46: 0.5416666667 | E46: H.P. | F46: 0.05208333333 | G46: 0 | H46: 0.1875 | I46: 0 | J46: 0 | K46: 0 | L46: 0 | M46: 0 | N46: 0 | O46: 0.21875 | P46: 0 | Q46: 0 | R46: 0 | S46: 0 | T46: 0.08333333333 | U46: 0 | V46: ACJN2 | Z46: A | AB46: C | AI46: J | AN46: N2
B47: 103 | C47: 2 | D47: 0.4583333333 | E47: I.M.E. | F47: 0.3541666667 | G47: 0.1041666667 | H47: 0 | I47: 0 | J47: 0 | K47: 0 | L47: 0 | M47: 0 | N47: 0 | O47: 0 | P47: 0 | Q47: 0 | R47: 0 | S47: 0 | T47: 0 | U47: 0 | V47: AB | Z47: A | AA47: B
B48: 104 | C48: 0 | D48: 0 | E48: 0 | F48: 0 | G48: 0 | H48: 0 | I48: 0 | J48: 0 | K48: 0 | L48: 0 | M48: 0 | N48: 0 | O48: 0 | P48: 0 | Q48: 0 | R48: 0 | S48: 0 | T48: 0 | U48: 0
B49: 105 | C49: 0 | D49: 0 | E49: Gendarm. Eybens | F49: 0 | G49: 0 | H49: 0 | I49: 0 | J49: 0 | K49: 0 | L49: 0 | M49: 0 | N49: 0 | O49: 0 | P49: 0 | Q49: 0 | R49: 0 | S49: 0 | T49: 0 | U49: 0
B50: 106 | C50: 0 | D50: 0 | E50: 0 | F50: 0 | G50: 0 | H50: 0 | I50: 0 | J50: 0 | K50: 0 | L50: 0 | M50: 0 | N50: 0 | O50: 0 | P50: 0 | Q50: 0 | R50: 0 | S50: 0 | T50: 0 | U50: 0
B51: 107 | C51: 1 | D51: 0.1458333333 | E51: D.Country | F51: 0 | G51: 0 | H51: 0 | I51: 0 | J51: 0.1458333333 | K51: 0 | L51: 0 | M51: 0 | N51: 0 | O51: 0 | P51: 0 | Q51: 0 | R51: 0 | S51: 0 | T51: 0 | U51: 0 | V51: E | AD51: E
B52: 108 | C52: 1 | D52: 0.08333333333 | E52: CE SOPRA | F52: 0 | G52: 0 | H52: 0 | I52: 0 | J52: 0 | K52: 0 | L52: 0 | M52: 0 | N52: 0 | O52: 0.08333333333 | P52: 0 | Q52: 0 | R52: 0 | S52: 0 | T52: 0 | U52: 0 | V52: J | AI52: J
B53: 109 | C53: 1 | D53: 0.0625 | E53: ASCE | F53: 0 | G53: 0 | H53: 0 | I53: 0 | J53: 0 | K53: 0 | L53: 0 | M53: 0 | N53: 0 | O53: 0.0625 | P53: 0 | Q53: 0 | R53: 0 | S53: 0 | T53: 0 | U53: 0 | V53: J | AI53: J
B54: 110 | C54: 1 | D54: 0.1666666667 | E54: HARMONIE EYBENS | F54: 0 | G54: 0 | H54: 0 | I54: 0 | J54: 0.1666666667 | K54: 0 | L54: 0 | M54: 0 | N54: 0 | O54: 0 | P54: 0 | Q54: 0 | R54: 0 | S54: 0 | T54: 0 | U54: 0 | V54: E | AD54: E
B55: 111 | C55: 0 | D55: 0 | E55: 0 | F55: 0 | G55: 0 | H55: 0 | I55: 0 | J55: 0 | K55: 0 | L55: 0 | M55: 0 | N55: 0 | O55: 0 | P55: 0 | Q55: 0 | R55: 0 | S55: 0 | T55: 0 | U55: 0
C56: 0 | D56: 0 | F56: 0 | G56: 0 | H56: 0 | I56: 0 | J56: 0 | K56: 0 | L56: 0 | M56: 0 | N56: 0 | O56: 0 | P56: 0 | Q56: 0 | R56: 0 | S56: 0 | T56: 0 | U56: 0
C57: 0 | D57: 0 | F57: 0 | G57: 0 | H57: 0 | I57: 0 | J57: 0 | K57: 0 | L57: 0 | M57: 0 | N57: 0 | O57: 0 | P57: 0 | Q57: 0 | R57: 0 | S57: 0 | T57: 0 | U57: 0
F59: =F4 -> Salle poly Boulodrm | G59: =G4 -> Boulodrome | H59: Salle Poly RJ | I59: Salle 2èm F Faivre | J59: Préau Bourg | K59: Gym R Journet | L59: Salle C F Faivre | M59: Salle B F Faivre | N59: Salle Muscu F Faivre | O59: Stade Compet R. Journet | P59: Stade Herbe R Journet | Q59: Stade C. Piot | R59: Salle de La Tuilerie | S59: Tennis C court 1 | T59: Tennis C court 2 | U59: Salle G; Veymont
B60: 1 à 37 | C60: =SUM(C5:C31) -> 38 | D60: =SUM(D5:D31) -> 23.83333333 | E60: Total utilisat OMS | F60: =COUNTIF(F$5:F$31,">0") -> 5 | G60: =COUNTIF(G$5:G$31,">0") -> 4 | H60: 6 | I60: 2 | J60: 2 | K60: 2 | L60: 2 | M60: 5 | N60: 3 | O60: 1 | P60: 1 | Q60: 1 | R60: 1 | S60: 1 | T60: 1 | U60: 1
B61: Vérif | C61: > | D61: =SUM(F61:U61) -> 23.83333333 | E61: Tps Utilisés> | F61: =SUM(F5:F31) -> 1.916666667 | G61: =SUM(G5:G31) -> 2.645833333 | H61: 1.645833333 | I61: 0.34375 | J61: 0.2708333333 | K61: 1.291666667 | L61: 1.302083333 | M61: 1.96875 | N61: 0.65625 | O61: 1.177083333 | P61: 0.3125 | Q61: 0.78125 | R61: 0.2083333333 | S61: 3.354166667 | T61: 3.854166667 | U61: 2.104166667
B62: 50 à 59 | C62: =SUM(C32:C43) -> 17 | D62: =SUM(D32:D43) -> 5.739583333 | E62: Total Sces Ville | F62: =COUNTIF(F$32:F$43,">0") -> 2 | G62: =COUNTIF(G$32:G$43,">0") -> 0 | H62: 1 | I62: 1 | J62: 2 | K62: 3 | L62: 2 | M62: 4 | N62: 2 | O62: 0 | P62: 0 | Q62: 0 | R62: 0 | S62: 0 | T62: 0 | U62: 0
B63: Vérif | C63: > | D63: =SUM(F63:U63) -> 5.739583333 | E63: Temps d'utilisations | F63: =SUM(F32:F43) -> 0.2083333333 | G63: =SUM(G32:G43) -> 0 | H63: 0.5 | I63: 0.125 | J63: 1.458333333 | K63: 1.083333333 | L63: 0.9583333333 | M63: 1.229166667 | N63: 0.1770833333 | O63: 0 | P63: 0 | Q63: 0 | R63: 0 | S63: 0 | T63: 0 | U63: 0
B64: 100 à .. | C64: =SUM(C44:C57) -> 12 | D64: =SUM(D44:D58) -> 1.958333333 | E64: Total Autres utilisat. | F64: =COUNTIF(F$44:F$57,">0") -> 2 | G64: =COUNTIF(G$44:G$57,">0") -> 1 | H64: 1 | I64: 1 | J64: 2 | K64: 0 | L64: 1 | M64: 0 | N64: 0 | O64: 3 | P64: 0 | Q64: 0 | R64: 0 | S64: 0 | T64: 1 | U64: 0
B65: Vérif | C65: > | D65: =SUM(F65:U65) -> 1.958333333 | F65: =SUM(F44:F56) -> 0.40625 | G65: =SUM(G44:G56) -> 0.1041666667 | H65: 0.1875 | I65: 0.25 | J65: 0.3125 | K65: 0 | L65: 0.25 | M65: 0 | N65: 0 | O65: 0.3645833333 | P65: 0 | Q65: 0 | R65: 0 | S65: 0 | T65: 0.08333333333 | U65: 0
C66: =C60+C62+C64 -> 67 | D66: =D60+D62+D64 -> 31.53125 | E66: Total Général H:M | F66: =SUM(F5:F58) -> 2.53125 | G66: =SUM(G5:G58) -> 2.75 | H66: 2.333333333 | I66: 0.71875 | J66: 2.041666667 | K66: 2.375 | L66: 2.510416667 | M66: 3.197916667 | N66: 0.8333333333 | O66: 1.541666667 | P66: 0.3125 | Q66: 0.78125 | R66: =SUM(R5:R58) -> 0.2083333333 | S66: 3.354166667 | T66: 3.9375 | U66: 2.104166667
D67: =SUM(F67:U67) -> 67 | E67: Nbre de photocopies | F67: =+F60+F64+F62 -> 9 | G67: =+G60+G64+G62 -> 5 | H67: 8 | I67: 4 | J67: 6 | K67: 5 | L67: 5 | M67: 9 | N67: 5 | O67: 4 | P67: 1 | Q67: 1 | R67: 1 | S67: 1 | T67: 2 | U67: 1

Sheet Récap OMS Plus
B2: =SUM(I6:AG6) -> 23.83333333 | F2: Clubs > | I2: =INDEX(UTILISATEURS,MATCH(I10,RefUtil,0),2) -> OMS | J2: J.B.E. | K2: GYM LOISIR | L2: BASKET | M2: CYCLOS | N2: GAULE | O2: JUDO | P2: LUTTE | Q2: TENNIS (2) | R2: CIRQUE (1) | S2: TAI JITSU | T2: G.VOLONTAIRE | U2: DIAGONALE | V2: A.C.E (1) | W2: ESCALADE | X2: ARCHERS | Y2: O.C.E | Z2: LAI MUOI | AA2: TAEKWONDO | AB2: E.S.A.G.A.M.I | AC2: ALEETT | AD2: SPIRIT 38 | AE2: GMC38EYBENS | AF2: PETANQUE | AG2: HBC2E
C3: Effectifs> | F3: Effectifs > | I3: 7 | J3: 118 | K3: 517 | L3: 262 | M3: 50 | N3: 136 | O3: 254 | P3: 40 | Q3: 173 | R3: 474 | S3: 55 | T3: 169 | U3: 128 | V3: 372 | W3: 78 | X3: 138 | Y3: 665 | Z3: 21 | AA3: 55 | AB3: 92 | AC3: 212 | AD3: 152 | AE3: 66 | AF3: 66 | AG3: 326
F4: Temps/Effectif > | I4: =I6/I3 -> 0.01785714286 | J4: 0.01015183616 | K4: 0.001893939394 | L4: 0.008786577608 | M4: 0.001666666667 | N4: 0 | O4: 0.003895997375 | P4: 0.004166666667 | Q4: 0.04166666667 | R4: 0.004439170183 | S4: 0.007196969697 | T4: 0.004006410256 | U4: 0.001627604167 | V4: 0 | W4: 0.007478632479 | X4: 0.004604468599 | Y4: 0.003414786967 | Z4: 0.007936507937 | AA4: 0.007575757576 | AB4: 0.005434782609 | AC4: 0.002358490566 | AD4: 0.003358004386 | AE4: 0 | AF4: 0.008838383838 | AG4: 0.003770449898
A5: Matrices | E5: Tot Géneral
E6: =SUM(I6:AG6) -> 23.83333333 | F6: Temps Hebdo/ Club : | I6: =SUM(I12:I49) -> 0.125 | J6: =SUM(J12:J49) -> 1.197916667 | K6: 0.9791666667 | L6: 2.302083333 | M6: 0.08333333333 | N6: 0 | O6: 0.9895833333 | P6: 0.1666666667 | Q6: 7.208333333 | R6: 2.104166667 | S6: 0.3958333333 | T6: 0.6770833333 | U6: 0.2083333333 | V6: 0 | W6: 0.5833333333 | X6: 0.6354166667 | Y6: 2.270833333 | Z6: 0.1666666667 | AA6: 0.4166666667 | AB6: 0.5 | AC6: 0.5 | AD6: 0.5104166667 | AE6: 0 | AF6: 0.5833333333 | AG6: 1.229166667
E7: =SUM(I7:AG7) -> 10.28125 | F7: Détail par niveau | H7: 1 | I7: =SUMPRODUCT(($D$12:$D$49=$H7)*(I$12:I$49)) -> 0 | J7: =SUMPRODUCT(($D$12:$D$49=$H7)*(J$12:J$49)) -> 0.65625 | K7: =SUMPRODUCT(($D$12:$D$49=$H7)*(K$12:K$49)) -> 0.4479166667 | L7: =SUMPRODUCT(($D$12:$D$49=$H7)*(L$12:L$49)) -> 0.40625 | M7: =SUMPRODUCT(($D$12:$D$49=$H7)*(M$12:M$49)) -> 0.0625 | N7: 0 | O7: 0.21875 | P7: 0 | Q7: 5.583333333 | R7: 1.302083333 | S7: 0.1458333333 | T7: 0.1145833333 | U7: 0.0625 | V7: 0 | W7: 0.03125 | X7: 0.1041666667 | Y7: 0.5 | Z7: 0 | AA7: 0.02083333333 | AB7: 0 | AC7: =SUMPRODUCT(($D$12:$D$49=$H7)*(AC$12:AC$49)) -> 0.0625 | AD7: 0.0625 | AE7: 0 | AF7: 0.375 | AG7: 0.125
E8: 8.03125 | H8: 2 | I8: =SUMPRODUCT(($D$12:$D$49=$H8)*(I$12:I$49)) -> 0.125 | J8: 0.1041666667 | K8: 0.2916666667 | L8: 0.8333333333 | M8: 0.02083333333 | N8: 0 | O8: 0.3333333333 | P8: 0.04166666667 | Q8: 1.625 | R8: 0.8020833333 | S8: 0.1041666667 | T8: 0.4375 | U8: 0.1458333333 | V8: 0 | W8: 0.1875 | X8: 0.1875 | Y8: 1.770833333 | Z8: 0.0625 | AA8: 0.25 | AB8: 0.02083333333 | AC8: 0.1666666667 | AD8: 0.1041666667 | AE8: 0 | AF8: 0.04166666667 | AG8: 0.375
E9: 5.520833333 | H9: 3 | I9: 0 | J9: 0.4375 | K9: 0.2395833333 | L9: 1.0625 | M9: 0 | N9: 0 | O9: 0.4375 | P9: 0.125 | Q9: 0 | R9: 0 | S9: 0.1458333333 | T9: 0.125 | U9: 0 | V9: 0 | W9: 0.3645833333 | X9: 0.34375 | Y9: 0 | Z9: 0.1041666667 | AA9: 0.1458333333 | AB9: 0.4791666667 | AC9: 0.2708333333 | AD9: 0.34375 | AE9: 0 | AF9: 0.1666666667 | AG9: 0.7291666667
E10: VIDE | G10: UTILISÉ | I10: 1 | J10: 3 | K10: 4 | L10: 5 | M10: 7 | N10: 9 | O10: 10 | P10: 11 | Q10: 15 | R10: 16 | S10: 17 | T10: 19 | U10: 20 | V10: 21 | W10: 23 | X10: 24 | Y10: 27 | Z10: 28 | AA10: 30 | AB10: 31 | AC10: 32 | AD10: 34 | AE10: 35 | AF10: 36 | AG10: 37
B11: Ref Équipmt | C11: Equipement | D11: Niveau | E11: s/total | F11: Tot.Vide | G11: s/total | H11: Tot.Utilisé | I11: =INDEX(UTILISATEURS,MATCH(I10,RefUtil,0),2) -> OMS | J11: =INDEX(UTILISATEURS,MATCH(J10,RefUtil,0),2) -> J.B.E. | K11: GYM LOISIR | L11: BASKET | M11: CYCLOS | N11: GAULE | O11: JUDO | P11: LUTTE | Q11: TENNIS (2) | R11: CIRQUE (1) | S11: TAI JITSU | T11: G.VOLONTAIRE | U11: DIAGONALE | V11: A.C.E (1) | W11: ESCALADE | X11: ARCHERS | Y11: O.C.E | Z11: LAI MUOI | AA11: TAEKWONDO | AB11: E.S.A.G.A.M.I | AC11: ALEETT | AD11: SPIRIT 38 | AE11: GMC38EYBENS | AF11: PETANQUE | AG11: HBC2E
A12: 3 Nivx Sans Scol | B12: A | C12: Salle Polyvalente Boulodrome | D12: 1 | E12: =SUMPRODUCT((A_Plage="V")*(MATRICE_3_Sans=$D12))*15/1440 -> 0.5 | F12: =SUMPRODUCT((A_Plage="v")*15/1440) -> 0.8229166667 | G12: =SUM(I12:AG12) -> 0.4479166667 | H12: =SUM(G12:G14) -> 1.916666667 | I12: =SUMPRODUCT((A_Plage=I$10)*(MATRICE_3_Sans=$D12))*15/1440 -> 0 | J12: 0 | K12: 0.08333333333 | L12: 0 | M12: 0 | N12: 0 | O12: 0.21875 | P12: 0 | Q12: 0 | R12: =SUMPRODUCT((A_Plage=R$10)*(MATRICE_3_Sans=$D12))*15/1440 -> 0 | S12: 0.1458333333 | T12: 0 | U12: 0 | V12: 0 | W12: 0 | X12: 0 | Y12: 0 | Z12: 0 | AA12: 0 | AB12: =SUMPRODUCT((A_Plage=AB$10)*(MATRICE_3_Sans=$D12))*15/1440 -> 0 | AC12: 0 | AD12: 0 | AE12: 0 | AF12: 0 | AG12: 0
D13: 2 | E13: =SUMPRODUCT((A_Plage="V")*(MATRICE_3_Sans=$D13))*15/1440 -> 0.28125 | G13: 0.7395833333 | I13: 0 | J13: 0 | K13: 0.05208333333 | L13: 0 | M13: 0 | N13: 0 | O13: 0.3333333333 | P13: 0 | Q13: 0 | R13: 0 | S13: 0.1041666667 | T13: 0.25 | U13: 0 | V13: 0 | W13: 0 | X13: 0 | Y13: 0 | Z13: 0 | AA13: 0 | AB13: 0 | AC13: 0 | AD13: 0 | AE13: 0 | AF13: 0 | AG13: 0
D14: 3 | E14: =SUMPRODUCT((A_Plage="V")*(MATRICE_3_Sans=$D14))*15/1440 -> 0.04166666667 | G14: 0.7291666667 | I14: 0 | J14: 0 | K14: 0 | L14: 0 | M14: 0 | N14: 0 | O14: 0.4375 | P14: 0 | Q14: 0 | R14: 0 | S14: 0.1458333333 | T14: 0.04166666667 | U14: 0 | V14: 0 | W14: 0 | X14: 0 | Y14: 0 | Z14: 0 | AA14: 0.1041666667 | AB14: 0 | AC14: 0 | AD14: 0 | AE14: 0 | AF14: 0 | AG14: 0
A15: 3 Nivx Avec Scol | B15: B | C15: Boulodrome | D15: 1 | E15: =SUMPRODUCT((B_plage="v")*(MATRICE_3_Avec=$D15))*15/1440 -> 0.5625 | F15: =SUMPRODUCT((B_plage="v")*15/1440) -> 1.052083333 | G15: 1.135416667 | H15: =SUM(G15:G17) -> 2.645833333 | I15: =SUMPRODUCT((B_plage=I$10)*(MATRICE_3_Avec=$D15))*15/1440 -> 0 | J15: 0.65625 | K15: 0 | L15: 0 | M15: 0 | N15: 0 | O15: 0 | P15: 0 | Q15: =SUMPRODUCT((B_plage=Q$10)*(MATRICE_3_Avec=$D15))*15/1440 -> 0 | R15: 0 | S15: 0 | T15: 0 | U15: 0 | V15: 0 | W15: 0 | X15: 0.1041666667 | Y15: 0 | Z15: 0 | AA15: =SUMPRODUCT((B_plage=AA$10)*(MATRICE_3_Avec=$D15))*15/1440 -> 0 | AB15: 0 | AC15: 0 | AD15: 0 | AE15: 0 | AF15: 0.375 | AG15: 0
D16: 2 | E16: =SUMPRODUCT((B_plage="v")*(MATRICE_3_Avec=$D16))*15/1440 -> 0.4166666667 | G16: 0.3541666667 | I16: 0 | J16: 0.1041666667 | K16: 0 | L16: 0 | M16: 0 | N16: 0 | O16: 0 | P16: 0 | Q16: 0 | R16: 0 | S16: 0 | T16: 0 | U16: 0 | V16: 0 | W16: 0 | X16: 0.1875 | Y16: 0 | Z16: 0 | AA16: 0 | AB16: 0.02083333333 | AC16: 0 | AD16: 0 | AE16: 0 | AF16: 0.04166666667 | AG16: 0
D17: 3 | E17: =SUMPRODUCT((B_plage="v")*(MATRICE_3_Avec=$D17))*15/1440 -> 0.07291666667 | G17: 1.15625 | I17: 0 | J17: 0.4375 | K17: 0 | L17: 0 | M17: 0 | N17: 0 | O17: 0 | P17: 0 | Q17: 0 | R17: 0 | S17: 0 | T17: 0 | U17: 0 | V17: 0 | W17: 0 | X17: 0.34375 | Y17: 0 | Z17: 0 | AA17: 0 | AB17: 0.2083333333 | AC17: 0 | AD17: 0 | AE17: 0 | AF17: 0.1666666667 | AG17: 0
A18: 3 Nivx Avec Scol | B18: C | C18: Salle Polyvalente Roger Journet | D18: 1 | E18: =SUMPRODUCT((C_plage="v")*(MATRICE_3_Avec=$D18))*15/1440 -> 0.3333333333 | F18: =SUMPRODUCT((C_plage="v")*15/1440) -> 0.65625 | G18: 0.4895833333 | H18: =SUM(G18:G20) -> 1.645833333 | I18: =SUMPRODUCT((C_plage=I$10)*(MATRICE_3_Avec=$D18))*15/1440 -> 0 | J18: 0 | K18: 0.3333333333 | L18: 0 | M18: 0 | N18: 0 | O18: 0 | P18: 0 | Q18: 0 | R18: =SUMPRODUCT((C_plage=R$10)*(MATRICE_3_Avec=$D18))*15/1440 -> 0 | S18: 0 | T18: 0.09375 | U18: 0 | V18: 0 | W18: 0 | X18: 0 | Y18: 0 | Z18: 0 | AA18: 0 | AB18: =SUMPRODUCT((C_plage=AB$10)*(MATRICE_3_Avec=$D18))*15/1440 -> 0 | AC18: 0 | AD18: 0.0625 | AE18: 0 | AF18: 0 | AG18: 0
D19: 2 | E19: =SUMPRODUCT((C_plage="V")*(MATRICE_3_Avec=$D19))*15/1440 -> 0.28125 | G19: 0.3020833333 | I19: 0 | J19: 0 | K19: 0 | L19: 0 | M19: 0 | N19: 0 | O19: 0 | P19: 0.04166666667 | Q19: 0 | R19: 0 | S19: 0 | T19: 0.03125 | U19: 0 | V19: 0 | W19: 0 | X19: 0 | Y19: 0 | Z19: 0.0625 | AA19: 0.0625 | AB19: 0 | AC19: 0 | AD19: 0.1041666667 | AE19: 0 | AF19: 0 | AG19: 0
D20: 3 | E20: =SUMPRODUCT((C_plage="v")*(MATRICE_3_Avec=$D20))*15/1440 -> 0.04166666667 | G20: 0.8541666667 | I20: 0 | J20: 0 | K20: 0.15625 | L20: 0 | M20: 0 | N20: 0 | O20: 0 | P20: 0.125 | Q20: 0 | R20: 0 | S20: 0 | T20: 0.08333333333 | U20: 0 | V20: 0 | W20: 0 | X20: 0 | Y20: 0 | Z20: 0.1041666667 | AA20: 0.04166666667 | AB20: 0 | AC20: 0 | AD20: 0.34375 | AE20: 0 | AF20: 0 | AG20: 0
A21: 2 Niveaux | B21: D | C21: Salle 2èm F Faivre | D21: 1 | E21: =SUMPRODUCT((D_plage="v")*(MATRICE_2=$D21))*15/1440 -> 2.229166667 | F21: =SUMPRODUCT((D_plage="v")*15/1440) -> 2.65625 | G21: 0.04166666667 | H21: =SUM(G21:G22) -> 0.34375 | I21: =SUMPRODUCT((D_plage=I$10)*(MATRICE_2=$D21))*15/1440 -> 0 | J21: 0 | K21: 0 | L21: 0 | M21: 0 | N21: 0 | O21: 0 | P21: 0 | Q21: 0 | R21: =SUMPRODUCT((D_plage=R$10)*(MATRICE_2=$D21))*15/1440 -> 0 | S21: 0 | T21: 0.02083333333 | U21: 0 | V21: 0 | W21: 0 | X21: 0 | Y21: 0 | Z21: 0 | AA21: 0.02083333333 | AB21: =SUMPRODUCT((D_plage=AB$10)*(MATRICE_2=$D21))*15/1440 -> 0 | AC21: 0 | AD21: 0 | AE21: 0 | AF21: 0 | AG21: 0
D22: 2 | E22: =SUMPRODUCT((D_plage="v")*(MATRICE_2=$D22))*15/1440 -> 0.4270833333 | G22: 0.3020833333 | I22: 0 | J22: 0 | K22: 0 | L22: 0 | M22: 0 | N22: 0 | O22: 0 | P22: 0 | Q22: 0 | R22: 0 | S22: 0 | T22: 0.1145833333 | U22: 0 | V22: 0 | W22: 0 | X22: 0 | Y22: 0 | Z22: 0 | AA22: 0.1875 | AB22: 0 | AC22: 0 | AD22: 0 | AE22: 0 | AF22: 0 | AG22: 0
A23: 2 Niveaux | B23: E | C23: Préau Bourg | D23: 1 | E23: =SUMPRODUCT((E_plage="v")*(MATRICE_3_Avec=$D23))*15/1440 -> 0.2291666667 | F23: =SUMPRODUCT((E_plage="v")*15/1440) -> 0.7708333333 | G23: 0.02083333333 | H23: =SUM(G23:G24) -> 0.2708333333 | I23: =SUMPRODUCT((E_plage=I$10)*(MATRICE_2=$D23))*15/1440 -> 0 | J23: 0 | K23: 0.02083333333 | L23: 0 | M23: 0 | N23: 0 | O23: 0 | P23: 0 | Q23: 0 | R23: =SUMPRODUCT((E_plage=R$10)*(MATRICE_2=$D23))*15/1440 -> 0 | S23: 0 | T23: 0 | U23: 0 | V23: 0 | W23: 0 | X23: 0 | Y23: 0 | Z23: 0 | AA23: 0 | AB23: =SUMPRODUCT((E_plage=AB$10)*(MATRICE_2=$D23))*15/1440 -> 0 | AC23: 0 | AD23: 0 | AE23: 0 | AF23: 0 | AG23: 0
D24: 2 | E24: =SUMPRODUCT((E_plage="v")*(MATRICE_3_Avec=$D24))*15/1440 -> 0.2291666667 | G24: 0.25 | I24: 0 | J24: 0 | K24: 0.2083333333 | L24: 0 | M24: 0 | N24: 0 | O24: 0 | P24: 0 | Q24: 0 | R24: 0 | S24: 0 | T24: 0.04166666667 | U24: 0 | V24: 0 | W24: 0 | X24: 0 | Y24: 0 | Z24: 0 | AA24: 0 | AB24: 0 | AC24: 0 | AD24: 0 | AE24: 0 | AF24: 0 | AG24: 0
A25: 3 Nivx Avec Scol | B25: F | C25: Gym R Journet | D25: 1 | E25: =SUMPRODUCT((F_plage="v")*(MATRICE_3_Avec=$D25))*15/1440 -> 0.6458333333 | F25: =SUMPRODUCT((F_plage="v")*15/1440) -> 1 | G25: 0.125 | H25: =SUM(G25:G27) -> 1.291666667 | I25: =SUMPRODUCT((F_plage=I$10)*(MATRICE_3_Avec=$D25))*15/1440 -> 0 | J25: 0 | K25: 0 | L25: 0 | M25: 0 | N25: 0 | O25: 0 | P25: 0 | Q25: =SUMPRODUCT((F_plage=Q$10)*(MATRICE_3_Avec=$D25))*15/1440 -> 0 | R25: 0 | S25: 0 | T25: 0 | U25: 0 | V25: 0 | W25: 0 | X25: 0 | Y25: 0 | Z25: 0 | AA25: =SUMPRODUCT((F_plage=AA$10)*(MATRICE_3_Avec=$D25))*15/1440 -> 0 | AB25: 0 | AC25: 0 | AD25: 0 | AE25: 0 | AF25: 0 | AG25: 0.125
D26: 2 | E26: =SUMPRODUCT((F_plage="v")*(MATRICE_3_Avec=$D26))*15/1440 -> 0.25 | G26: 0.375 | I26: 0 | J26: 0 | K26: 0 | L26: 0 | M26: 0 | N26: 0 | O26: 0 | P26: 0 | Q26: 0 | R26: 0 | S26: 0 | T26: 0 | U26: 0 | V26: 0 | W26: 0 | X26: 0 | Y26: 0 | Z26: 0 | AA26: 0 | AB26: 0 | AC26: 0 | AD26: 0 | AE26: 0 | AF26: 0 | AG26: 0.375
D27: 3 | E27: =SUMPRODUCT((F_plage="v")*(MATRICE_3_Avec=$D27))*15/1440 -> 0.1041666667 | G27: 0.7916666667 | I27: 0 | J27: 0 | K27: 0 | L27: 0.0625 | M27: 0 | N27: 0 | O27: 0 | P27: 0 | Q27: 0 | R27: 0 | S27: 0 | T27: 0 | U27: 0 | V27: 0 | W27: 0 | X27: 0 | Y27: 0 | Z27: 0 | AA27: 0 | AB27: 0 | AC27: 0 | AD27: 0 | AE27: 0 | AF27: 0 | AG27: 0.7291666667
A28: 3 Nivx Avec Scol | B28: G | C28: Salle C F Faivre | D28: 1 | E28: =SUMPRODUCT((G_plage="v")*(MATRICE_3_Avec=$D28))*15/1440 -> 0.21875 | F28: =SUMPRODUCT((G_plage="v")*15/1440) -> 0.46875 | G28: 0.1666666667 | H28: =SUM(G28:G30) -> 1.302083333 | I28: =SUMPRODUCT((G_plage=I$10)*(MATRICE_3_Avec=$D28))*15/1440 -> 0 | J28: 0 | K28: 0 | L28: 0.1666666667 | M28: 0 | N28: 0 | O28: 0 | P28: 0 | Q28: =SUMPRODUCT((G_plage=Q$10)*(MATRICE_3_Avec=$D28))*15/1440 -> 0 | R28: 0 | S28: 0 | T28: 0 | U28: 0 | V28: 0 | W28: 0 | X28: 0 | Y28: 0 | Z28: 0 | AA28: =SUMPRODUCT((G_plage=AA$10)*(MATRICE_3_Avec=$D28))*15/1440 -> 0 | AB28: 0 | AC28: 0 | AD28: 0 | AE28: 0 | AF28: 0 | AG28: 0
D29: 2 | E29: =SUMPRODUCT((G_plage="v")*(MATRICE_3_Avec=$D29))*15/1440 -> 0.21875 | G29: 0.3541666667 | I29: 0 | J29: 0 | K29: 0 | L29: 0.3541666667 | M29: 0 | N29: 0 | O29: 0 | P29: 0 | Q29: 0 | R29: 0 | S29: 0 | T29: 0 | U29: 0 | V29: 0 | W29: 0 | X29: 0 | Y29: 0 | Z29: 0 | AA29: 0 | AB29: 0 | AC29: 0 | AD29: 0 | AE29: 0 | AF29: 0 | AG29: 0
D30: 3 | E30: =SUMPRODUCT((G_plage="v")*(MATRICE_3_Avec=$D30))*15/1440 -> 0.03125 | G30: 0.78125 | I30: 0 | J30: 0 | K30: 0 | L30: 0.6458333333 | M30: 0 | N30: 0 | O30: 0 | P30: 0 | Q30: 0 | R30: 0 | S30: 0 | T30: 0 | U30: 0 | V30: 0 | W30: 0 | X30: 0 | Y30: 0 | Z30: 0 | AA30: 0 | AB30: 0.1354166667 | AC30: 0 | AD30: 0 | AE30: 0 | AF30: 0 | AG30: 0
A31: 3 Nivx Avec Scol | B31: H | C31: Salle B F Faivre | D31: 1 | E31: =SUMPRODUCT((H_plage="v")*(MATRICE_3_Avec=$D31))*15/1440 -> 0.2083333333 | F31: =SUMPRODUCT((H_plage="v")*15/1440) -> 0.4791666667 | G31: 0.1666666667 | H31: =SUM(G31:G33) -> 1.96875 | I31: =SUMPRODUCT((H_plage=I$10)*(MATRICE_3_Avec=$D31))*15/1440 -> 0 | J31: 0 | K31: 0.01041666667 | L31: 0.0625 | M31: 0 | N31: 0 | O31: 0 | P31: 0 | Q31: =SUMPRODUCT((H_plage=Q$10)*(MATRICE_3_Avec=$D31))*15/1440 -> 0 | R31: 0 | S31: 0 | T31: 0 | U31: 0 | V31: 0 | W31: 0.03125 | X31: 0 | Y31: 0 | Z31: 0 | AA31: =SUMPRODUCT((H_plage=AA$10)*(MATRICE_3_Avec=$D31))*15/1440 -> 0 | AB31: 0 | AC31: 0.0625 | AD31: 0 | AE31: 0 | AF31: 0 | AG31: 0
D32: 2 | E32: =SUMPRODUCT((H_plage="v")*(MATRICE_3_Avec=$D32))*15/1440 -> 0.1666666667 | G32: 0.59375 | I32: 0 | J32: 0 | K32: 0.03125 | L32: 0.2083333333 | M32: 0 | N32: 0 | O32: 0 | P32: 0 | Q32: 0 | R32: 0 | S32: 0 | T32: 0 | U32: 0 | V32: 0 | W32: 0.1875 | X32: 0 | Y32: 0 | Z32: 0 | AA32: 0 | AB32: 0 | AC32: 0.1666666667 | AD32: 0 | AE32: 0 | AF32: 0 | AG32: 0
D33: 3 | E33: =SUMPRODUCT((H_plage="v")*(MATRICE_3_Avec=$D33))*15/1440 -> 0.1041666667 | G33: 1.208333333 | I33: 0 | J33: 0 | K33: 0.08333333333 | L33: 0.3541666667 | M33: 0 | N33: 0 | O33: 0 | P33: 0 | Q33: 0 | R33: 0 | S33: 0 | T33: 0 | U33: 0 | V33: 0 | W33: 0.3645833333 | X33: 0 | Y33: 0 | Z33: 0 | AA33: 0 | AB33: 0.1354166667 | AC33: 0.2708333333 | AD33: 0 | AE33: 0 | AF33: 0 | AG33: 0
A34: 2 Niveaux | B34: I | C34: Salle Muscu F Faivre | D34: 1 | E34: =SUMPRODUCT((I_plage="v")*(MATRICE_2=$D34))*15/1440 -> 1.770833333 | F34: =SUMPRODUCT((I_plage="v")*15/1440) -> 1.979166667 | G34: 0.2395833333 | H34: =SUM(G34:G35) -> 0.65625 | I34: =SUMPRODUCT((I_plage=I$10)*(MATRICE_2=$D34))*15/1440 -> 0 | J34: 0 | K34: 0 | L34: 0.1770833333 | M34: 0.0625 | N34: 0 | O34: 0 | P34: 0 | Q34: =SUMPRODUCT((I_plage=Q$10)*(MATRICE_2=$D34))*15/1440 -> 0 | R34: 0 | S34: 0 | T34: 0 | U34: 0 | V34: 0 | W34: 0 | X34: 0 | Y34: 0 | Z34: 0 | AA34: =SUMPRODUCT((I_plage=AA$10)*(MATRICE_2=$D34))*15/1440 -> 0 | AB34: 0 | AC34: 0 | AD34: 0 | AE34: 0 | AF34: 0 | AG34: 0
D35: 2 | E35: =SUMPRODUCT((I_plage="v")*(MATRICE_2=$D35))*15/1440 -> 0.2083333333 | G35: 0.4166666667 | I35: 0.125 | J35: 0 | K35: 0 | L35: 0.2708333333 | M35: 0.02083333333 | N35: 0 | O35: 0 | P35: 0 | Q35: 0 | R35: 0 | S35: 0 | T35: 0 | U35: 0 | V35: 0 | W35: 0 | X35: 0 | Y35: 0 | Z35: 0 | AA35: 0 | AB35: 0 | AC35: 0 | AD35: 0 | AE35: 0 | AF35: 0 | AG35: 0
A36: 2 Niveaux | B36: J | C36: Stade Synthé R Journet | D36: 1 | E36: =SUMPRODUCT((J_plage="v")*(MATRICE_2=$D36))*15/1440 -> 1.416666667 | F36: =SUMPRODUCT((J_plage="v")*15/1440) -> 1.416666667 | G36: 0.3854166667 | H36: =SUM(G36:G37) -> 1.177083333 | I36: =SUMPRODUCT((J_plage=I$10)*(MATRICE_2=$D36))*15/1440 -> 0 | J36: 0 | K36: 0 | L36: 0 | M36: 0 | N36: 0 | O36: 0 | P36: 0 | Q36: =SUMPRODUCT((J_plage=Q$10)*(MATRICE_2=$D36))*15/1440 -> 0 | R36: 0 | S36: 0 | T36: 0 | U36: 0 | V36: 0 | W36: 0 | X36: 0 | Y36: 0.3854166667 | Z36: 0 | AA36: =SUMPRODUCT((J_plage=AA$10)*(MATRICE_2=$D36))*15/1440 -> 0 | AB36: 0 | AC36: 0 | AD36: 0 | AE36: 0 | AF36: 0 | AG36: 0
D37: 2 | E37: =SUMPRODUCT((J_plage="v")*(MATRICE_2=$D37))*15/1440 -> 0 | G37: 0.7916666667 | I37: 0 | J37: 0 | K37: 0 | L37: 0 | M37: 0 | N37: 0 | O37: 0 | P37: 0 | Q37: 0 | R37: 0 | S37: 0 | T37: 0 | U37: 0 | V37: 0 | W37: 0 | X37: 0 | Y37: 0.7916666667 | Z37: 0 | AA37: 0 | AB37: 0 | AC37: 0 | AD37: 0 | AE37: 0 | AF37: 0 | AG37: 0
A38: 2 Niveaux | B38: K | C38: Stade Herbe R Journet | D38: 1 | E38: =SUMPRODUCT((K_plage="v")*(MATRICE_2=$D38))*15/1440 -> 0 | F38: =SUMPRODUCT((K_plage="v")*15/1440) -> 0.02083333333 | G38: =SUM(I38:AG38) -> 0 | H38: =SUM(G38:G39) -> 0.3125 | I38: =SUMPRODUCT((K_plage=I$10)*(MATRICE_2=$D38))*15/1440 -> 0 | J38: 0 | K38: 0 | L38: 0 | M38: 0 | N38: 0 | O38: 0 | P38: 0 | Q38: =SUMPRODUCT((K_plage=Q$10)*(MATRICE_2=$D38))*15/1440 -> 0 | R38: 0 | S38: 0 | T38: 0 | U38: 0 | V38: 0 | W38: 0 | X38: 0 | Y38: 0 | Z38: 0 | AA38: =SUMPRODUCT((K_plage=AA$10)*(MATRICE_2=$D38))*15/1440 -> 0 | AB38: 0 | AC38: 0 | AD38: 0 | AE38: 0 | AF38: 0 | AG38: 0
D39: 2 | E39: =SUMPRODUCT((K_plage="v")*(MATRICE_2=$D39))*15/1440 -> 0.02083333333 | G39: =SUM(I39:AG39) -> 0.3125 | I39: 0 | J39: 0 | K39: 0 | L39: 0 | M39: 0 | N39: 0 | O39: 0 | P39: 0 | Q39: 0 | R39: 0 | S39: 0 | T39: 0 | U39: 0 | V39: 0 | W39: 0 | X39: 0 | Y39: 0.3125 | Z39: 0 | AA39: 0 | AB39: 0 | AC39: 0 | AD39: 0 | AE39: 0 | AF39: 0 | AG39: 0
A40: 2 Niveaux | B40: L | C40: Stade C. Piot | D40: 1 | E40: =SUMPRODUCT((L_plage="v")*(MATRICE_2=$D40))*15/1440 -> 0 | F40: =SUMPRODUCT((L_plage="v")*15/1440) -> 0 | G40: =SUM(I40:AG40) -> 0.1145833333 | H40: =SUM(G40:G41) -> 0.78125 | I40: =SUMPRODUCT((L_plage=I$10)*(MATRICE_2=$D40))*15/1440 -> 0 | J40: 0 | K40: 0 | L40: 0 | M40: 0 | N40: 0 | O40: 0 | P40: 0 | Q40: =SUMPRODUCT((L_plage=Q$10)*(MATRICE_2=$D40))*15/1440 -> 0 | R40: 0 | S40: 0 | T40: 0 | U40: 0 | V40: 0 | W40: 0 | X40: 0 | Y40: 0.1145833333 | Z40: 0 | AA40: =SUMPRODUCT((L_plage=AA$10)*(MATRICE_2=$D40))*15/1440 -> 0 | AB40: 0 | AC40: 0 | AD40: 0 | AE40: 0 | AF40: 0 | AG40: 0
D41: 2 | E41: =SUMPRODUCT((L_plage="v")*(MATRICE_2=$D41))*15/1440 -> 0 | G41: =SUM(I41:AG41) -> 0.6666666667 | I41: 0 | J41: 0 | K41: 0 | L41: 0 | M41: 0 | N41: 0 | O41: 0 | P41: 0 | Q41: 0 | R41: 0 | S41: 0 | T41: 0 | U41: 0 | V41: 0 | W41: 0 | X41: 0 | Y41: 0.6666666667 | Z41: 0 | AA41: 0 | AB41: 0 | AC41: 0 | AD41: 0 | AE41: 0 | AF41: 0 | AG41: 0
A42: 2 Niveaux | B42: M | C42: Stade Herbe R Journet | D42: 1 | E42: =SUMPRODUCT((M_plage="v")*(MATRICE_2=$D42))*15/1440 -> 0 | F42: =SUMPRODUCT((M_plage="v")*15/1440) -> 0 | G42: =SUM(I42:AG42) -> 0.0625 | H42: =SUM(G42:G43) -> 0.2083333333 | I42: =SUMPRODUCT((M_plage=I$10)*(MATRICE_2=$D42))*15/1440 -> 0 | J42: 0 | K42: 0 | L42: 0 | M42: 0 | N42: 0 | O42: 0 | P42: 0 | Q42: =SUMPRODUCT((M_plage=Q$10)*(MATRICE_2=$D42))*15/1440 -> 0 | R42: 0 | S42: 0 | T42: 0 | U42: 0.0625 | V42: 0 | W42: 0 | X42: 0 | Y42: 0 | Z42: 0 | AA42: =SUMPRODUCT((M_plage=AA$10)*(MATRICE_2=$D42))*15/1440 -> 0 | AB42: 0 | AC42: 0 | AD42: 0 | AE42: 0 | AF42: 0 | AG42: 0
D43: 2 | E43: =SUMPRODUCT((M_plage="v")*(MATRICE_2=$D43))*15/1440 -> 0 | G43: =SUM(I43:AG43) -> 0.1458333333 | I43: 0 | J43: 0 | K43: 0 | L43: 0 | M43: 0 | N43: 0 | O43: 0 | P43: 0 | Q43: 0 | R43: 0 | S43: 0 | T43: 0 | U43: 0.1458333333 | V43: 0 | W43: 0 | X43: 0 | Y43: 0 | Z43: 0 | AA43: 0 | AB43: 0 | AC43: 0 | AD43: 0 | AE43: 0 | AF43: 0 | AG43: 0
A44: 2 Niveaux | B44: N1 | C44: Tennis C Court N°1 | D44: 1 | E44: =SUMPRODUCT((N1_plage="v")*(MATRICE_2=$D44))*15/1440 -> 0.2083333333 | F44: =SUMPRODUCT((N1_plage="v")*15/1440) -> 0.2083333333 | G44: =SUM(I44:AG44) -> 2.5625 | H44: =SUM(G44:G45) -> 3.354166667 | I44: =SUMPRODUCT((N1_plage=I$10)*(MATRICE_2=$D44))*15/1440 -> 0 | J44: 0 | K44: 0 | L44: 0 | M44: 0 | N44: 0 | O44: 0 | P44: 0 | Q44: =SUMPRODUCT((N1_plage=Q$10)*(MATRICE_2=$D44))*15/1440 -> 2.5625 | R44: 0 | S44: 0 | T44: 0 | U44: 0 | V44: 0 | W44: 0 | X44: 0 | Y44: 0 | Z44: 0 | AA44: =SUMPRODUCT((N1_plage=AA$10)*(MATRICE_2=$D44))*15/1440 -> 0 | AB44: 0 | AC44: 0 | AD44: 0 | AE44: 0 | AF44: 0 | AG44: 0
D45: 2 | E45: =SUMPRODUCT((N1_plage="v")*(MATRICE_2=$D45))*15/1440 -> 0 | G45: =SUM(I45:AG45) -> 0.7916666667 | I45: 0 | J45: 0 | K45: 0 | L45: 0 | M45: 0 | N45: 0 | O45: 0 | P45: 0 | Q45: 0.7916666667 | R45: 0 | S45: 0 | T45: 0 | U45: 0 | V45: 0 | W45: 0 | X45: 0 | Y45: 0 | Z45: 0 | AA45: 0 | AB45: 0 | AC45: 0 | AD45: 0 | AE45: 0 | AF45: 0 | AG45: 0
A46: 2 Niveaux | B46: N2 | C46: Tennis C Court N°2 | D46: 1 | E46: =SUMPRODUCT((N2_plage="v")*(MATRICE_2=$D46))*15/1440 -> 0 | F46: =SUMPRODUCT((N2_plage="v")*15/1440) -> 0 | G46: =SUM(I46:AG46) -> 3.020833333 | H46: =SUM(G46:G47) -> 3.854166667 | I46: =SUMPRODUCT((N2_plage=I$10)*(MATRICE_2=$D46))*15/1440 -> 0 | J46: 0 | K46: 0 | L46: 0 | M46: 0 | N46: 0 | O46: 0 | P46: 0 | Q46: =SUMPRODUCT((N2_plage=Q$10)*(MATRICE_2=$D46))*15/1440 -> 3.020833333 | R46: 0 | S46: 0 | T46: 0 | U46: 0 | V46: 0 | W46: 0 | X46: 0 | Y46: 0 | Z46: 0 | AA46: =SUMPRODUCT((N2_plage=AA$10)*(MATRICE_2=$D46))*15/1440 -> 0 | AB46: 0 | AC46: 0 | AD46: 0 | AE46: 0 | AF46: 0 | AG46: 0
D47: 2 | E47: =SUMPRODUCT((N2_plage="v")*(MATRICE_2=$D47))*15/1440 -> 0 | G47: =SUM(I47:AG47) -> 0.8333333333 | I47: 0 | J47: 0 | K47: 0 | L47: 0 | M47: 0 | N47: 0 | O47: 0 | P47: 0 | Q47: 0.8333333333 | R47: 0 | S47: 0 | T47: 0 | U47: 0 | V47: 0 | W47: 0 | X47: 0 | Y47: 0 | Z47: 0 | AA47: 0 | AB47: 0 | AC47: 0 | AD47: 0 | AE47: 0 | AF47: 0 | AG47: 0
A48: 2 Niveaux | B48: O | C48: Salle G; Veymont | D48: 1 | E48: =SUMPRODUCT((P_plage="v")*(MATRICE_2=$D48))*15/1440 -> 1.09375 | F48: =SUMPRODUCT((P_plage="v")*15/1440) -> 1.125 | G48: =SUM(I48:AG48) -> 1.302083333 | H48: =SUM(G48:G49) -> 2.104166667 | I48: =SUMPRODUCT((P_plage=I$10)*(MATRICE_2=$D48))*15/1440 -> 0 | J48: 0 | K48: 0 | L48: 0 | M48: 0 | N48: 0 | O48: 0 | P48: 0 | Q48: =SUMPRODUCT((P_plage=Q$10)*(MATRICE_2=$D48))*15/1440 -> 0 | R48: 1.302083333 | S48: 0 | T48: 0 | U48: 0 | V48: 0 | W48: 0 | X48: 0 | Y48: 0 | Z48: 0 | AA48: =SUMPRODUCT((P_plage=AA$10)*(MATRICE_2=$D48))*15/1440 -> 0 | AB48: 0 | AC48: 0 | AD48: 0 | AE48: 0 | AF48: 0 | AG48: 0
D49: 2 | E49: =SUMPRODUCT((P_plage="v")*(MATRICE_2=$D49))*15/1440 -> 0.03125 | G49: =SUM(I49:AG49) -> 0.8020833333 | I49: 0 | J49: 0 | K49: 0 | L49: 0 | M49: 0 | N49: 0 | O49: 0 | P49: 0 | Q49: 0 | R49: 0.8020833333 | S49: 0 | T49: 0 | U49: 0 | V49: 0 | W49: 0 | X49: 0 | Y49: 0 | Z49: 0 | AA49: 0 | AB49: 0 | AC49: 0 | AD49: 0 | AE49: 0 | AF49: 0 | AG49: 0
E53: VIDE | G53: UTILISÉ | I53: 1 | J53: 3 | K53: 4 | L53: 5 | M53: 7 | N53: 9 | O53: 10 | P53: 11 | Q53: 15 | R53: 16 | S53: 17 | T53: 19 | U53: 20 | V53: 21 | W53: 23 | X53: 24 | Y53: 27 | Z53: 28 | AA53: 30 | AB53: 31 | AC53: 32 | AD53: 33 | AE53: 34 | AF53: 35 | AG53: 36
B54: Ref Équipmt | C54: Equipement | D54: Niveau | E54: s/total | F54: Tot.Vide | G54: s/total | H54: Tot.Utilisé | I54: =INDEX(UTILISATEURS,MATCH(I53,RefUtil,0),2) -> OMS | J54: =INDEX(UTILISATEURS,MATCH(J53,RefUtil,0),2) -> J.B.E. | K54: GYM LOISIR | L54: BASKET | M54: CYCLOS | N54: GAULE | O54: JUDO | P54: LUTTE | Q54: TENNIS (2) | R54: CIRQUE (1) | S54: TAI JITSU | T54: G.VOLONTAIRE | U54: DIAGONALE | V54: A.C.E (1) | W54: ESCALADE | X54: ARCHERS | Y54: O.C.E | Z54: LAI MUOI | AA54: TAEKWONDO | AB54: E.S.A.G.A.M.I | AC54: ALEETT | AE54: SPIRIT 38 | AF54: GMC38EYBENS | AG54: PETANQUE
A55: 3 Nivx Sans Scol | B55: A | C55: Salle poly Boulodrm | D55: 1 | E55: =+E12 -> 0.5 | F55: =SUMPRODUCT((A_Plage="v")*15/1440) -> 0.8229166667 | G55: =+G12 -> 0.4479166667 | H55: =+H12 -> 1.916666667 | I55: =SUM(I12:I14)/TOTA -> 0 | J55: 0 | K55: 0.07065217391 | L55: 0 | M55: 0 | N55: 0 | O55: 0.5163043478 | P55: 0 | Q55: 0 | R55: 0 | S55: 0.2065217391 | T55: 0.152173913 | U55: 0 | V55: 0 | W55: 0 | X55: 0 | Y55: 0 | Z55: 0 | AA55: 0.05434782609 | AB55: 0 | AC55: 0 | AD55: 0 | AE55: 0 | AF55: 0 | AG55: 0
D56: 2 | E56: =+E13 -> 0.28125 | G56: =+G13 -> 0.7395833333
D57: 3 | E57: =+E14 -> 0.04166666667 | G57: 0.7291666667
A58: 3 Nivx Avec Scol | B58: B | C58: Boulodrome | D58: 1 | E58: =+E15 -> 0.5625 | F58: =SUMPRODUCT((B_plage="v")*15/1440) -> 1.052083333 | G58: 1.135416667 | H58: =+H15 -> 2.645833333 | I58: =SUM(I15:I17)/TOTB -> 0 | J58: 0.4527559055 | K58: 0 | L58: 0 | M58: 0 | N58: 0 | O58: 0 | P58: 0 | Q58: 0 | R58: 0 | S58: 0 | T58: 0 | U58: 0 | V58: 0 | W58: 0 | X58: 0.2401574803 | Y58: 0 | Z58: 0 | AA58: 0 | AB58: 0.08661417323 | AC58: 0 | AD58: 0 | AE58: 0 | AF58: 0.2204724409 | AG58: 0
D59: 2 | E59: =+E16 -> 0.4166666667 | G59: 0.3541666667
D60: 3 | E60: =+E17 -> 0.07291666667 | G60: 1.15625
A61: 3 Nivx Avec Scol | B61: C | C61: Salle Poly Roger Journet | D61: 1 | E61: =+E18 -> 0.3333333333 | F61: =SUMPRODUCT((C_plage="v")*15/1440) -> 0.65625 | G61: 0.4895833333 | H61: =H18 -> 1.645833333 | I61: =SUM(I18:I20)/TOTC -> 0 | J61: 0 | K61: 0.2974683544 | L61: 0 | M61: 0 | N61: 0 | O61: 0 | P61: 0.1012658228 | Q61: 0 | R61: 0 | S61: 0 | T61: 0.1265822785 | U61: 0 | V61: 0 | W61: 0 | X61: 0 | Y61: 0 | Z61: 0.1012658228 | AA61: 0.06329113924 | AB61: 0 | AC61: 0 | AD61: 0.3101265823 | AE61: 0 | AF61: 0 | AG61: 0
D62: 2 | E62: =+E19 -> 0.28125 | G62: 0.3020833333
D63: 3 | E63: =+E20 -> 0.04166666667 | G63: 0.8541666667
A64: 2 Niveaux | B64: D | C64: Salle 2èm F Faivre | D64: 1 | E64: =+E21 -> 2.229166667 | F64: =SUMPRODUCT((D_plage="v")*15/1440) -> 2.65625 | G64: 0.04166666667 | H64: =+H21 -> 0.34375 | I64: =SUM(I21:I22)/TOTD -> 0 | J64: 0 | K64: 0 | L64: 0 | M64: 0 | N64: 0 | O64: 0 | P64: 0 | Q64: 0 | R64: 0 | S64: 0 | T64: 0.3939393939 | U64: 0 | V64: 0 | W64: 0 | X64: 0 | Y64: 0 | Z64: 0 | AA64: 0.6060606061 | AB64: 0 | AC64: 0 | AD64: 0 | AE64: 0 | AF64: 0 | AG64: 0
D65: 2 | E65: =+E22 -> 0.4270833333 | G65: 0.3020833333
A66: 2 Niveaux | B66: E | C66: Préau Bourg | D66: 1 | E66: =+E23 -> 0.2291666667 | F66: =SUMPRODUCT((E_plage="v")*15/1440) -> 0.7708333333 | G66: 0.02083333333 | H66: =H23 -> 0.2708333333 | I66: =SUM(I23:I24)/TOTE -> 0 | J66: 0 | K66: 0.8461538462 | L66: 0 | M66: 0 | N66: 0 | O66: 0 | P66: 0 | Q66: 0 | R66: 0 | S66: 0 | T66: 0.1538461538 | U66: 0 | V66: 0 | W66: 0 | X66: 0 | Y66: 0 | Z66: 0 | AA66: 0 | AB66: 0 | AC66: 0 | AD66: 0 | AE66: 0 | AF66: 0 | AG66: 0
D67: 2 | E67: =+E24 -> 0.2291666667 | G67: 0.25
A68: 3 Nivx Avec Scol | B68: F | C68: Gym R Journet | D68: 1 | E68: =+E25 -> 0.6458333333 | F68: =SUMPRODUCT((F_plage="v")*15/1440) -> 1 | G68: 0.125 | H68: =H25 -> 1.291666667 | I68: =SUM(I25:I27)/TOTF -> 0 | J68: 0 | K68: 0 | L68: 0.04838709677 | M68: 0 | N68: 0 | O68: 0 | P68: 0 | Q68: 0 | R68: 0 | S68: 0 | T68: 0 | U68: 0 | V68: 0 | W68: 0 | X68: 0 | Y68: 0 | Z68: 0 | AA68: 0 | AB68: 0 | AC68: 0 | AD68: 0 | AE68: 0 | AF68: 0 | AG68: 0.9516129032
D69: 2 | E69: =+E26 -> 0.25 | G69: 0.375
D70: 3 | E70: =+E27 -> 0.1041666667 | G70: 0.7916666667
A71: 3 Nivx Avec Scol | B71: G | C71: Salle C F Faivre | D71: 1 | E71: =+E28 -> 0.21875 | F71: =SUMPRODUCT((G_plage="v")*15/1440) -> 0.46875 | G71: 0.1666666667 | H71: =H28 -> 1.302083333 | I71: =SUM(I28:I30)/TOTG -> 0 | J71: 0 | K71: 0 | L71: 0.896 | M71: 0 | N71: 0 | O71: 0 | P71: 0 | Q71: 0 | R71: 0 | S71: 0 | T71: 0 | U71: 0 | V71: 0 | W71: 0 | X71: 0 | Y71: 0 | Z71: 0 | AA71: 0 | AB71: 0.104 | AC71: 0 | AD71: 0 | AE71: 0 | AF71: 0 | AG71: 0
D72: 2 | E72: =+E29 -> 0.21875 | G72: 0.3541666667
D73: 3 | E73: =+E30 -> 0.03125 | G73: 0.78125
A74: 3 Nivx Avec Scol | B74: H | C74: Salle B F Faivre | D74: 1 | E74: =+E31 -> 0.2083333333 | F74: =SUMPRODUCT((H_plage="v")*15/1440) -> 0.4791666667 | G74: 0.1666666667 | H74: =H31 -> 1.96875 | I74: =SUM(I31:I33)/TOTH -> 0 | J74: 0 | K74: 0.06349206349 | L74: 0.3174603175 | M74: 0 | N74: 0 | O74: 0 | P74: 0 | Q74: 0 | R74: 0 | S74: 0 | T74: 0 | U74: 0 | V74: 0 | W74: 0.2962962963 | X74: 0 | Y74: 0 | Z74: 0 | AA74: 0 | AB74: 0.06878306878 | AC74: 0.253968254 | AD74: 0 | AE74: 0 | AF74: 0 | AG74: 0
D75: 2 | E75: =+E32 -> 0.1666666667 | G75: 0.59375
D76: 3 | E76: =+E33 -> 0.1041666667 | G76: 1.208333333
A77: 2 Niveaux | B77: I | C77: Salle Muscu F Faivre | D77: 1 | E77: =+E34 -> 1.770833333 | F77: =SUMPRODUCT((I_plage="v")*15/1440) -> 1.979166667 | G77: 0.2395833333 | H77: =H34 -> 0.65625 | I77: =SUM(I34:I35)/TOTI -> 0.1904761905 | J77: 0 | K77: 0 | L77: 0.6825396825 | M77: 0.126984127 | N77: 0 | O77: 0 | P77: 0 | Q77: 0 | R77: 0 | S77: 0 | T77: 0 | U77: 0 | V77: 0 | W77: 0 | X77: 0 | Y77: 0 | Z77: 0 | AA77: 0 | AB77: 0 | AC77: 0 | AD77: 0 | AE77: 0 | AF77: 0 | AG77: 0
D78: 2 | E78: =+E35 -> 0.2083333333 | G78: 0.4166666667
A79: 2 Niveaux | B79: J | C79: Stade Synthé R Journet | D79: 1 | E79: =+E36 -> 1.416666667 | F79: =SUMPRODUCT((J_plage="v")*15/1440) -> 1.416666667 | G79: 0.3854166667 | H79: =H36 -> 1.177083333 | I79: =SUM(I36:I37)/TOTJ -> 0 | J79: 0 | K79: 0 | L79: 0 | M79: 0 | N79: 0 | O79: 0 | P79: 0 | Q79: 0 | R79: 0 | S79: 0 | T79: 0 | U79: 0 | V79: 0 | W79: 0 | X79: 0 | Y79: 1 | Z79: 0 | AA79: 0 | AB79: 0 | AC79: 0 | AD79: 0 | AE79: 0 | AF79: 0 | AG79: 0
D80: 2 | E80: =+E37 -> 0 | G80: 0.7916666667
A81: 2 Niveaux | B81: K | C81: Stade Herbe R Journet | D81: 1 | E81: =+E38 -> 0 | F81: =SUMPRODUCT((K_plage="v")*15/1440) -> 0.02083333333 | G81: 0 | H81: =H38 -> 0.3125 | I81: =SUM(I38:I39)/TOTK -> 0 | J81: 0 | K81: 0 | L81: 0 | M81: 0 | N81: 0 | O81: 0 | P81: 0 | Q81: 0 | R81: 0 | S81: 0 | T81: 0 | U81: 0 | V81: 0 | W81: 0 | X81: 0 | Y81: 1 | Z81: 0 | AA81: 0 | AB81: 0 | AC81: 0 | AD81: 0 | AE81: 0 | AF81: 0 | AG81: 0
D82: 2 | E82: =+E39 -> 0.02083333333 | G82: 0.3125
A83: 2 Niveaux | B83: L | C83: Stade C. Piot | D83: 1 | E83: =+E40 -> 0 | F83: =SUMPRODUCT((L_plage="v")*15/1440) -> 0 | G83: 0.1145833333 | H83: =H40 -> 0.78125 | I83: =SUM(I40:I41)/TOTL -> 0 | J83: 0 | K83: 0 | L83: 0 | M83: 0 | N83: 0 | O83: 0 | P83: 0 | Q83: 0 | R83: 0 | S83: 0 | T83: 0 | U83: 0 | V83: 0 | W83: 0 | X83: 0 | Y83: 1 | Z83: 0 | AA83: 0 | AB83: 0 | AC83: 0 | AD83: 0 | AE83: 0 | AF83: 0 | AG83: 0
D84: 2 | E84: =+E41 -> 0 | G84: 0.6666666667
A85: 2 Niveaux | B85: M | C85: Salle Tuilerie | D85: 1 | E85: =+E42 -> 0 | F85: =SUMPRODUCT((M_plage="v")*15/1440) -> 0 | G85: 0.0625 | H85: =H42 -> 0.2083333333 | I85: =SUM(I42:I43)/TOTM -> 0 | J85: 0 | K85: 0 | L85: 0 | M85: 0 | N85: 0 | O85: 0 | P85: 0 | Q85: 0 | R85: 0 | S85: 0 | T85: 0 | U85: 1 | V85: 0 | W85: 0 | X85: 0 | Y85: 0 | Z85: 0 | AA85: 0 | AB85: 0 | AC85: 0 | AD85: 0 | AE85: 0 | AF85: 0 | AG85: 0
D86: 2 | E86: =+E43 -> 0 | G86: 0.1458333333
A87: 2 Niveaux | B87: N-1 | C87: Tennis C Court N°1 | D87: 1 | E87: =+E44 -> 0.2083333333 | F87: =SUMPRODUCT((N1_plage="v")*15/1440) -> 0.2083333333 | G87: 2.5625 | H87: =H44 -> 3.354166667 | I87: =SUM(I44:I45)/TOTN -> 0 | J87: 0 | K87: 0 | L87: 0 | M87: 0 | N87: 0 | O87: 0 | P87: 0 | Q87: 1 | R87: 0 | S87: 0 | T87: 0 | U87: 0 | V87: 0 | W87: 0 | X87: 0 | Y87: 0 | Z87: 0 | AA87: 0 | AB87: 0 | AC87: 0 | AD87: 0 | AE87: 0 | AF87: 0 | AG87: 0
D88: 2 | E88: =+E45 -> 0 | G88: 0.7916666667
A89: 2 Niveaux | B89: N-2 | C89: Tennis C Court N°2 | D89: 1 | E89: =+E46 -> 0 | F89: =SUMPRODUCT((N2_plage="v")*15/1440) -> 0 | G89: 3.020833333 | H89: =H46 -> 3.854166667 | I89: =SUM(I46:I47)/TOTO -> 0 | J89: 0 | K89: 0 | L89: 0 | M89: 0 | N89: 0 | O89: 0 | P89: 0 | Q89: 1 | R89: 0 | S89: 0 | T89: 0 | U89: 0 | V89: 0 | W89: 0 | X89: 0 | Y89: 0 | Z89: 0 | AA89: 0 | AB89: 0 | AC89: 0 | AD89: 0 | AE89: 0 | AF89: 0 | AG89: 0
D90: 2 | E90: =+E47 -> 0 | G90: 0.8333333333
A91: 2 Niveaux | B91: O | C91: Salle G; Veymont | D91: 1 | E91: =+E48 -> 1.09375 | F91: =SUMPRODUCT((P_plage="v")*15/1440) -> 1.125 | G91: 1.302083333 | H91: =H48 -> 2.104166667 | I91: =SUM(I48:I49)/TOTP -> 0 | J91: 0 | K91: 0 | L91: 0 | M91: 0 | N91: 0 | O91: 0 | P91: 0 | Q91: 0 | R91: 1 | S91: 0 | T91: 0 | U91: 0 | V91: 0 | W91: 0 | X91: 0 | Y91: 0 | Z91: 0 | AA91: 0 | AB91: 0 | AC91: 0 | AD91: 0 | AE91: 0 | AF91: 0 | AG91: 0
D92: 2 | E92: =+E49 -> 0.03125 | G92: 0.8020833333

Sheet Suivi Réception
B1: ='EQPT&UTIL'!B25 -> 2019-2020
A3: Min | B3: REF | C3: UTILISATEURS | D3: Date réception
A4: =+#REF!*15 ->  | B4: 1 | C4: =VLOOKUP(B4,UTILISATEURS,2) -> OMS | D4: =+A!$Y2 -> 0
A5: =+#REF!*15 ->  | B5: 1 | C5: =INDEX(UTILISATEURS,MATCH($B5,RefUtil,0),2) -> OMS | E5: =SUMPRODUCT(($B5='Récap TOUT'!$B5)*('Récap TOUT'!$C5>0)*1) -> 1
A6: =+#REF!*15 ->  | B6: 3 | C6: J.B.E. | E6: =SUMPRODUCT(($B6='Récap TOUT'!$B6)*('Récap TOUT'!$C6>0)*1) -> 1
A7: =+#REF!*15 ->  | B7: 4 | C7: GYM LOISIR | E7: =SUMPRODUCT(($B7='Récap TOUT'!$B7)*('Récap TOUT'!$C7>0)*1) -> 1
A8: =+#REF!*15 ->  | B8: 5 | C8: BASKET | E8: =SUMPRODUCT(($B8='Récap TOUT'!$B8)*('Récap TOUT'!$C8>0)*1) -> 1
A9: =+#REF!*15 ->  | B9: 7 | C9: CYCLOS | E9: =SUMPRODUCT(($B9='Récap TOUT'!$B9)*('Récap TOUT'!$C9>0)*1) -> 1
A10: =+#REF!*15 ->  | B10: 9 | C10: GAULE | E10: =SUMPRODUCT(($B10='Récap TOUT'!$B10)*('Récap TOUT'!$C10>0)*1) -> 0
A11: =+#REF!*15 ->  | B11: 10 | C11: JUDO | E11: =SUMPRODUCT(($B11='Récap TOUT'!$B11)*('Récap TOUT'!$C11>0)*1) -> 1
A12: =+#REF!*15 ->  | B12: 11 | C12: LUTTE | E12: =SUMPRODUCT(($B12='Récap TOUT'!$B12)*('Récap TOUT'!$C12>0)*1) -> 1
A13: =+#REF!*15 ->  | B13: 15 | C13: TENNIS (2) | E13: =SUMPRODUCT(($B13='Récap TOUT'!$B14)*('Récap TOUT'!$C14>0)*1) -> 0
A14: =+#REF!*15 ->  | B14: 16 | C14: CIRQUE (1) | E14: =SUMPRODUCT(($B14='Récap TOUT'!$B15)*('Récap TOUT'!$C15>0)*1) -> 0
A15: =+#REF!*15 ->  | B15: 17 | C15: TAI JITSU | E15: =SUMPRODUCT(($B15='Récap TOUT'!$B16)*('Récap TOUT'!$C16>0)*1) -> 0
A16: =+#REF!*15 ->  | B16: 19 | C16: G.VOLONTAIRE | E16: =SUMPRODUCT(($B16='Récap TOUT'!$B17)*('Récap TOUT'!$C17>0)*1) -> 0
A17: =+#REF!*15 ->  | B17: 20 | C17: DIAGONALE | E17: =SUMPRODUCT(($B17='Récap TOUT'!$B18)*('Récap TOUT'!$C18>0)*1) -> 0
A18: =+#REF!*15 ->  | B18: 21 | C18: A.C.E (1) | E18: =SUMPRODUCT(($B18='Récap TOUT'!$B19)*('Récap TOUT'!$C19>0)*1) -> 0
A19: =+#REF!*15 ->  | B19: 23 | C19: ESCALADE | E19: =SUMPRODUCT(($B19='Récap TOUT'!$B20)*('Récap TOUT'!$C20>0)*1) -> 0
A20: =+#REF!*15 ->  | B20: 24 | C20: ARCHERS | E20: =SUMPRODUCT(($B20='Récap TOUT'!$B21)*('Récap TOUT'!$C21>0)*1) -> 0
A21: =+#REF!*15 ->  | B21: 27 | C21: O.C.E | E21: =SUMPRODUCT(($B21='Récap TOUT'!$B22)*('Récap TOUT'!$C22>0)*1) -> 0
A22: =+#REF!*15 ->  | B22: 28 | C22: LAI MUOI | E22: =SUMPRODUCT(($B22='Récap TOUT'!$B23)*('Récap TOUT'!$C23>0)*1) -> 0
A23: =+#REF!*15 ->  | B23: 30 | C23: TAEKWONDO | E23: =SUMPRODUCT(($B23='Récap TOUT'!$B24)*('Récap TOUT'!$C24>0)*1) -> 0
A24: =+#REF!*15 ->  | B24: 31 | C24: E.S.A.G.A.M.I | E24: =SUMPRODUCT(($B24='Récap TOUT'!$B25)*('Récap TOUT'!$C25>0)*1) -> 0
A25: =+#REF!*15 ->  | B25: 32 | C25: ALEETT | E25: =SUMPRODUCT(($B25='Récap TOUT'!$B26)*('Récap TOUT'!$C26>0)*1) -> 0
A26: =+#REF!*15 ->  | B26: 34 | C26: SPIRIT 38 | E26: =SUMPRODUCT(($B26='Récap TOUT'!$B27)*('Récap TOUT'!$C27>0)*1) -> 0
A27: =+#REF!*15 ->  | B27: 35 | C27: GMC38EYBENS | E27: =SUMPRODUCT(($B27='Récap TOUT'!$B28)*('Récap TOUT'!$C28>0)*1) -> 0
A28: =+#REF!*15 ->  | B28: 36 | C28: PETANQUE | E28: =SUMPRODUCT(($B28='Récap TOUT'!$B29)*('Récap TOUT'!$C29>0)*1) -> 0
A29: =+#REF!*15 ->  | B29: 37 | C29: HBC2E | E29: =SUMPRODUCT(($B29='Récap TOUT'!$B30)*('Récap TOUT'!$C30>0)*1) -> 0
A30: =+#REF!*15 ->  | E30: =SUMPRODUCT(($B30='Récap TOUT'!$B31)*('Récap TOUT'!$C31>0)*1) -> 0
A31: =+#REF!*15 ->  | E31: =SUMPRODUCT(($B31='Récap TOUT'!$B32)*('Récap TOUT'!$C32>0)*1) -> 0
A32: =+#REF!*15 ->  | E32: =SUMPRODUCT(($B32='Récap TOUT'!$B33)*('Récap TOUT'!$C33>0)*1) -> 0
A33: =+#REF!*15 ->  | E33: =SUMPRODUCT(($B33='Récap TOUT'!$B34)*('Récap TOUT'!$C34>0)*1) -> 0
A34: =+#REF!*15 ->  | E34: =SUMPRODUCT(($B34='Récap TOUT'!$B35)*('Récap TOUT'!$C35>0)*1) -> 0
E35: =SUMPRODUCT(($B35='Récap TOUT'!$B36)*('Récap TOUT'!$C36>0)*1) -> 0
A36: =+#REF!*15 ->  | B36: 50 | C36: =INDEX(UTILISATEURS,MATCH($B36,RefUtil,0),2) -> SCOLAIRE | E36: =SUMPRODUCT(($B36='Récap TOUT'!$B32)*('Récap TOUT'!$C32>0)*1) -> 1
A37: =+#REF!*15 ->  | B37: 51 | C37: Sport Passion | E37: =SUMPRODUCT(($B37='Récap TOUT'!$B33)*('Récap TOUT'!$C33>0)*1) -> 1
A38: =+#REF!*15 ->  | B38: 52 | C38: Péri Scolaire | E38: =SUMPRODUCT(($B38='Récap TOUT'!$B34)*('Récap TOUT'!$C34>0)*1) -> 1
A39: =+#REF!*15 ->  | B39: 53 | C39: Crêche Familiale | E39: =SUMPRODUCT(($B39='Récap TOUT'!$B35)*('Récap TOUT'!$C35>0)*1) -> 1
A40: =+#REF!*15 ->  | B40: 54 | C40: Rel Ass Matern | E40: =SUMPRODUCT(($B40='Récap TOUT'!$B36)*('Récap TOUT'!$C36>0)*1) -> 1
A41: =+#REF!*15 ->  | B41: 55 | C41: ?Pôle Enfance | E41: =SUMPRODUCT(($B41='Récap TOUT'!$B37)*('Récap TOUT'!$C37>0)*1) -> 1
A42: =+#REF!*15 ->  | B42: 56 | C42: Anim. Municip. | E42: =SUMPRODUCT(($B42='Récap TOUT'!$B38)*('Récap TOUT'!$C38>0)*1) -> 1
A43: =+#REF!*15 ->  | B43: 57 | C43: Crêche P Chose | E43: =SUMPRODUCT(($B43='Récap TOUT'!$B39)*('Récap TOUT'!$C39>0)*1) -> 0
A44: =+#REF!*15 ->  | B44: 58 | C44: 0 | E44: =SUMPRODUCT(($B44='Récap TOUT'!$B40)*('Récap TOUT'!$C40>0)*1) -> 0
A45: =+#REF!*15 ->  | B45: 59 | C45: Police Municip | E45: =SUMPRODUCT(($B45='Récap TOUT'!$B41)*('Récap TOUT'!$C41>0)*1) -> 1
A46: =+#REF!*15 ->  | B46: 60 | C46: 0 | E46: =SUMPRODUCT(($B46='Récap TOUT'!$B42)*('Récap TOUT'!$C42>0)*1) -> 0
A47: =+#REF!*15 ->  | B47: 61 | C47: - | E47: =SUMPRODUCT(($B47='Récap TOUT'!$B43)*('Récap TOUT'!$C43>0)*1) -> 0
B48: 62 | C48: EN ATTENTE | E48: =SUMPRODUCT(($B48='Récap TOUT'!$B49)*('Récap TOUT'!$C49>0)*1) -> 0
A49: =+#REF!*15 ->  | B49: 100 | C49: POISAT | E49: =SUMPRODUCT(($B49='Récap TOUT'!$B44)*('Récap TOUT'!$C44>0)*1) -> 1
A50: =+#REF!*15 ->  | B50: 101 | C50: ECHIROLLES | E50: =SUMPRODUCT(($B50='Récap TOUT'!$B45)*('Récap TOUT'!$C45>0)*1) -> 0
A51: =+#REF!*15 ->  | B51: 102 | C51: H.P. | E51: =SUMPRODUCT(($B51='Récap TOUT'!$B46)*('Récap TOUT'!$C46>0)*1) -> 1
A52: =+#REF!*15 ->  | B52: 103 | C52: I.M.E. | E52: =SUMPRODUCT(($B52='Récap TOUT'!$B47)*('Récap TOUT'!$C47>0)*1) -> 1
A53: =+#REF!*15 ->  | B53: 104 | C53: 0 | E53: =SUMPRODUCT(($B53='Récap TOUT'!$B48)*('Récap TOUT'!$C48>0)*1) -> 0
A54: =+#REF!*15 ->  | B54: 105 | C54: Gendarm. Eybens | E54: =SUMPRODUCT(($B54='Récap TOUT'!$B49)*('Récap TOUT'!$C49>0)*1) -> 0
A55: =+#REF!*15 ->  | B55: 106 | C55: 0 | E55: =SUMPRODUCT(($B55='Récap TOUT'!$B50)*('Récap TOUT'!$C50>0)*1) -> 0
B56: 107 | C56: D.Country | E56: =SUMPRODUCT(($B56='Récap TOUT'!$B51)*('Récap TOUT'!$C51>0)*1) -> 1
B57: 108 | C57: CE SOPRA | E57: =SUMPRODUCT(($B57='Récap TOUT'!$B52)*('Récap TOUT'!$C52>0)*1) -> 1
B58: 109 | C58: ASCE | E58: =SUMPRODUCT(($B58='Récap TOUT'!$B53)*('Récap TOUT'!$C53>0)*1) -> 1
B59: 110 | C59: HARMONIE EYBENS | E59: =SUMPRODUCT(($B59='Récap TOUT'!$B54)*('Récap TOUT'!$C54>0)*1) -> 1
B60: 111 | C60: 0 | E60: =SUMPRODUCT(($B60='Récap TOUT'!$B55)*('Récap TOUT'!$C55>0)*1) -> 0

Sheet MATRICE 3 SsSco
A1: =SAISON -> 2019-2020 | E1: Matrice 3 niveaux Sans Scolaire
A2: 09:00:00 | B2: Lundi | E2: Mardi | H2: Mercredi | K2: Jeudi | N2: Vendredi | Q2: Samedi | T2: Dimanche
A3: =+A2+$A$59 -> 09:15:00 | B3: 2 | C3: =B3 -> 2 | D3: =B3 -> 2 | E3: 2 | F3: =E3 -> 2 | G3: =E3 -> 2 | H3: 2 | I3: =H3 -> 2 | J3: =H3 -> 2 | K3: 2 | L3: =K3 -> 2 | M3: =K3 -> 2 | N3: 2 | O3: =N3 -> 2 | P3: =N3 -> 2 | Q3: 3 | R3: =Q3 -> 3 | S3: =Q3 -> 3 | T3: 1 | U3: =T3 -> 1 | V3: =T3 -> 1
A4: 09:30:00 | B4: 2 | C4: 2 | D4: 2 | E4: 2 | F4: 2 | G4: 2 | H4: 2 | I4: 2 | J4: 2 | K4: 2 | L4: 2 | M4: 2 | N4: 2 | O4: 2 | P4: 2 | Q4: 3 | R4: 3 | S4: 3 | T4: 1 | U4: 1 | V4: 1
A5: 09:45:00 | B5: 2 | C5: 2 | D5: 2 | E5: 2 | F5: 2 | G5: 2 | H5: 2 | I5: 2 | J5: 2 | K5: 2 | L5: 2 | M5: 2 | N5: 2 | O5: 2 | P5: 2 | Q5: 3 | R5: 3 | S5: 3 | T5: 1 | U5: 1 | V5: 1
A6: 10:00:00 | B6: 2 | C6: 2 | D6: 2 | E6: 2 | F6: 2 | G6: 2 | H6: 2 | I6: 2 | J6: 2 | K6: 2 | L6: 2 | M6: 2 | N6: 2 | O6: 2 | P6: 2 | Q6: 3 | R6: 3 | S6: 3 | T6: 1 | U6: 1 | V6: 1
A7: 10:15:00 | B7: 2 | C7: 2 | D7: 2 | E7: 2 | F7: 2 | G7: 2 | H7: 2 | I7: 2 | J7: 2 | K7: 2 | L7: 2 | M7: 2 | N7: 2 | O7: 2 | P7: 2 | Q7: 3 | R7: 3 | S7: 3 | T7: 1 | U7: 1 | V7: 1
A8: 10:30:00 | B8: 2 | C8: 2 | D8: 2 | E8: 2 | F8: 2 | G8: 2 | H8: 2 | I8: 2 | J8: 2 | K8: 2 | L8: 2 | M8: 2 | N8: 2 | O8: 2 | P8: 2 | Q8: 3 | R8: 3 | S8: 3 | T8: 1 | U8: 1 | V8: 1
A9: 10:45:00 | B9: 2 | C9: 2 | D9: 2 | E9: 2 | F9: 2 | G9: 2 | H9: 2 | I9: 2 | J9: 2 | K9: 2 | L9: 2 | M9: 2 | N9: 2 | O9: 2 | P9: 2 | Q9: 3 | R9: 3 | S9: 3 | T9: 1 | U9: 1 | V9: 1
A10: 11:00:00 | B10: 2 | C10: 2 | D10: 2 | E10: 2 | F10: 2 | G10: 2 | H10: 2 | I10: 2 | J10: 2 | K10: 2 | L10: 2 | M10: 2 | N10: 2 | O10: 2 | P10: 2 | Q10: 3 | R10: 3 | S10: 3 | T10: 1 | U10: 1 | V10: 1
A11: 11:15:00 | B11: 2 | C11: 2 | D11: 2 | E11: 2 | F11: 2 | G11: 2 | H11: 2 | I11: 2 | J11: 2 | K11: 2 | L11: 2 | M11: 2 | N11: 2 | O11: 2 | P11: 2 | Q11: 3 | R11: 3 | S11: 3 | T11: 1 | U11: 1 | V11: 1
A12: 11:30:00 | B12: 2 | C12: 2 | D12: 2 | E12: 2 | F12: 2 | G12: 2 | H12: 2 | I12: 2 | J12: 2 | K12: 2 | L12: 2 | M12: 2 | N12: 2 | O12: 2 | P12: 2 | Q12: 3 | R12: 3 | S12: 3 | T12: 1 | U12: 1 | V12: 1
A13: 11:45:00 | B13: 2 | C13: 2 | D13: 2 | E13: 2 | F13: 2 | G13: 2 | H13: 2 | I13: 2 | J13: 2 | K13: 2 | L13: 2 | M13: 2 | N13: 2 | O13: 2 | P13: 2 | Q13: 3 | R13: 3 | S13: 3 | T13: 1 | U13: 1 | V13: 1
A14: 12:00:00 | B14: 2 | C14: 2 | D14: 2 | E14: 2 | F14: 2 | G14: 2 | H14: 2 | I14: 2 | J14: 2 | K14: 2 | L14: 2 | M14: 2 | N14: 2 | O14: 2 | P14: 2 | Q14: 3 | R14: 3 | S14: 3 | T14: 1 | U14: 1 | V14: 1
A15: 12:15:00 | B15: 2 | C15: 2 | D15: 2 | E15: 2 | F15: 2 | G15: 2 | H15: 2 | I15: 2 | J15: 2 | K15: 2 | L15: 2 | M15: 2 | N15: 2 | O15: 2 | P15: 2 | Q15: 1 | R15: 1 | S15: 1 | T15: 1 | U15: 1 | V15: 1
A16: 12:30:00 | B16: 2 | C16: 2 | D16: 2 | E16: 2 | F16: 2 | G16: 2 | H16: 2 | I16: 2 | J16: 2 | K16: 2 | L16: 2 | M16: 2 | N16: 2 | O16: 2 | P16: 2 | Q16: 1 | R16: 1 | S16: 1 | T16: 1 | U16: 1 | V16: 1
A17: 12:45:00 | B17: 2 | C17: 2 | D17: 2 | E17: 2 | F17: 2 | G17: 2 | H17: 2 | I17: 2 | J17: 2 | K17: 2 | L17: 2 | M17: 2 | N17: 2 | O17: 2 | P17: 2 | Q17: 1 | R17: 1 | S17: 1 | T17: 1 | U17: 1 | V17: 1
A18: 13:00:00 | B18: 2 | C18: 2 | D18: 2 | E18: 2 | F18: 2 | G18: 2 | H18: 2 | I18: 2 | J18: 2 | K18: 2 | L18: 2 | M18: 2 | N18: 2 | O18: 2 | P18: 2 | Q18: 1 | R18: 1 | S18: 1 | T18: 1 | U18: 1 | V18: 1
A19: 13:15:00 | B19: 2 | C19: 2 | D19: 2 | E19: 2 | F19: 2 | G19: 2 | H19: 2 | I19: 2 | J19: 2 | K19: 2 | L19: 2 | M19: 2 | N19: 2 | O19: 2 | P19: 2 | Q19: 1 | R19: 1 | S19: 1 | T19: 1 | U19: 1 | V19: 1
A20: 13:30:00 | B20: 2 | C20: 2 | D20: 2 | E20: 2 | F20: 2 | G20: 2 | H20: 2 | I20: 2 | J20: 2 | K20: 2 | L20: 2 | M20: 2 | N20: 2 | O20: 2 | P20: 2 | Q20: 1 | R20: 1 | S20: 1 | T20: 1 | U20: 1 | V20: 1
A21: 13:45:00 | B21: 1 | C21: 1 | D21: 1 | E21: 1 | F21: 1 | G21: 1 | H21: 3 | I21: 3 | J21: 3 | K21: 1 | L21: 1 | M21: 1 | N21: 1 | O21: 1 | P21: 1 | Q21: 1 | R21: 1 | S21: 1 | T21: 1 | U21: 1 | V21: 1
A22: 14:00:00 | B22: 1 | C22: 1 | D22: 1 | E22: 1 | F22: 1 | G22: 1 | H22: 3 | I22: 3 | J22: 3 | K22: 1 | L22: 1 | M22: 1 | N22: 1 | O22: 1 | P22: 1 | Q22: 1 | R22: 1 | S22: 1 | T22: 1 | U22: 1 | V22: 1
A23: 14:15:00 | B23: 1 | C23: 1 | D23: 1 | E23: 1 | F23: 1 | G23: 1 | H23: 3 | I23: 3 | J23: 3 | K23: 1 | L23: 1 | M23: 1 | N23: 1 | O23: 1 | P23: 1 | Q23: 1 | R23: 1 | S23: 1 | T23: 1 | U23: 1 | V23: 1
A24: 14:30:00 | B24: 1 | C24: 1 | D24: 1 | E24: 1 | F24: 1 | G24: 1 | H24: 3 | I24: 3 | J24: 3 | K24: 1 | L24: 1 | M24: 1 | N24: 1 | O24: 1 | P24: 1 | Q24: 1 | R24: 1 | S24: 1 | T24: 1 | U24: 1 | V24: 1
A25: 14:45:00 | B25: 1 | C25: 1 | D25: 1 | E25: 1 | F25: 1 | G25: 1 | H25: 3 | I25: 3 | J25: 3 | K25: 1 | L25: 1 | M25: 1 | N25: 1 | O25: 1 | P25: 1 | Q25: 1 | R25: 1 | S25: 1 | T25: 1 | U25: 1 | V25: 1
A26: 15:00:00 | B26: 1 | C26: 1 | D26: 1 | E26: 1 | F26: 1 | G26: 1 | H26: 3 | I26: 3 | J26: 3 | K26: 1 | L26: 1 | M26: 1 | N26: 1 | O26: 1 | P26: 1 | Q26: 1 | R26: 1 | S26: 1 | T26: 1 | U26: 1 | V26: 1
A27: 15:15:00 | B27: 1 | C27: 1 | D27: 1 | E27: 1 | F27: 1 | G27: 1 | H27: 3 | I27: 3 | J27: 3 | K27: 1 | L27: 1 | M27: 1 | N27: 1 | O27: 1 | P27: 1 | Q27: 1 | R27: 1 | S27: 1 | T27: 1 | U27: 1 | V27: 1
A28: 15:30:00 | B28: 1 | C28: 1 | D28: 1 | E28: 1 | F28: 1 | G28: 1 | H28: 3 | I28: 3 | J28: 3 | K28: 1 | L28: 1 | M28: 1 | N28: 1 | O28: 1 | P28: 1 | Q28: 1 | R28: 1 | S28: 1 | T28: 1 | U28: 1 | V28: 1
A29: 15:45:00 | B29: 1 | C29: 1 | D29: 1 | E29: 1 | F29: 1 | G29: 1 | H29: 3 | I29: 3 | J29: 3 | K29: 1 | L29: 1 | M29: 1 | N29: 1 | O29: 1 | P29: 1 | Q29: 1 | R29: 1 | S29: 1 | T29: 1 | U29: 1 | V29: 1
A30: 16:00:00 | B30: 1 | C30: 1 | D30: 1 | E30: 1 | F30: 1 | G30: 1 | H30: 3 | I30: 3 | J30: 3 | K30: 1 | L30: 1 | M30: 1 | N30: 1 | O30: 1 | P30: 1 | Q30: 1 | R30: 1 | S30: 1 | T30: 1 | U30: 1 | V30: 1
A31: 16:15:00 | B31: 1 | C31: 1 | D31: 1 | E31: 1 | F31: 1 | G31: 1 | H31: 3 | I31: 3 | J31: 3 | K31: 1 | L31: 1 | M31: 1 | N31: 1 | O31: 1 | P31: 1 | Q31: 1 | R31: 1 | S31: 1 | T31: 1 | U31: 1 | V31: 1
A32: 16:30:00 | B32: 1 | C32: 1 | D32: 1 | E32: 1 | F32: 1 | G32: 1 | H32: 3 | I32: 3 | J32: 3 | K32: 1 | L32: 1 | M32: 1 | N32: 1 | O32: 1 | P32: 1 | Q32: 1 | R32: 1 | S32: 1 | T32: 1 | U32: 1 | V32: 1
A33: 16:45:00 | B33: 1 | C33: 1 | D33: 1 | E33: 1 | F33: 1 | G33: 1 | H33: 3 | I33: 3 | J33: 3 | K33: 1 | L33: 1 | M33: 1 | N33: 1 | O33: 1 | P33: 1 | Q33: 1 | R33: 1 | S33: 1 | T33: 1 | U33: 1 | V33: 1
A34: 17:00:00 | B34: 1 | C34: 1 | D34: 1 | E34: 1 | F34: 1 | G34: 1 | H34: 3 | I34: 3 | J34: 3 | K34: 1 | L34: 1 | M34: 1 | N34: 1 | O34: 1 | P34: 1 | Q34: 1 | R34: 1 | S34: 1 | T34: 1 | U34: 1 | V34: 1
A35: 17:15:00 | B35: 1 | C35: 1 | D35: 1 | E35: 1 | F35: 1 | G35: 1 | H35: 3 | I35: 3 | J35: 3 | K35: 1 | L35: 1 | M35: 1 | N35: 1 | O35: 1 | P35: 1 | Q35: 1 | R35: 1 | S35: 1 | T35: 1 | U35: 1 | V35: 1
A36: 17:30:00 | B36: 1 | C36: 1 | D36: 1 | E36: 1 | F36: 1 | G36: 1 | H36: 3 | I36: 3 | J36: 3 | K36: 1 | L36: 1 | M36: 1 | N36: 1 | O36: 1 | P36: 1 | Q36: 1 | R36: 1 | S36: 1 | T36: 1 | U36: 1 | V36: 1
A37: 17:45:00 | B37: 2 | C37: 2 | D37: 2 | E37: 2 | F37: 2 | G37: 2 | H37: 3 | I37: 3 | J37: 3 | K37: 2 | L37: 2 | M37: 2 | N37: 2 | O37: 2 | P37: 2 | Q37: 1 | R37: 1 | S37: 1 | T37: 1 | U37: 1 | V37: 1
A38: 18:00:00 | B38: 2 | C38: 2 | D38: 2 | E38: 2 | F38: 2 | G38: 2 | H38: 3 | I38: 3 | J38: 3 | K38: 2 | L38: 2 | M38: 2 | N38: 2 | O38: 2 | P38: 2 | Q38: 1 | R38: 1 | S38: 1 | T38: 1 | U38: 1 | V38: 1
A39: 18:15:00 | B39: 2 | C39: 2 | D39: 2 | E39: 2 | F39: 2 | G39: 2 | H39: 3 | I39: 3 | J39: 3 | K39: 2 | L39: 2 | M39: 2 | N39: 2 | O39: 2 | P39: 2 | Q39: 1 | R39: 1 | S39: 1 | T39: 1 | U39: 1 | V39: 1
A40: 18:30:00 | B40: 2 | C40: 2 | D40: 2 | E40: 2 | F40: 2 | G40: 2 | H40: 3 | I40: 3 | J40: 3 | K40: 2 | L40: 2 | M40: 2 | N40: 2 | O40: 2 | P40: 2 | Q40: 1 | R40: 1 | S40: 1 | T40: 1 | U40: 1 | V40: 1
A41: 18:45:00 | B41: 3 | C41: 3 | D41: 3 | E41: 3 | F41: 3 | G41: 3 | H41: 3 | I41: 3 | J41: 3 | K41: 3 | L41: 3 | M41: 3 | N41: 3 | O41: 3 | P41: 3 | Q41: 1 | R41: 1 | S41: 1 | T41: 1 | U41: 1 | V41: 1
A42: 19:00:00 | B42: 3 | C42: 3 | D42: 3 | E42: 3 | F42: 3 | G42: 3 | H42: 3 | I42: 3 | J42: 3 | K42: 3 | L42: 3 | M42: 3 | N42: 3 | O42: 3 | P42: 3 | Q42: 1 | R42: 1 | S42: 1 | T42: 1 | U42: 1 | V42: 1
A43: 19:15:00 | B43: 3 | C43: 3 | D43: 3 | E43: 3 | F43: 3 | G43: 3 | H43: 3 | I43: 3 | J43: 3 | K43: 3 | L43: 3 | M43: 3 | N43: 3 | O43: 3 | P43: 3 | Q43: 1 | R43: 1 | S43: 1 | T43: 1 | U43: 1 | V43: 1
A44: 19:30:00 | B44: 3 | C44: 3 | D44: 3 | E44: 3 | F44: 3 | G44: 3 | H44: 3 | I44: 3 | J44: 3 | K44: 3 | L44: 3 | M44: 3 | N44: 3 | O44: 3 | P44: 3 | Q44: 1 | R44: 1 | S44: 1 | T44: 1 | U44: 1 | V44: 1
A45: 19:45:00 | B45: 3 | C45: 3 | D45: 3 | E45: 3 | F45: 3 | G45: 3 | H45: 3 | I45: 3 | J45: 3 | K45: 3 | L45: 3 | M45: 3 | N45: 3 | O45: 3 | P45: 3 | Q45: 1 | R45: 1 | S45: 1 | T45: 1 | U45: 1 | V45: 1
A46: 20:00:00 | B46: 3 | C46: 3 | D46: 3 | E46: 3 | F46: 3 | G46: 3 | H46: 3 | I46: 3 | J46: 3 | K46: 3 | L46: 3 | M46: 3 | N46: 3 | O46: 3 | P46: 3 | Q46: 1 | R46: 1 | S46: 1 | T46: 1 | U46: 1 | V46: 1
A47: 20:15:00 | B47: 3 | C47: 3 | D47: 3 | E47: 3 | F47: 3 | G47: 3 | H47: 3 | I47: 3 | J47: 3 | K47: 3 | L47: 3 | M47: 3 | N47: 3 | O47: 3 | P47: 3 | Q47: 1 | R47: 1 | S47: 1 | T47: 1 | U47: 1 | V47: 1
A48: 20:30:00 | B48: 3 | C48: 3 | D48: 3 | E48: 3 | F48: 3 | G48: 3 | H48: 3 | I48: 3 | J48: 3 | K48: 3 | L48: 3 | M48: 3 | N48: 3 | O48: 3 | P48: 3 | Q48: 1 | R48: 1 | S48: 1 | T48: 1 | U48: 1 | V48: 1
A49: 20:45:00 | B49: 2 | C49: 2 | D49: 2 | E49: 2 | F49: 2 | G49: 2 | H49: 3 | I49: 3 | J49: 3 | K49: 2 | L49: 2 | M49: 2 | N49: 2 | O49: 2 | P49: 2 | Q49: 1 | R49: 1 | S49: 1 | T49: 1 | U49: 1 | V49: 1
A50: 21:00:00 | B50: 2 | C50: 2 | D50: 2 | E50: 2 | F50: 2 | G50: 2 | H50: 3 | I50: 3 | J50: 3 | K50: 2 | L50: 2 | M50: 2 | N50: 2 | O50: 2 | P50: 2 | Q50: 1 | R50: 1 | S50: 1 | T50: 1 | U50: 1 | V50: 1
A51: 21:15:00 | B51: 2 | C51: 2 | D51: 2 | E51: 2 | F51: 2 | G51: 2 | H51: 2 | I51: 2 | J51: 2 | K51: 2 | L51: 2 | M51: 2 | N51: 2 | O51: 2 | P51: 2 | Q51: 1 | R51: 1 | S51: 1 | T51: 1 | U51: 1 | V51: 1
A52: 21:30:00 | B52: 2 | C52: 2 | D52: 2 | E52: 2 | F52: 2 | G52: 2 | H52: 2 | I52: 2 | J52: 2 | K52: 2 | L52: 2 | M52: 2 | N52: 2 | O52: 2 | P52: 2 | Q52: 1 | R52: 1 | S52: 1 | T52: 1 | U52: 1 | V52: 1
A53: 21:45:00 | B53: 2 | C53: 2 | D53: 2 | E53: 2 | F53: 2 | G53: 2 | H53: 2 | I53: 2 | J53: 2 | K53: 2 | L53: 2 | M53: 2 | N53: 2 | O53: 2 | P53: 2 | Q53: 1 | R53: 1 | S53: 1 | T53: 1 | U53: 1 | V53: 1
A54: 22:00:00 | B54: 2 | C54: 2 | D54: 2 | E54: 2 | F54: 2 | G54: 2 | H54: 2 | I54: 2 | J54: 2 | K54: 2 | L54: 2 | M54: 2 | N54: 2 | O54: 2 | P54: 2 | Q54: 1 | R54: 1 | S54: 1 | T54: 1 | U54: 1 | V54: 1
A55: 22:15:00 | B55: 1 | C55: 1 | D55: 1 | E55: 1 | F55: 1 | G55: 1 | H55: 1 | I55: 1 | J55: 1 | K55: 1 | L55: 1 | M55: 1 | N55: 1 | O55: 1 | P55: 1 | Q55: 1 | R55: 1 | S55: 1 | T55: 1 | U55: 1 | V55: 1
A56: 22:30:00 | B56: 1 | C56: 1 | D56: 1 | E56: 1 | F56: 1 | G56: 1 | H56: 1 | I56: 1 | J56: 1 | K56: 1 | L56: 1 | M56: 1 | N56: 1 | O56: 1 | P56: 1 | Q56: 1 | R56: 1 | S56: 1 | T56: 1 | U56: 1 | V56: 1
B57: 1 | C57: 1 | D57: 1
A59: 00:15:00 | S59: Page N° | T59: =VLOOKUP($U$1,EQUIPEMENT,3) -> 

Sheet MATRICE 3 AvSco
A1: =SAISON -> 2019-2020 | E1: Matrice 3 Niveaux avec Scolaires
A2: 09:00:00 | B2: Lundi | E2: Mardi | H2: Mercredi | K2: Jeudi | N2: Vendredi | Q2: Samedi | T2: Dimanche
A3: =+A2+$A$59 -> 09:15:00 | B3: 1 | C3: =B3 -> 1 | D3: =B3 -> 1 | E3: 1 | F3: =E3 -> 1 | G3: =E3 -> 1 | H3: 1 | I3: =H3 -> 1 | J3: =H3 -> 1 | K3: 1 | L3: =K3 -> 1 | M3: =K3 -> 1 | N3: 1 | O3: =N3 -> 1 | P3: =N3 -> 1 | Q3: 3 | R3: =Q3 -> 3 | S3: =Q3 -> 3 | T3: 1 | U3: =T3 -> 1 | V3: =T3 -> 1
A4: 09:30:00 | B4: 1 | C4: 1 | D4: 1 | E4: 1 | F4: 1 | G4: 1 | H4: 1 | I4: 1 | J4: 1 | K4: 1 | L4: 1 | M4: 1 | N4: 1 | O4: 1 | P4: 1 | Q4: 3 | R4: 3 | S4: 3 | T4: 1 | U4: 1 | V4: 1
A5: 09:45:00 | B5: 1 | C5: 1 | D5: 1 | E5: 1 | F5: 1 | G5: 1 | H5: 1 | I5: 1 | J5: 1 | K5: 1 | L5: 1 | M5: 1 | N5: 1 | O5: 1 | P5: 1 | Q5: 3 | R5: 3 | S5: 3 | T5: 1 | U5: 1 | V5: 1
A6: 10:00:00 | B6: 1 | C6: 1 | D6: 1 | E6: 1 | F6: 1 | G6: 1 | H6: 1 | I6: 1 | J6: 1 | K6: 1 | L6: 1 | M6: 1 | N6: 1 | O6: 1 | P6: 1 | Q6: 3 | R6: 3 | S6: 3 | T6: 1 | U6: 1 | V6: 1
A7: 10:15:00 | B7: 1 | C7: 1 | D7: 1 | E7: 1 | F7: 1 | G7: 1 | H7: 1 | I7: 1 | J7: 1 | K7: 1 | L7: 1 | M7: 1 | N7: 1 | O7: 1 | P7: 1 | Q7: 3 | R7: 3 | S7: 3 | T7: 1 | U7: 1 | V7: 1
A8: 10:30:00 | B8: 1 | C8: 1 | D8: 1 | E8: 1 | F8: 1 | G8: 1 | H8: 1 | I8: 1 | J8: 1 | K8: 1 | L8: 1 | M8: 1 | N8: 1 | O8: 1 | P8: 1 | Q8: 3 | R8: 3 | S8: 3 | T8: 1 | U8: 1 | V8: 1
A9: 10:45:00 | B9: 1 | C9: 1 | D9: 1 | E9: 1 | F9: 1 | G9: 1 | H9: 1 | I9: 1 | J9: 1 | K9: 1 | L9: 1 | M9: 1 | N9: 1 | O9: 1 | P9: 1 | Q9: 3 | R9: 3 | S9: 3 | T9: 1 | U9: 1 | V9: 1
A10: 11:00:00 | B10: 1 | C10: 1 | D10: 1 | E10: 1 | F10: 1 | G10: 1 | H10: 1 | I10: 1 | J10: 1 | K10: 1 | L10: 1 | M10: 1 | N10: 1 | O10: 1 | P10: 1 | Q10: 3 | R10: 3 | S10: 3 | T10: 1 | U10: 1 | V10: 1
A11: 11:15:00 | B11: 1 | C11: 1 | D11: 1 | E11: 1 | F11: 1 | G11: 1 | H11: 1 | I11: 1 | J11: 1 | K11: 1 | L11: 1 | M11: 1 | N11: 1 | O11: 1 | P11: 1 | Q11: 3 | R11: 3 | S11: 3 | T11: 1 | U11: 1 | V11: 1
A12: 11:30:00 | B12: 1 | C12: 1 | D12: 1 | E12: 1 | F12: 1 | G12: 1 | H12: 1 | I12: 1 | J12: 1 | K12: 1 | L12: 1 | M12: 1 | N12: 1 | O12: 1 | P12: 1 | Q12: 3 | R12: 3 | S12: 3 | T12: 1 | U12: 1 | V12: 1
A13: 11:45:00 | B13: 2 | C13: 2 | D13: 2 | E13: 2 | F13: 2 | G13: 2 | H13: 2 | I13: 2 | J13: 2 | K13: 2 | L13: 2 | M13: 2 | N13: 2 | O13: 2 | P13: 2 | Q13: 3 | R13: 3 | S13: 3 | T13: 1 | U13: 1 | V13: 1
A14: 12:00:00 | B14: 2 | C14: 2 | D14: 2 | E14: 2 | F14: 2 | G14: 2 | H14: 2 | I14: 2 | J14: 2 | K14: 2 | L14: 2 | M14: 2 | N14: 2 | O14: 2 | P14: 2 | Q14: 3 | R14: 3 | S14: 3 | T14: 1 | U14: 1 | V14: 1
A15: 12:15:00 | B15: 2 | C15: 2 | D15: 2 | E15: 2 | F15: 2 | G15: 2 | H15: 2 | I15: 2 | J15: 2 | K15: 2 | L15: 2 | M15: 2 | N15: 2 | O15: 2 | P15: 2 | Q15: 3 | R15: =Q15 -> 3 | S15: =Q15 -> 3 | T15: 1 | U15: 1 | V15: 1
A16: 12:30:00 | B16: 2 | C16: 2 | D16: 2 | E16: 2 | F16: 2 | G16: 2 | H16: 2 | I16: 2 | J16: 2 | K16: 2 | L16: 2 | M16: 2 | N16: 2 | O16: 2 | P16: 2 | Q16: 3 | R16: 3 | S16: 3 | T16: 1 | U16: 1 | V16: 1
A17: 12:45:00 | B17: 2 | C17: 2 | D17: 2 | E17: 2 | F17: 2 | G17: 2 | H17: 2 | I17: 2 | J17: 2 | K17: 2 | L17: 2 | M17: 2 | N17: 2 | O17: 2 | P17: 2 | Q17: 3 | R17: 3 | S17: 3 | T17: 1 | U17: 1 | V17: 1
A18: 13:00:00 | B18: 2 | C18: 2 | D18: 2 | E18: 2 | F18: 2 | G18: 2 | H18: 2 | I18: 2 | J18: 2 | K18: 2 | L18: 2 | M18: 2 | N18: 2 | O18: 2 | P18: 2 | Q18: 3 | R18: 3 | S18: 3 | T18: 1 | U18: 1 | V18: 1
A19: 13:15:00 | B19: 1 | C19: 1 | D19: 1 | E19: 1 | F19: 1 | G19: 1 | H19: 3 | I19: 3 | J19: 3 | K19: 1 | L19: 1 | M19: 1 | N19: 1 | O19: 1 | P19: 1 | Q19: 1 | R19: 1 | S19: 1 | T19: 1 | U19: 1 | V19: 1
A20: 13:30:00 | B20: 1 | C20: 1 | D20: 1 | E20: 1 | F20: 1 | G20: 1 | H20: 3 | I20: 3 | J20: 3 | K20: 1 | L20: 1 | M20: 1 | N20: 1 | O20: 1 | P20: 1 | Q20: 1 | R20: 1 | S20: 1 | T20: 1 | U20: 1 | V20: 1
A21: 13:45:00 | B21: 1 | C21: 1 | D21: 1 | E21: 1 | F21: 1 | G21: 1 | H21: 3 | I21: 3 | J21: 3 | K21: 1 | L21: 1 | M21: 1 | N21: 1 | O21: 1 | P21: 1 | Q21: 1 | R21: 1 | S21: 1 | T21: 1 | U21: 1 | V21: 1
A22: 14:00:00 | B22: 1 | C22: 1 | D22: 1 | E22: 1 | F22: 1 | G22: 1 | H22: 3 | I22: 3 | J22: 3 | K22: 1 | L22: 1 | M22: 1 | N22: 1 | O22: 1 | P22: 1 | Q22: 1 | R22: 1 | S22: 1 | T22: 1 | U22: 1 | V22: 1
A23: 14:15:00 | B23: 1 | C23: 1 | D23: 1 | E23: 1 | F23: 1 | G23: 1 | H23: 3 | I23: 3 | J23: 3 | K23: 1 | L23: 1 | M23: 1 | N23: 1 | O23: 1 | P23: 1 | Q23: 1 | R23: 1 | S23: 1 | T23: 1 | U23: 1 | V23: 1
A24: 14:30:00 | B24: 1 | C24: 1 | D24: 1 | E24: 1 | F24: 1 | G24: 1 | H24: 3 | I24: 3 | J24: 3 | K24: 1 | L24: 1 | M24: 1 | N24: 1 | O24: 1 | P24: 1 | Q24: 1 | R24: 1 | S24: 1 | T24: 1 | U24: 1 | V24: 1
A25: 14:45:00 | B25: 1 | C25: 1 | D25: 1 | E25: 1 | F25: 1 | G25: 1 | H25: 3 | I25: 3 | J25: 3 | K25: 1 | L25: 1 | M25: 1 | N25: 1 | O25: 1 | P25: 1 | Q25: 1 | R25: 1 | S25: 1 | T25: 1 | U25: 1 | V25: 1
A26: 15:00:00 | B26: 1 | C26: 1 | D26: 1 | E26: 1 | F26: 1 | G26: 1 | H26: 3 | I26: 3 | J26: 3 | K26: 1 | L26: 1 | M26: 1 | N26: 1 | O26: 1 | P26: 1 | Q26: 1 | R26: 1 | S26: 1 | T26: 1 | U26: 1 | V26: 1
A27: 15:15:00 | B27: 1 | C27: 1 | D27: 1 | E27: 1 | F27: 1 | G27: 1 | H27: 3 | I27: 3 | J27: 3 | K27: 1 | L27: 1 | M27: 1 | N27: 1 | O27: 1 | P27: 1 | Q27: 1 | R27: 1 | S27: 1 | T27: 1 | U27: 1 | V27: 1
A28: 15:30:00 | B28: 1 | C28: 1 | D28: 1 | E28: 1 | F28: 1 | G28: 1 | H28: 3 | I28: 3 | J28: 3 | K28: 1 | L28: 1 | M28: 1 | N28: 1 | O28: 1 | P28: 1 | Q28: 1 | R28: 1 | S28: 1 | T28: 1 | U28: 1 | V28: 1
A29: 15:45:00 | B29: 1 | C29: 1 | D29: 1 | E29: 1 | F29: 1 | G29: 1 | H29: 3 | I29: 3 | J29: 3 | K29: 1 | L29: 1 | M29: 1 | N29: 1 | O29: 1 | P29: 1 | Q29: 1 | R29: 1 | S29: 1 | T29: 1 | U29: 1 | V29: 1
A30: 16:00:00 | B30: 1 | C30: 1 | D30: 1 | E30: 1 | F30: 1 | G30: 1 | H30: 3 | I30: 3 | J30: 3 | K30: 1 | L30: 1 | M30: 1 | N30: 1 | O30: 1 | P30: 1 | Q30: 1 | R30: 1 | S30: 1 | T30: 1 | U30: 1 | V30: 1
A31: 16:15:00 | B31: 1 | C31: 1 | D31: 1 | E31: 1 | F31: 1 | G31: 1 | H31: 3 | I31: 3 | J31: 3 | K31: 1 | L31: 1 | M31: 1 | N31: 1 | O31: 1 | P31: 1 | Q31: 1 | R31: 1 | S31: 1 | T31: 1 | U31: 1 | V31: 1
A32: 16:30:00 | B32: 1 | C32: 1 | D32: 1 | E32: 1 | F32: 1 | G32: 1 | H32: 3 | I32: 3 | J32: 3 | K32: 1 | L32: 1 | M32: 1 | N32: 1 | O32: 1 | P32: 1 | Q32: 1 | R32: 1 | S32: 1 | T32: 1 | U32: 1 | V32: 1
A33: 16:45:00 | B33: 1 | C33: 1 | D33: 1 | E33: 1 | F33: 1 | G33: 1 | H33: 3 | I33: 3 | J33: 3 | K33: 1 | L33: 1 | M33: 1 | N33: 1 | O33: 1 | P33: 1 | Q33: 1 | R33: 1 | S33: 1 | T33: 1 | U33: 1 | V33: 1
A34: 17:00:00 | B34: 1 | C34: 1 | D34: 1 | E34: 1 | F34: 1 | G34: 1 | H34: 3 | I34: 3 | J34: 3 | K34: 1 | L34: 1 | M34: 1 | N34: 1 | O34: 1 | P34: 1 | Q34: 1 | R34: 1 | S34: 1 | T34: 1 | U34: 1 | V34: 1
A35: 17:15:00 | B35: 1 | C35: =B35 -> 1 | D35: =B35 -> 1 | E35: 1 | F35: 1 | G35: 1 | H35: 3 | I35: 3 | J35: 3 | K35: 1 | L35: 1 | M35: 1 | N35: 1 | O35: 1 | P35: 1 | Q35: 1 | R35: =Q35 -> 1 | S35: =Q35 -> 1 | T35: 1 | U35: 1 | V35: 1
A36: 17:30:00 | B36: 1 | C36: 1 | D36: 1 | E36: 1 | F36: 1 | G36: 1 | H36: 3 | I36: 3 | J36: 3 | K36: 1 | L36: 1 | M36: 1 | N36: 1 | O36: 1 | P36: 1 | Q36: 1 | R36: 1 | S36: 1 | T36: 1 | U36: 1 | V36: 1
A37: 17:45:00 | B37: 2 | C37: 2 | D37: 2 | E37: 2 | F37: =E37 -> 2 | G37: =E37 -> 2 | H37: 3 | I37: 3 | J37: 3 | K37: 2 | L37: =K37 -> 2 | M37: =K37 -> 2 | N37: 2 | O37: =N37 -> 2 | P37: =N37 -> 2 | Q37: 1 | R37: 1 | S37: 1 | T37: 1 | U37: =T37 -> 1 | V37: =T37 -> 1
A38: 18:00:00 | B38: 2 | C38: 2 | D38: 2 | E38: 2 | F38: 2 | G38: 2 | H38: 3 | I38: 3 | J38: 3 | K38: 2 | L38: 2 | M38: 2 | N38: 2 | O38: 2 | P38: 2 | Q38: 1 | R38: 1 | S38: 1 | T38: 1 | U38: 1 | V38: 1
A39: 18:15:00 | B39: 2 | C39: 2 | D39: 2 | E39: 3 | F39: 3 | G39: 3 | H39: 3 | I39: =H39 -> 3 | J39: =H39 -> 3 | K39: 3 | L39: 3 | M39: 3 | N39: 3 | O39: 3 | P39: 3 | Q39: 1 | R39: 1 | S39: 1 | T39: 1 | U39: 1 | V39: 1
A40: 18:30:00 | B40: 2 | C40: 2 | D40: 2 | E40: 3 | F40: 3 | G40: 3 | H40: 3 | I40: 3 | J40: 3 | K40: 3 | L40: 3 | M40: 3 | N40: 3 | O40: 3 | P40: 3 | Q40: 1 | R40: 1 | S40: 1 | T40: 1 | U40: 1 | V40: 1
A41: 18:45:00 | B41: 3 | C41: 3 | D41: 3 | E41: 3 | F41: 3 | G41: 3 | H41: 3 | I41: 3 | J41: 3 | K41: 3 | L41: 3 | M41: 3 | N41: 3 | O41: 3 | P41: 3 | Q41: 1 | R41: 1 | S41: 1 | T41: 1 | U41: 1 | V41: 1
A42: 19:00:00 | B42: 3 | C42: 3 | D42: 3 | E42: 3 | F42: 3 | G42: 3 | H42: 3 | I42: 3 | J42: 3 | K42: 3 | L42: 3 | M42: 3 | N42: 3 | O42: 3 | P42: 3 | Q42: 1 | R42: 1 | S42: 1 | T42: 1 | U42: 1 | V42: 1
A43: 19:15:00 | B43: 3 | C43: 3 | D43: 3 | E43: 3 | F43: 3 | G43: 3 | H43: 3 | I43: 3 | J43: 3 | K43: 3 | L43: 3 | M43: 3 | N43: 3 | O43: 3 | P43: 3 | Q43: 1 | R43: 1 | S43: 1 | T43: 1 | U43: 1 | V43: 1
A44: 19:30:00 | B44: 3 | C44: 3 | D44: 3 | E44: 3 | F44: 3 | G44: 3 | H44: 3 | I44: 3 | J44: 3 | K44: 3 | L44: 3 | M44: 3 | N44: 3 | O44: 3 | P44: 3 | Q44: 1 | R44: 1 | S44: 1 | T44: 1 | U44: 1 | V44: 1
A45: 19:45:00 | B45: 3 | C45: 3 | D45: 3 | E45: 3 | F45: 3 | G45: 3 | H45: 3 | I45: 3 | J45: 3 | K45: 3 | L45: 3 | M45: 3 | N45: 3 | O45: 3 | P45: 3 | Q45: 1 | R45: 1 | S45: 1 | T45: 1 | U45: 1 | V45: 1
A46: 20:00:00 | B46: 3 | C46: 3 | D46: 3 | E46: 3 | F46: 3 | G46: 3 | H46: 3 | I46: 3 | J46: 3 | K46: 3 | L46: 3 | M46: 3 | N46: 3 | O46: 3 | P46: 3 | Q46: 1 | R46: 1 | S46: 1 | T46: 1 | U46: 1 | V46: 1
A47: 20:15:00 | B47: 3 | C47: 3 | D47: 3 | E47: 3 | F47: 3 | G47: 3 | H47: 3 | I47: 3 | J47: 3 | K47: 3 | L47: 3 | M47: 3 | N47: 3 | O47: 3 | P47: 3 | Q47: 1 | R47: 1 | S47: 1 | T47: 1 | U47: 1 | V47: 1
A48: 20:30:00 | B48: 3 | C48: 3 | D48: 3 | E48: 3 | F48: 3 | G48: 3 | H48: 3 | I48: 3 | J48: 3 | K48: 3 | L48: 3 | M48: 3 | N48: 3 | O48: 3 | P48: 3 | Q48: 1 | R48: 1 | S48: 1 | T48: 1 | U48: 1 | V48: 1
A49: 20:45:00 | B49: 2 | C49: 2 | D49: 2 | E49: 2 | F49: 2 | G49: 2 | H49: 3 | I49: 3 | J49: 3 | K49: 2 | L49: 2 | M49: 2 | N49: 2 | O49: 2 | P49: 2 | Q49: 1 | R49: 1 | S49: 1 | T49: 1 | U49: 1 | V49: 1
A50: 21:00:00 | B50: 2 | C50: 2 | D50: 2 | E50: 2 | F50: 2 | G50: 2 | H50: 3 | I50: 3 | J50: 3 | K50: 2 | L50: 2 | M50: 2 | N50: 2 | O50: 2 | P50: 2 | Q50: 1 | R50: 1 | S50: 1 | T50: 1 | U50: 1 | V50: 1
A51: 21:15:00 | B51: 2 | C51: 2 | D51: 2 | E51: 2 | F51: 2 | G51: 2 | H51: 2 | I51: 2 | J51: 2 | K51: 2 | L51: 2 | M51: 2 | N51: 2 | O51: 2 | P51: 2 | Q51: 1 | R51: =Q51 -> 1 | S51: =Q51 -> 1 | T51: 1 | U51: 1 | V51: 1
A52: 21:30:00 | B52: 2 | C52: 2 | D52: 2 | E52: 2 | F52: 2 | G52: 2 | H52: 2 | I52: 2 | J52: 2 | K52: 2 | L52: 2 | M52: 2 | N52: 2 | O52: 2 | P52: 2 | Q52: 1 | R52: 1 | S52: 1 | T52: 1 | U52: 1 | V52: 1
A53: 21:45:00 | B53: 2 | C53: 2 | D53: 2 | E53: 2 | F53: 2 | G53: 2 | H53: 2 | I53: 2 | J53: 2 | K53: 2 | L53: 2 | M53: 2 | N53: 2 | O53: 2 | P53: 2 | Q53: 1 | R53: 1 | S53: 1 | T53: 1 | U53: 1 | V53: 1
A54: 22:00:00 | B54: 2 | C54: 2 | D54: 2 | E54: 2 | F54: 2 | G54: 2 | H54: 2 | I54: 2 | J54: 2 | K54: 2 | L54: 2 | M54: 2 | N54: 2 | O54: 2 | P54: 2 | Q54: 1 | R54: 1 | S54: 1 | T54: 1 | U54: 1 | V54: 1
A55: 22:15:00 | B55: 1 | C55: 1 | D55: =B55 -> 1 | E55: 1 | F55: 1 | G55: =E55 -> 1 | H55: 1 | I55: 1 | J55: =H55 -> 1 | K55: 1 | L55: 1 | M55: =K55 -> 1 | N55: 1 | O55: 1 | P55: =N55 -> 1 | Q55: 1 | R55: 1 | S55: =Q55 -> 1 | T55: 1 | U55: 1 | V55: 1
A56: 22:30:00 | B56: 1 | C56: 1 | D56: 1 | E56: 1 | F56: 1 | G56: 1 | H56: 1 | I56: 1 | J56: 1 | K56: 1 | L56: 1 | M56: 1 | N56: 1 | O56: 1 | P56: 1 | Q56: 1 | R56: 1 | S56: 1 | T56: 1 | U56: 1 | V56: 1
A59: 00:15:00 | S59: Page N° | T59: =VLOOKUP($U$1,EQUIPEMENT,3) -> 

Sheet MATRICE 2
A1: =SAISON -> 2019-2020 | E1: MATRICE 2 Niveaux
A2: 09:00:00 | B2: Lundi | E2: Mardi | H2: Mercredi | K2: Jeudi | N2: Vendredi | Q2: Samedi | T2: Dimanche
A3: =+A2+$A$59 -> 09:15:00 | B3: 1 | C3: =B3 -> 1 | D3: =B3 -> 1 | E3: 1 | F3: =E3 -> 1 | G3: =E3 -> 1 | H3: 1 | I3: =H3 -> 1 | J3: =H3 -> 1 | K3: 1 | L3: =K3 -> 1 | M3: =K3 -> 1 | N3: 1 | O3: =N3 -> 1 | P3: =N3 -> 1 | Q3: 2 | R3: =Q3 -> 2 | S3: =Q3 -> 2 | T3: 1 | U3: =T3 -> 1 | V3: =T3 -> 1
A4: 09:30:00 | B4: 1 | C4: 1 | D4: 1 | E4: 1 | F4: 1 | G4: 1 | H4: 1 | I4: 1 | J4: 1 | K4: 1 | L4: 1 | M4: 1 | N4: 1 | O4: 1 | P4: 1 | Q4: 2 | R4: 2 | S4: 2 | T4: 1 | U4: 1 | V4: 1
A5: 09:45:00 | B5: 1 | C5: 1 | D5: 1 | E5: 1 | F5: 1 | G5: 1 | H5: 1 | I5: 1 | J5: 1 | K5: 1 | L5: 1 | M5: 1 | N5: 1 | O5: 1 | P5: 1 | Q5: 2 | R5: 2 | S5: 2 | T5: 1 | U5: 1 | V5: 1
A6: 10:00:00 | B6: 1 | C6: 1 | D6: 1 | E6: 1 | F6: 1 | G6: 1 | H6: 1 | I6: 1 | J6: 1 | K6: 1 | L6: 1 | M6: 1 | N6: 1 | O6: 1 | P6: 1 | Q6: 2 | R6: 2 | S6: 2 | T6: 1 | U6: 1 | V6: 1
A7: 10:15:00 | B7: 1 | C7: 1 | D7: 1 | E7: 1 | F7: 1 | G7: 1 | H7: 1 | I7: 1 | J7: 1 | K7: 1 | L7: 1 | M7: 1 | N7: 1 | O7: 1 | P7: 1 | Q7: 2 | R7: 2 | S7: 2 | T7: 1 | U7: 1 | V7: 1
A8: 10:30:00 | B8: 1 | C8: 1 | D8: 1 | E8: 1 | F8: 1 | G8: 1 | H8: 1 | I8: 1 | J8: 1 | K8: 1 | L8: 1 | M8: 1 | N8: 1 | O8: 1 | P8: 1 | Q8: 2 | R8: 2 | S8: 2 | T8: 1 | U8: 1 | V8: 1
A9: 10:45:00 | B9: 1 | C9: 1 | D9: 1 | E9: 1 | F9: 1 | G9: 1 | H9: 1 | I9: 1 | J9: 1 | K9: 1 | L9: 1 | M9: 1 | N9: 1 | O9: 1 | P9: 1 | Q9: 2 | R9: 2 | S9: 2 | T9: 1 | U9: 1 | V9: 1
A10: 11:00:00 | B10: 1 | C10: 1 | D10: 1 | E10: 1 | F10: 1 | G10: 1 | H10: 1 | I10: 1 | J10: 1 | K10: 1 | L10: 1 | M10: 1 | N10: 1 | O10: 1 | P10: 1 | Q10: 2 | R10: 2 | S10: 2 | T10: 1 | U10: 1 | V10: 1
A11: 11:15:00 | B11: 1 | C11: 1 | D11: 1 | E11: 1 | F11: 1 | G11: 1 | H11: 1 | I11: 1 | J11: 1 | K11: 1 | L11: 1 | M11: 1 | N11: 1 | O11: 1 | P11: 1 | Q11: 2 | R11: 2 | S11: 2 | T11: 1 | U11: 1 | V11: 1
A12: 11:30:00 | B12: 1 | C12: 1 | D12: 1 | E12: 1 | F12: 1 | G12: 1 | H12: 1 | I12: 1 | J12: 1 | K12: 1 | L12: 1 | M12: 1 | N12: 1 | O12: 1 | P12: 1 | Q12: 2 | R12: 2 | S12: 2 | T12: 1 | U12: 1 | V12: 1
A13: 11:45:00 | B13: 1 | C13: 1 | D13: 1 | E13: 1 | F13: 1 | G13: 1 | H13: 1 | I13: 1 | J13: 1 | K13: 1 | L13: 1 | M13: 1 | N13: 1 | O13: 1 | P13: 1 | Q13: 1 | R13: 1 | S13: 1 | T13: 1 | U13: 1 | V13: 1
A14: 12:00:00 | B14: 1 | C14: 1 | D14: 1 | E14: 1 | F14: 1 | G14: 1 | H14: 1 | I14: 1 | J14: 1 | K14: 1 | L14: 1 | M14: 1 | N14: 1 | O14: 1 | P14: 1 | Q14: 1 | R14: 1 | S14: 1 | T14: 1 | U14: 1 | V14: 1
A15: 12:15:00 | B15: 1 | C15: 1 | D15: 1 | E15: 1 | F15: 1 | G15: 1 | H15: 1 | I15: 1 | J15: 1 | K15: 1 | L15: 1 | M15: 1 | N15: 1 | O15: 1 | P15: 1 | Q15: 1 | R15: 1 | S15: 1 | T15: 1 | U15: 1 | V15: 1
A16: 12:30:00 | B16: 1 | C16: 1 | D16: 1 | E16: 1 | F16: 1 | G16: 1 | H16: 1 | I16: 1 | J16: 1 | K16: 1 | L16: 1 | M16: 1 | N16: 1 | O16: 1 | P16: 1 | Q16: 1 | R16: 1 | S16: 1 | T16: 1 | U16: 1 | V16: 1
A17: 12:45:00 | B17: 1 | C17: 1 | D17: 1 | E17: 1 | F17: 1 | G17: 1 | H17: 1 | I17: 1 | J17: 1 | K17: 1 | L17: 1 | M17: 1 | N17: 1 | O17: 1 | P17: 1 | Q17: 1 | R17: 1 | S17: 1 | T17: 1 | U17: 1 | V17: 1
A18: 13:00:00 | B18: 1 | C18: 1 | D18: 1 | E18: 1 | F18: 1 | G18: 1 | H18: 1 | I18: 1 | J18: 1 | K18: 1 | L18: 1 | M18: 1 | N18: 1 | O18: 1 | P18: 1 | Q18: 1 | R18: 1 | S18: 1 | T18: 1 | U18: 1 | V18: 1
A19: 13:15:00 | B19: 1 | C19: 1 | D19: 1 | E19: 1 | F19: 1 | G19: 1 | H19: 1 | I19: 1 | J19: 1 | K19: 1 | L19: 1 | M19: 1 | N19: 1 | O19: 1 | P19: 1 | Q19: 1 | R19: 1 | S19: 1 | T19: 1 | U19: 1 | V19: 1
A20: 13:30:00 | B20: 1 | C20: 1 | D20: 1 | E20: 1 | F20: 1 | G20: 1 | H20: 1 | I20: 1 | J20: 1 | K20: 1 | L20: 1 | M20: 1 | N20: 1 | O20: 1 | P20: 1 | Q20: 1 | R20: 1 | S20: 1 | T20: 1 | U20: 1 | V20: 1
A21: 13:45:00 | B21: 1 | C21: 1 | D21: 1 | E21: 1 | F21: 1 | G21: 1 | H21: 2 | I21: 2 | J21: 2 | K21: 1 | L21: 1 | M21: 1 | N21: 1 | O21: 1 | P21: 1 | Q21: 1 | R21: 1 | S21: 1 | T21: 1 | U21: 1 | V21: 1
A22: 14:00:00 | B22: 1 | C22: 1 | D22: 1 | E22: 1 | F22: 1 | G22: 1 | H22: 2 | I22: 2 | J22: 2 | K22: 1 | L22: 1 | M22: 1 | N22: 1 | O22: 1 | P22: 1 | Q22: 1 | R22: 1 | S22: 1 | T22: 1 | U22: 1 | V22: 1
A23: 14:15:00 | B23: 1 | C23: 1 | D23: 1 | E23: 1 | F23: 1 | G23: 1 | H23: 2 | I23: 2 | J23: 2 | K23: 1 | L23: 1 | M23: 1 | N23: 1 | O23: 1 | P23: 1 | Q23: 1 | R23: 1 | S23: 1 | T23: 1 | U23: 1 | V23: 1
A24: 14:30:00 | B24: 1 | C24: 1 | D24: 1 | E24: 1 | F24: 1 | G24: 1 | H24: 2 | I24: 2 | J24: 2 | K24: 1 | L24: 1 | M24: 1 | N24: 1 | O24: 1 | P24: 1 | Q24: 1 | R24: 1 | S24: 1 | T24: 1 | U24: 1 | V24: 1
A25: 14:45:00 | B25: 1 | C25: 1 | D25: 1 | E25: 1 | F25: 1 | G25: 1 | H25: 2 | I25: 2 | J25: 2 | K25: 1 | L25: 1 | M25: 1 | N25: 1 | O25: 1 | P25: 1 | Q25: 1 | R25: 1 | S25: 1 | T25: 1 | U25: 1 | V25: 1
A26: 15:00:00 | B26: 1 | C26: 1 | D26: 1 | E26: 1 | F26: 1 | G26: 1 | H26: 2 | I26: 2 | J26: 2 | K26: 1 | L26: 1 | M26: 1 | N26: 1 | O26: 1 | P26: 1 | Q26: 1 | R26: 1 | S26: 1 | T26: 1 | U26: 1 | V26: 1
A27: 15:15:00 | B27: 1 | C27: 1 | D27: 1 | E27: 1 | F27: 1 | G27: 1 | H27: 2 | I27: 2 | J27: 2 | K27: 1 | L27: 1 | M27: 1 | N27: 1 | O27: 1 | P27: 1 | Q27: 1 | R27: 1 | S27: 1 | T27: 1 | U27: 1 | V27: 1
A28: 15:30:00 | B28: 1 | C28: 1 | D28: 1 | E28: 1 | F28: 1 | G28: 1 | H28: 2 | I28: 2 | J28: 2 | K28: 1 | L28: 1 | M28: 1 | N28: 1 | O28: 1 | P28: 1 | Q28: 1 | R28: 1 | S28: 1 | T28: 1 | U28: 1 | V28: 1
A29: 15:45:00 | B29: 1 | C29: 1 | D29: 1 | E29: 1 | F29: 1 | G29: 1 | H29: 2 | I29: 2 | J29: 2 | K29: 1 | L29: 1 | M29: 1 | N29: 1 | O29: 1 | P29: 1 | Q29: 1 | R29: 1 | S29: 1 | T29: 1 | U29: 1 | V29: 1
A30: 16:00:00 | B30: 1 | C30: 1 | D30: 1 | E30: 1 | F30: 1 | G30: 1 | H30: 2 | I30: 2 | J30: 2 | K30: 1 | L30: 1 | M30: 1 | N30: 1 | O30: 1 | P30: 1 | Q30: 1 | R30: 1 | S30: 1 | T30: 1 | U30: 1 | V30: 1
A31: 16:15:00 | B31: 1 | C31: 1 | D31: 1 | E31: 1 | F31: 1 | G31: 1 | H31: 2 | I31: 2 | J31: 2 | K31: 1 | L31: 1 | M31: 1 | N31: 1 | O31: 1 | P31: 1 | Q31: 1 | R31: 1 | S31: 1 | T31: 1 | U31: 1 | V31: 1
A32: 16:30:00 | B32: 1 | C32: 1 | D32: 1 | E32: 1 | F32: 1 | G32: 1 | H32: 2 | I32: 2 | J32: 2 | K32: 1 | L32: 1 | M32: 1 | N32: 1 | O32: 1 | P32: 1 | Q32: 1 | R32: 1 | S32: 1 | T32: 1 | U32: 1 | V32: 1
A33: 16:45:00 | B33: 1 | C33: 1 | D33: 1 | E33: 1 | F33: 1 | G33: 1 | H33: 2 | I33: 2 | J33: 2 | K33: 1 | L33: 1 | M33: 1 | N33: 1 | O33: 1 | P33: 1 | Q33: 1 | R33: 1 | S33: 1 | T33: 1 | U33: 1 | V33: 1
A34: 17:00:00 | B34: 1 | C34: 1 | D34: 1 | E34: 1 | F34: 1 | G34: 1 | H34: 2 | I34: 2 | J34: 2 | K34: 1 | L34: 1 | M34: 1 | N34: 1 | O34: 1 | P34: 1 | Q34: 1 | R34: 1 | S34: 1 | T34: 1 | U34: 1 | V34: 1
A35: 17:15:00 | B35: 1 | C35: =B35 -> 1 | D35: =B35 -> 1 | E35: 1 | F35: 1 | G35: 1 | H35: 2 | I35: 2 | J35: 2 | K35: 1 | L35: 1 | M35: 1 | N35: 1 | O35: 1 | P35: 1 | Q35: 1 | R35: 1 | S35: 1 | T35: 1 | U35: 1 | V35: 1
A36: 17:30:00 | B36: 1 | C36: 1 | D36: 1 | E36: 1 | F36: 1 | G36: 1 | H36: 2 | I36: 2 | J36: 2 | K36: 1 | L36: 1 | M36: 1 | N36: 1 | O36: 1 | P36: 1 | Q36: 1 | R36: 1 | S36: 1 | T36: 1 | U36: 1 | V36: 1
A37: 17:45:00 | B37: 1 | C37: 1 | D37: 1 | E37: 1 | F37: 1 | G37: 1 | H37: 2 | I37: 2 | J37: 2 | K37: 1 | L37: 1 | M37: 1 | N37: 1 | O37: 1 | P37: 1 | Q37: 1 | R37: 1 | S37: 1 | T37: 1 | U37: 1 | V37: 1
A38: 18:00:00 | B38: 1 | C38: 1 | D38: 1 | E38: 1 | F38: 1 | G38: 1 | H38: 2 | I38: 2 | J38: 2 | K38: 1 | L38: 1 | M38: 1 | N38: 1 | O38: 1 | P38: 1 | Q38: 1 | R38: 1 | S38: 1 | T38: 1 | U38: 1 | V38: 1
A39: 18:15:00 | B39: 1 | C39: 1 | D39: 1 | E39: 1 | F39: 1 | G39: 1 | H39: 2 | I39: 2 | J39: 2 | K39: 1 | L39: 1 | M39: 1 | N39: 1 | O39: 1 | P39: 1 | Q39: 1 | R39: 1 | S39: 1 | T39: 1 | U39: 1 | V39: 1
A40: 18:30:00 | B40: 1 | C40: 1 | D40: 1 | E40: 1 | F40: 1 | G40: 1 | H40: 2 | I40: 2 | J40: 2 | K40: 1 | L40: 1 | M40: 1 | N40: 1 | O40: 1 | P40: 1 | Q40: 1 | R40: 1 | S40: 1 | T40: 1 | U40: 1 | V40: 1
A41: 18:45:00 | B41: 2 | C41: 2 | D41: 2 | E41: 2 | F41: =E41 -> 2 | G41: =E41 -> 2 | H41: 2 | I41: =H41 -> 2 | J41: =H41 -> 2 | K41: 2 | L41: =K41 -> 2 | M41: =K41 -> 2 | N41: 2 | O41: =N41 -> 2 | P41: =N41 -> 2 | Q41: 1 | R41: =Q41 -> 1 | S41: =Q41 -> 1 | T41: 1 | U41: 1 | V41: 1
A42: 19:00:00 | B42: 2 | C42: 2 | D42: 2 | E42: 2 | F42: 2 | G42: 2 | H42: 2 | I42: 2 | J42: 2 | K42: 2 | L42: 2 | M42: 2 | N42: 2 | O42: 2 | P42: 2 | Q42: 1 | R42: 1 | S42: 1 | T42: 1 | U42: 1 | V42: 1
A43: 19:15:00 | B43: 2 | C43: 2 | D43: 2 | E43: 2 | F43: 2 | G43: 2 | H43: 2 | I43: 2 | J43: 2 | K43: 2 | L43: 2 | M43: 2 | N43: 2 | O43: 2 | P43: 2 | Q43: 1 | R43: 1 | S43: 1 | T43: 1 | U43: 1 | V43: 1
A44: 19:30:00 | B44: 2 | C44: 2 | D44: 2 | E44: 2 | F44: 2 | G44: 2 | H44: 2 | I44: 2 | J44: 2 | K44: 2 | L44: 2 | M44: 2 | N44: 2 | O44: 2 | P44: 2 | Q44: 1 | R44: 1 | S44: 1 | T44: 1 | U44: 1 | V44: 1
A45: 19:45:00 | B45: 2 | C45: 2 | D45: 2 | E45: 2 | F45: 2 | G45: 2 | H45: 2 | I45: 2 | J45: 2 | K45: 2 | L45: 2 | M45: 2 | N45: 2 | O45: 2 | P45: 2 | Q45: 1 | R45: 1 | S45: 1 | T45: 1 | U45: 1 | V45: 1
A46: 20:00:00 | B46: 2 | C46: 2 | D46: 2 | E46: 2 | F46: 2 | G46: 2 | H46: 2 | I46: 2 | J46: 2 | K46: 2 | L46: 2 | M46: 2 | N46: 2 | O46: 2 | P46: 2 | Q46: 1 | R46: 1 | S46: 1 | T46: 1 | U46: 1 | V46: 1
A47: 20:15:00 | B47: 2 | C47: 2 | D47: 2 | E47: 2 | F47: 2 | G47: 2 | H47: 2 | I47: 2 | J47: 2 | K47: 2 | L47: 2 | M47: 2 | N47: 2 | O47: 2 | P47: 2 | Q47: 1 | R47: 1 | S47: 1 | T47: 1 | U47: 1 | V47: 1
A48: 20:30:00 | B48: 2 | C48: 2 | D48: 2 | E48: 2 | F48: 2 | G48: 2 | H48: 2 | I48: 2 | J48: 2 | K48: 2 | L48: 2 | M48: 2 | N48: 2 | O48: 2 | P48: 2 | Q48: 1 | R48: 1 | S48: 1 | T48: 1 | U48: 1 | V48: 1
A49: 20:45:00 | B49: 2 | C49: 2 | D49: 2 | E49: 2 | F49: 2 | G49: 2 | H49: 2 | I49: 2 | J49: 2 | K49: 2 | L49: 2 | M49: 2 | N49: 2 | O49: 2 | P49: 2 | Q49: 1 | R49: 1 | S49: 1 | T49: 1 | U49: 1 | V49: 1
A50: 21:00:00 | B50: 2 | C50: 2 | D50: 2 | E50: 2 | F50: 2 | G50: 2 | H50: 2 | I50: 2 | J50: 2 | K50: 2 | L50: 2 | M50: 2 | N50: 2 | O50: 2 | P50: 2 | Q50: 1 | R50: 1 | S50: 1 | T50: 1 | U50: 1 | V50: 1
A51: 21:15:00 | B51: 1 | C51: 1 | D51: 1 | E51: 1 | F51: 1 | G51: 1 | H51: 1 | I51: 1 | J51: 1 | K51: 1 | L51: 1 | M51: 1 | N51: 1 | O51: 1 | P51: 1 | Q51: 1 | R51: 1 | S51: 1 | T51: 1 | U51: 1 | V51: 1
A52: 21:30:00 | B52: 1 | C52: 1 | D52: 1 | E52: 1 | F52: 1 | G52: 1 | H52: 1 | I52: 1 | J52: 1 | K52: 1 | L52: 1 | M52: 1 | N52: 1 | O52: 1 | P52: 1 | Q52: 1 | R52: 1 | S52: 1 | T52: 1 | U52: 1 | V52: 1
A53: 21:45:00 | B53: 1 | C53: 1 | D53: 1 | E53: 1 | F53: 1 | G53: 1 | H53: 1 | I53: 1 | J53: 1 | K53: 1 | L53: 1 | M53: 1 | N53: 1 | O53: 1 | P53: 1 | Q53: 1 | R53: 1 | S53: 1 | T53: 1 | U53: 1 | V53: 1
A54: 22:00:00 | B54: 1 | C54: 1 | D54: 1 | E54: 1 | F54: 1 | G54: 1 | H54: 1 | I54: 1 | J54: 1 | K54: 1 | L54: 1 | M54: 1 | N54: 1 | O54: 1 | P54: 1 | Q54: 1 | R54: 1 | S54: 1 | T54: 1 | U54: 1 | V54: 1
A55: 22:15:00 | B55: 1 | C55: 1 | D55: =B55 -> 1 | E55: 1 | F55: 1 | G55: =E55 -> 1 | H55: 1 | I55: 1 | J55: =H55 -> 1 | K55: 1 | L55: 1 | M55: =K55 -> 1 | N55: 1 | O55: 1 | P55: =N55 -> 1 | Q55: 1 | R55: 1 | S55: =Q55 -> 1 | T55: 1 | U55: 1 | V55: 1
A56: 22:30:00 | B56: 1 | C56: 1 | D56: 1 | E56: 1 | F56: 1 | G56: 1 | H56: 1 | I56: 1 | J56: 1 | K56: 1 | L56: 1 | M56: 1 | N56: 1 | O56: 1 | P56: 1 | Q56: 1 | R56: 1 | S56: 1 | T56: 1 | U56: 1 | V56: 1
Q57: 1 | R57: 1 | S57: 1
A59: 00:15:00 | S59: Page N° | T59: =VLOOKUP($U$1,EQUIPEMENT,3) -> 

Sheet Statitisques
A2: 1 | B2: ='Récap OMS Plus'!I6 -> 0.125 | C2: ='Récap OMS Plus'!J6 -> 1.197916667 | D2: ='Récap OMS Plus'!K6 -> 0.9791666667 | E2: ='Récap OMS Plus'!L6 -> 2.302083333 | F2: ='Récap OMS Plus'!M6 -> 0.08333333333 | G2: ='Récap OMS Plus'!N6 -> 0 | H2: ='Récap OMS Plus'!O6 -> 0.9895833333 | I2: ='Récap OMS Plus'!P6 -> 0.1666666667 | K2: ='Récap OMS Plus'!Q6 -> 7.208333333 | L2: ='Récap OMS Plus'!R6 -> 2.104166667 | M2: ='Récap OMS Plus'!S6 -> 0.3958333333 | N2: ='Récap OMS Plus'!T6 -> 0.6770833333 | O2: ='Récap OMS Plus'!U6 -> 0.2083333333 | P2: ='Récap OMS Plus'!V6 -> 0 | Q2: ='Récap OMS Plus'!W6 -> 0.5833333333 | R2: ='Récap OMS Plus'!X6 -> 0.6354166667 | S2: ='Récap OMS Plus'!Y6 -> 2.270833333 | T2: ='Récap OMS Plus'!Z6 -> 0.1666666667 | U2: ='Récap OMS Plus'!AA6 -> 0.4166666667 | V2: ='Récap OMS Plus'!AB6 -> 0.5 | W2: ='Récap OMS Plus'!AC6 -> 0.5 | X2: ='Récap OMS Plus'!AD6 -> 0.5104166667 | Y2: ='Récap OMS Plus'!AE6 -> 0 | Z2: ='Récap OMS Plus'!AF6 -> 0.5833333333 | AA2: ='Récap OMS Plus'!AG6 -> 1.229166667 | AB2: ='Récap OMS Plus'!AH6 -> 0 | AC2: ='Récap OMS Plus'!AI6 -> 0
A3: 2 | B3: ='Récap OMS Plus'!I7 -> 0 | C3: ='Récap OMS Plus'!J7 -> 0.65625 | D3: ='Récap OMS Plus'!K7 -> 0.4479166667 | E3: ='Récap OMS Plus'!L7 -> 0.40625 | F3: ='Récap OMS Plus'!M7 -> 0.0625 | G3: ='Récap OMS Plus'!N7 -> 0 | H3: ='Récap OMS Plus'!O7 -> 0.21875 | I3: ='Récap OMS Plus'!P7 -> 0 | K3: ='Récap OMS Plus'!Q7 -> 5.583333333 | L3: ='Récap OMS Plus'!R7 -> 1.302083333 | M3: ='Récap OMS Plus'!S7 -> 0.1458333333 | N3: ='Récap OMS Plus'!T7 -> 0.1145833333 | O3: ='Récap OMS Plus'!U7 -> 0.0625 | P3: ='Récap OMS Plus'!V7 -> 0 | Q3: ='Récap OMS Plus'!W7 -> 0.03125 | R3: ='Récap OMS Plus'!X7 -> 0.1041666667 | S3: ='Récap OMS Plus'!Y7 -> 0.5 | T3: ='Récap OMS Plus'!Z7 -> 0 | U3: ='Récap OMS Plus'!AA7 -> 0.02083333333 | V3: ='Récap OMS Plus'!AB7 -> 0 | W3: ='Récap OMS Plus'!AC7 -> 0.0625 | X3: ='Récap OMS Plus'!AD7 -> 0.0625 | Y3: ='Récap OMS Plus'!AE7 -> 0 | Z3: ='Récap OMS Plus'!AF7 -> 0.375 | AA3: ='Récap OMS Plus'!AG7 -> 0.125 | AB3: ='Récap OMS Plus'!AH7 -> 0 | AC3: ='Récap OMS Plus'!AI7 -> 0
A4: 3 | B4: ='Récap OMS Plus'!I8 -> 0.125 | C4: ='Récap OMS Plus'!J8 -> 0.1041666667 | D4: ='Récap OMS Plus'!K8 -> 0.2916666667 | E4: ='Récap OMS Plus'!L8 -> 0.8333333333 | F4: ='Récap OMS Plus'!M8 -> 0.02083333333 | G4: ='Récap OMS Plus'!N8 -> 0 | H4: ='Récap OMS Plus'!O8 -> 0.3333333333 | I4: ='Récap OMS Plus'!P8 -> 0.04166666667 | K4: ='Récap OMS Plus'!Q8 -> 1.625 | L4: ='Récap OMS Plus'!R8 -> 0.8020833333 | M4: ='Récap OMS Plus'!S8 -> 0.1041666667 | N4: ='Récap OMS Plus'!T8 -> 0.4375 | O4: ='Récap OMS Plus'!U8 -> 0.1458333333 | P4: ='Récap OMS Plus'!V8 -> 0 | Q4: ='Récap OMS Plus'!W8 -> 0.1875 | R4: ='Récap OMS Plus'!X8 -> 0.1875 | S4: ='Récap OMS Plus'!Y8 -> 1.770833333 | T4: ='Récap OMS Plus'!Z8 -> 0.0625 | U4: ='Récap OMS Plus'!AA8 -> 0.25 | V4: ='Récap OMS Plus'!AB8 -> 0.02083333333 | W4: ='Récap OMS Plus'!AC8 -> 0.1666666667 | X4: ='Récap OMS Plus'!AD8 -> 0.1041666667 | Y4: ='Récap OMS Plus'!AE8 -> 0 | Z4: ='Récap OMS Plus'!AF8 -> 0.04166666667 | AA4: ='Récap OMS Plus'!AG8 -> 0.375 | AB4: ='Récap OMS Plus'!AH8 -> 0 | AC4: ='Récap OMS Plus'!AI8 -> 0
A5: 4 | B5: ='Récap OMS Plus'!I9 -> 0 | C5: ='Récap OMS Plus'!J9 -> 0.4375 | D5: ='Récap OMS Plus'!K9 -> 0.2395833333 | E5: ='Récap OMS Plus'!L9 -> 1.0625 | F5: ='Récap OMS Plus'!M9 -> 0 | G5: ='Récap OMS Plus'!N9 -> 0 | H5: ='Récap OMS Plus'!O9 -> 0.4375 | I5: ='Récap OMS Plus'!P9 -> 0.125 | K5: ='Récap OMS Plus'!Q9 -> 0 | L5: ='Récap OMS Plus'!R9 -> 0 | M5: ='Récap OMS Plus'!S9 -> 0.1458333333 | N5: ='Récap OMS Plus'!T9 -> 0.125 | O5: ='Récap OMS Plus'!U9 -> 0 | P5: ='Récap OMS Plus'!V9 -> 0 | Q5: ='Récap OMS Plus'!W9 -> 0.3645833333 | R5: ='Récap OMS Plus'!X9 -> 0.34375 | S5: ='Récap OMS Plus'!Y9 -> 0 | T5: ='Récap OMS Plus'!Z9 -> 0.1041666667 | U5: ='Récap OMS Plus'!AA9 -> 0.1458333333 | V5: ='Récap OMS Plus'!AB9 -> 0.4791666667 | W5: ='Récap OMS Plus'!AC9 -> 0.2708333333 | X5: ='Récap OMS Plus'!AD9 -> 0.34375 | Y5: ='Récap OMS Plus'!AE9 -> 0 | Z5: ='Récap OMS Plus'!AF9 -> 0.1666666667 | AA5: ='Récap OMS Plus'!AG9 -> 0.7291666667 | AB5: ='Récap OMS Plus'!AH9 -> 0 | AC5: ='Récap OMS Plus'!AI9 -> 0
A6: 5 | B6: ='Récap OMS Plus'!I10 -> 1 | C6: ='Récap OMS Plus'!J10 -> 3 | D6: ='Récap OMS Plus'!K10 -> 4 | E6: ='Récap OMS Plus'!L10 -> 5 | F6: ='Récap OMS Plus'!M10 -> 7 | G6: ='Récap OMS Plus'!N10 -> 9 | H6: ='Récap OMS Plus'!O10 -> 10 | I6: ='Récap OMS Plus'!P10 -> 11 | K6: ='Récap OMS Plus'!Q10 -> 15 | L6: ='Récap OMS Plus'!R10 -> 16 | M6: ='Récap OMS Plus'!S10 -> 17 | N6: ='Récap OMS Plus'!T10 -> 19 | O6: ='Récap OMS Plus'!U10 -> 20 | P6: ='Récap OMS Plus'!V10 -> 21 | Q6: ='Récap OMS Plus'!W10 -> 23 | R6: ='Récap OMS Plus'!X10 -> 24 | S6: ='Récap OMS Plus'!Y10 -> 27 | T6: ='Récap OMS Plus'!Z10 -> 28 | U6: ='Récap OMS Plus'!AA10 -> 30 | V6: ='Récap OMS Plus'!AB10 -> 31 | W6: ='Récap OMS Plus'!AC10 -> 32 | X6: ='Récap OMS Plus'!AD10 -> 34 | Y6: ='Récap OMS Plus'!AE10 -> 35 | Z6: ='Récap OMS Plus'!AF10 -> 36 | AA6: ='Récap OMS Plus'!AG10 -> 37 | AB6: ='Récap OMS Plus'!AH10 -> 0 | AC6: ='Récap OMS Plus'!AI10 -> 0
A7: 6 | B7: ='Récap OMS Plus'!I11 -> OMS | C7: ='Récap OMS Plus'!J11 -> J.B.E. | D7: ='Récap OMS Plus'!K11 -> GYM LOISIR | E7: ='Récap OMS Plus'!L11 -> BASKET | F7: ='Récap OMS Plus'!M11 -> CYCLOS | G7: ='Récap OMS Plus'!N11 -> GAULE | H7: ='Récap OMS Plus'!O11 -> JUDO | I7: ='Récap OMS Plus'!P11 -> LUTTE | K7: ='Récap OMS Plus'!Q11 -> TENNIS (2) | L7: ='Récap OMS Plus'!R11 -> CIRQUE (1) | M7: ='Récap OMS Plus'!S11 -> TAI JITSU | N7: ='Récap OMS Plus'!T11 -> G.VOLONTAIRE | O7: ='Récap OMS Plus'!U11 -> DIAGONALE | P7: ='Récap OMS Plus'!V11 -> A.C.E (1) | Q7: ='Récap OMS Plus'!W11 -> ESCALADE | R7: ='Récap OMS Plus'!X11 -> ARCHERS | S7: ='Récap OMS Plus'!Y11 -> O.C.E | T7: ='Récap OMS Plus'!Z11 -> LAI MUOI | U7: ='Récap OMS Plus'!AA11 -> TAEKWONDO | V7: ='Récap OMS Plus'!AB11 -> E.S.A.G.A.M.I | W7: ='Récap OMS Plus'!AC11 -> ALEETT | X7: ='Récap OMS Plus'!AD11 -> SPIRIT 38 | Y7: ='Récap OMS Plus'!AE11 -> GMC38EYBENS | Z7: ='Récap OMS Plus'!AF11 -> PETANQUE | AA7: ='Récap OMS Plus'!AG11 -> HBC2E | AB7: ='Récap OMS Plus'!AH11 -> 0 | AC7: ='Récap OMS Plus'!AI11 -> 0
B9: RESULTATS
B10: Pour l'ensemble des équipemens | E10: Répartition Interne Club > Répartion en % du temps total par Niveaux de chaque club
E11: Part Du Total, pour chacun des niveaux, % d'utilisation par un club, du total utilisé
F12: en vert les 4 meilleurs
D13: Total | E13: Niveau1 | F13: RIC | G13: PDT | H13: Niveau2 | I13: RIC | J13: PDT | K13: Niveau3 | L13: RIC | M13: PDT
A14: 1 | B14: =TRANSPOSE(B6:AC7) -> 1 | C14: OMS | D14: =TRANSPOSE(B2:AC2) -> 0.125 | E14: =TRANSPOSE(B3:AC3) -> 0 | F14: =E14/$D14 -> 0 | G14: =E14/$E$40 -> 0 | H14: =TRANSPOSE((B4:AC4)) -> 0.125 | I14: =H14/$D14 -> 1 | J14: =H14/$H$40 -> 0.01556420233 | K14: =TRANSPOSE(B5:AC5) -> 0 | L14: =K14/$D14 -> 0 | M14: =K14/$K$40 -> 0
A15: 2 | B15: 3 | C15: J.B.E. | D15: 1.197916667 | E15: 0.65625 | F15: =E15/$D15 -> 0.547826087 | G15: =E15/$E$40 -> 0.06382978723 | H15: 0.1041666667 | I15: =H15/$D15 -> 0.08695652174 | J15: =H15/$H$40 -> 0.01297016861 | K15: 0.4375 | L15: 0.3652173913 | M15: =K15/$K$40 -> 0.07924528302
A16: 3 | B16: 4 | C16: GYM LOISIR | D16: 0.9791666667 | E16: 0.4479166667 | F16: 0.4574468085 | G16: 0.04356636272 | H16: 0.2916666667 | I16: 0.2978723404 | J16: 0.03631647211 | K16: 0.2395833333 | L16: 0.2446808511 | M16: =K16/$K$40 -> 0.04339622642
A17: 4 | B17: 5 | C17: BASKET | D17: 2.302083333 | E17: 0.40625 | F17: 0.1764705882 | G17: 0.03951367781 | H17: 0.8333333333 | I17: 0.3619909502 | J17: 0.1037613489 | K17: 1.0625 | L17: 0.4615384615 | M17: 0.1924528302
A18: 5 | B18: 7 | C18: CYCLOS | D18: 0.08333333333 | E18: 0.0625 | F18: 0.75 | G18: 0.006079027356 | H18: 0.02083333333 | I18: 0.25 | J18: 0.002594033722 | K18: 0 | L18: 0 | M18: 0
A19: 6 | B19: 9 | C19: GAULE | D19: 0 | E19: 0 | G19: 0 | H19: 0 | J19: 0 | K19: 0 | M19: 0
A20: 7 | B20: 10 | C20: JUDO | D20: 0.9895833333 | E20: 0.21875 | F20: 0.2210526316 | G20: 0.02127659574 | H20: 0.3333333333 | I20: 0.3368421053 | J20: 0.04150453956 | K20: 0.4375 | L20: 0.4421052632 | M20: 0.07924528302
A21: 8 | B21: 11 | C21: LUTTE | D21: 0.1666666667 | E21: 0 | F21: 0 | G21: 0 | H21: 0.04166666667 | I21: 0.25 | J21: 0.005188067445 | K21: 0.125 | L21: 0.75 | M21: 0.02264150943
A22: 9 | B22: 0 | C22: 0 | D22: 0 | E22: 0 | G22: 0 | H22: 0 | J22: 0 | K22: 0 | M22: 0
A23: 10 | B23: 15 | C23: TENNIS (2) | D23: 7.208333333 | E23: 5.583333333 | F23: 0.774566474 | G23: 0.5430597771 | H23: 1.625 | I23: 0.225433526 | J23: 0.2023346304 | K23: 0 | L23: 0 | M23: 0
A24: 11 | B24: 16 | C24: CIRQUE (1) | D24: 2.104166667 | E24: 1.302083333 | F24: 0.6188118812 | G24: 0.1266464032 | H24: 0.8020833333 | I24: 0.3811881188 | J24: 0.09987029831 | K24: 0 | L24: 0 | M24: 0
A25: 12 | B25: 17 | C25: TAI JITSU | D25: 0.3958333333 | E25: 0.1458333333 | F25: 0.3684210526 | G25: 0.01418439716 | H25: 0.1041666667 | I25: 0.2631578947 | J25: 0.01297016861 | K25: 0.1458333333 | L25: 0.3684210526 | M25: 0.02641509434
A26: 13 | B26: 19 | C26: G.VOLONTAIRE | D26: 0.6770833333 | E26: 0.1145833333 | F26: 0.1692307692 | G26: 0.01114488349 | H26: 0.4375 | I26: 0.6461538462 | J26: 0.05447470817 | K26: 0.125 | L26: 0.1846153846 | M26: 0.02264150943
A27: 14 | B27: 20 | C27: DIAGONALE | D27: 0.2083333333 | E27: 0.0625 | F27: 0.3 | G27: 0.006079027356 | H27: 0.1458333333 | I27: 0.7 | J27: 0.01815823606 | K27: 0 | L27: 0 | M27: 0
A28: 15 | B28: 21 | C28: A.C.E (1) | D28: 0 | E28: 0 | G28: 0 | H28: 0 | J28: 0 | K28: 0 | M28: 0
A29: 16 | B29: 23 | C29: ESCALADE | D29: 0.5833333333 | E29: 0.03125 | F29: 0.05357142857 | G29: 0.003039513678 | H29: 0.1875 | I29: 0.3214285714 | J29: 0.0233463035 | K29: 0.3645833333 | L29: 0.625 | M29: 0.06603773585
A30: 17 | B30: 24 | C30: ARCHERS | D30: 0.6354166667 | E30: 0.1041666667 | F30: 0.1639344262 | G30: 0.01013171226 | H30: 0.1875 | I30: 0.2950819672 | J30: 0.0233463035 | K30: 0.34375 | L30: 0.5409836066 | M30: 0.06226415094
A31: 18 | B31: 27 | C31: O.C.E | D31: 2.270833333 | E31: 0.5 | F31: 0.2201834862 | G31: 0.04863221884 | H31: 1.770833333 | I31: 0.7798165138 | J31: 0.2204928664 | K31: 0 | L31: 0 | M31: 0
A32: 19 | B32: 28 | C32: LAI MUOI | D32: 0.1666666667 | E32: 0 | F32: 0 | G32: 0 | H32: 0.0625 | I32: 0.375 | J32: 0.007782101167 | K32: 0.1041666667 | L32: 0.625 | M32: 0.01886792453
A33: 20 | B33: 30 | C33: TAEKWONDO | D33: 0.4166666667 | E33: 0.02083333333 | F33: 0.05 | G33: 0.002026342452 | H33: 0.25 | I33: 0.6 | J33: 0.03112840467 | K33: 0.1458333333 | L33: 0.35 | M33: 0.02641509434
A34: 21 | B34: 31 | C34: E.S.A.G.A.M.I | D34: 0.5 | E34: 0 | F34: 0 | G34: 0 | H34: 0.02083333333 | I34: 0.04166666667 | J34: 0.002594033722 | K34: 0.4791666667 | L34: 0.9583333333 | M34: 0.08679245283
A35: 22 | B35: 32 | C35: ALEETT | D35: 0.5 | E35: 0.0625 | F35: 0.125 | G35: 0.006079027356 | H35: 0.1666666667 | I35: 0.3333333333 | J35: 0.02075226978 | K35: 0.2708333333 | L35: 0.5416666667 | M35: 0.04905660377
A36: 23 | B36: 34 | C36: SPIRIT 38 | D36: 0.5104166667 | E36: 0.0625 | F36: 0.1224489796 | G36: 0.006079027356 | H36: 0.1041666667 | I36: 0.2040816327 | J36: 0.01297016861 | K36: 0.34375 | L36: 0.6734693878 | M36: 0.06226415094
A37: 24 | B37: 35 | C37: GMC38EYBENS | D37: 0 | E37: 0 | G37: 0 | H37: 0 | J37: 0 | K37: 0 | M37: 0
A38: 25 | B38: 36 | C38: PETANQUE | D38: 0.5833333333 | E38: 0.375 | F38: 0.6428571429 | G38: 0.03647416413 | H38: 0.04166666667 | I38: 0.07142857143 | J38: 0.005188067445 | K38: 0.1666666667 | L38: 0.2857142857 | M38: 0.03018867925
A39: 26 | B39: 37 | C39: HBC2E | D39: 1.229166667 | E39: 0.125 | F39: 0.1016949153 | G39: 0.01215805471 | H39: 0.375 | I39: 0.3050847458 | J39: 0.046692607 | K39: 0.7291666667 | L39: 0.593220339 | M39: 0.1320754717
C40: Total Utilisé | E40: =SUM(E14:E39) -> 10.28125 | H40: =SUM(H14:H39) -> 8.03125 | K40: =SUM(K14:K39) -> 5.520833333

Sheet Feuil1
